Workbook

Sheet งบทดลอง-หลัง
A1: องค์การบริหารส่วนตำบลหัวไทร
A2: งบทดลอง (หลังปิดบัญชี)
A3: ณ วันที่ 30 กันยายน 2556
A4: รายการ | D4: รหัสบัญชี | E4: เดบิต | F4: เครดิต
B5: เงินสด | D5: 10
B6: เงินฝากธนาคาร กรุงไทย (กระแสรายวัน) 802-6-01908-3 | D6: 21 | E6: =2213211.11+918117.32-2966173.43+1549196.4-1471395.4+1509940.19-876423.57 -> 876472.62 | H6: =2213211.11+918117.32-2966173.43+1549196.4-1471395.4+1509940.19-876423.57 -> 876472.62
B7: เงินฝากธนาคาร ธ.ก.ส. (ออมทรัพย์) 715-2-41562-7 | D7: 22 | E7: =17751959.7+49512-2842132.32+2966173.43+135606.8-2932043.59+100000+1471395.4+154158.02-3371231+876423.57 -> 14359822.01 | H7: =17751959.7+49512-2842132.32+2966173.43+135606.8-2932043.59+100000+1471395.4+154158.02-3371231+876423.57 -> 14359822.01
B8: เงินฝากธนาคาร ธ.ก.ส. (ออมทรัพย์) 715-2-46719-5 | D8: 22 | E8: =1938010.9+36151.88+16600+6256.01+40000+50173+20000-100000+61429.71 -> 2068621.5 | H8: =1938010.9+36151.88+16600+6256.01+40000+50173+20000-100000+61429.71 -> 2068621.5
B9: เงินฝากธนาคาร ออมสิน (ออมทรัพย์) 05331067844-5 | D9: 22 | E9: =14324159.8+60769.51+53500.11 -> 14438429.42 | H9: =14324159.8+60769.51+53500.11 -> 14438429.42
B10: เงินฝากจังหวัด | E10: 30000 | H10: =SUM(H6:H9) -> 31743345.55
B11: ลูกหนี้-ภาษีโรงเรือนและที่ดิน | D11: 81 | E11: 12480
B12: ลูกหนี้-ภาษีบำรุงท้องที่ | D12: 82 | E12: =66328.83-2232.34-379.94-57.85-193.47-871.68-1285.85-1348.47-224.54-708.8-9.79-333.58+10573.2 -> 69255.72
B13: ลูกหนี้-ภาษีป้าย | D13: 83 | E13: =600-200 -> 400
B14: เงินรับฝาก-ภาษีหัก ณ ที่จ่าย | D14: 902 | F14: 9134.74
B15: เงินรับฝาก-เงินมัดจำประกันสัญญา | D15: 903 | F15: 373147
B16: เงินรับฝาก-ค่าใช้จ่ายในการจัดเก็บภาษีบำรุงท้องที่ 5% | D16: 906 | F16: 7.45
B17: เงินรับฝาก-ค่าส่วนลดในการจัดเก็บบำรุงท้องที่ 6% | D17: 907 | F17: 8.94
B18: เงินรับฝาก-ค่ากระแสไฟฟ้าจากเกษตรกร | F18: 15306
B19: รายจ่ายรอจ่าย | F19: 896000
B20: รายจ่ายค้างจ่าย | D20: 600 | F20: =1930370+30000 -> 1960370
B21: เงินทุนสำรองเงินสะสม | F21: =10103827.01+1893079.38 -> 11996906.39 | H21: 11996861.39
B22: เงินสะสม | D22: 700 | F22: =8856741.09+5679238.16 -> 14535979.25 | H22: 14535844.25
B23: เงินทุนโครงการเศรษฐกิจชุมชน | F23: =1938010.9+36151.88+16600+6256.01+40000+50173+20000-100000+61429.71 -> 2068621.5 | H23: =SUM(H21:H22) -> 26532705.64
H26: =896000*25/100 -> 224000
E27: =SUM(E5:E26) -> 31855481.27 | F27: =SUM(F6:F26) -> 31855481.27 | H27: =896000*75/100 -> 672000
B31: (นางข้อหนัน เจะดุหมัน) (นายเสน่ห์ อ่อนเกตุพล) | E31: (นายสมบูรณ์ ขลุกเอียด)
B32: ผู้อำนวยการกองคลัง ปลัดองค์การบริหารส่วนตำบล | E32: นายกองค์การบริหารส่วนตำบลหัวไทร

Sheet Sheet2
O1: เลขที่ | P1: 1/11/56
O2: วันที่ | P2: 31 ส.ค 2556
A3: ใบผ่านรายการบัญชีมาตรฐาน
A4: ฝ่าย | B4: องค์การบริหารส่วนตำบลหัวไทร
A6: รายการ | K6: รหัสบัญชี | M6: เดบิท | P6: เครดิต
A7: เดบิท | B7: เงินสด | K7: 10
B8: เงินฝากธนาคารกรุงไทย (กระแสรายวัน) 802-6-01908-3 | K8: 21 | M8: 1267773.49
B9: เงินฝากธนาคาร ธ.ก.ส. (ออมทรัพย์) 715-2-41562-7 | K9: 22 | M9: 83452
B10: เงินฝากธนาคาร ธ.ก.ส. (ออมทรัพย์) 715-2-46719-5 | K10: 22 | M10: 55095
B11: เงินฝากธนาคาร ออมสิน(ออมทรัพย์) 05331067844-5 | K11: 22
B13: เครดิต | C13: เงินรายรับ | K13: 861 | P13: 1291190.1
C14: ค่าใช้จ่ายในการจัดเก็บภาษีบำรุงท้องที่ 5% | K14: 906 | P14: 7.45
C15: ค่าส่วนลดในการจัดเก็บภาษีบำรุงท้องที่ 6% | K15: 902 | P15: 8.94
C16: ลูกหนี้-ภาษีบำรุงท้องที่ | K16: 82
C17: ลูกหนี้-เงินยืมเงินงบประมาณ | K17: 82 | P17: 12900
C18: เงินมัดจำประกันสัญญา | K18: 903 | P18: 47119
C19: เงินทุนโครงการเศรษฐกิจชุมชน | P19: 55095
M23: =SUM(M7:O22) -> 1406320.49 | P23: =SUM(P7:R22) -> 1406320.49
A25: คำอธิบาย เพื่อบันทึกรายการจากสมุดเงินสดรับ ไปเข้าบัญชีแยกประเภทที่เกี่ยวข้องประจำเดือน | O25: สิงหาคม | Q25: 2556
A29: ผู้จัดทำ | F29: ผู้อนุมัติ | M29: ผู้บันทึกบัญชี
A31: ..................................... | F31: ........................................ | M31: .....................................
O34: เลขที่ | P34: 2/11/56
O35: วันที่ | P35: 31 ส.ค 2556
A36: ใบผ่านรายการบัญชีมาตรฐาน
A37: ฝ่าย | B37: องค์การบริหารส่วนตำบลหัวไทร
A39: รายการ | K39: รหัสบัญชี | M39: เดบิท | P39: เครดิต
A40: เดบิท | B40: งบกลาง | K40: 000 | M40: 52144
B41: งบกลาง | K41: 000 | M41: 927040
B42: เงินเดือน(ฝ่ายการเมือง) | K42: 100 | M42: 243060
B43: เงินเดือน(ฝ่ายประจำ) | M43: 237401
B44: ค่าจ้างประจำ | K44: 120 | M44: 11570
B45: ค่าจ้างประจำ | K45: 7120 | M45: 24570
B46: ค่าจ้างชั่วคราว | K46: 130 | M46: 44249
B47: ค่าจ้างชั่วคราว | K47: 7130 | M47: 18000
B48: ค่าตอบแทน | M48: 19500
B49: ค่าใช้สอย | K49: 250 | M49: 260044
B50: ค่าวัสดุ | K50: 5250 | M50: 147266
B51: ค่าสาธารณูปโภค | K51: 300 | M51: 6724.73
B52: ค่าสาธารณูปโภค | K52: 7300 | M52: 16710.78
B53: เงินอุดหนุน | K53: 400 | M53: 10000
B54: ค่าครุภัณฑ์ | K54: 450 | M54: 70740
B55: ค่าที่ดินและสิ่งก่อสร้าง | K55: 500 | M55: 356000
B56: ลูกหนี้-เงินยืมเงินงบประมาณ | K56: 90 | M56: 61450
B57: เงินภาษีหัก ณ ที่จ่าย | K57: 902 | M57: 8599.75
B58: ค่าใช้จ่าย 5% | M58: 221.73
B59: ค่าส่วนลด 6% | M59: 266.06
B60: เครดิต | C60: เงินฝากธนาคาร ธ.ก.ส 715-5- 00040-9 | K60: 21 | P60: 2508216.52
C61: เงินภาษีหัก ณ ที่จ่าย | K61: 902 | P61: 7340.53
M62: =SUM(M40:M59) -> 2515557.05 | P62: =SUM(P60:P61) -> 2515557.05 | T62: =2516050.05-2515557.05 -> 493
A64: คำอธิบาย เพื่อบันทึกรายการจากสมุดเงินสดจ่าย ไปเข้าบัญชีแยกประเภทที่เกี่ยวข้องประจำเดือน | O64: สิงหาคม | Q64: 2556
A66: ผู้จัดทำ | F66: ผู้อนุมัติ | M66: ผู้บันทึกบัญชี
A67: ..................................... | F67: ........................................ | M67: .....................................
O69: เลขที่ | P69: 3/11/56
O70: วันที่ | P70: 31 ส.ค 2556
A71: ใบผ่านรายการบัญชีมาตรฐาน
A72: ฝ่าย | B72: องค์การบริหารส่วนตำบลหัวไทร
A74: รายการ | K74: รหัสบัญชี | M74: เดบิท | P74: เครดิต
A75: เดบิท | B75: เงินรายรับ | K75: 821 | M75: =1683486.11+5832 -> 1689318.11
B76: เครดิต | C76: ภาษีโรงเรือนและที่ดิน | K76: 0101 | P76: 5874
C77: ภาษีบำรุงท้องที่ | K77: 0102 | P77: 747.6
C78: ภาษีป้าย | K78: 0102 | P78: 440
C79: ค่าธรรมเนียมเก็บและขนขยะมูลฝอย | K79: 0126 | P79: 13640
C80: ค่าสาธารณูปโภคอื่น ๆ (จำหน่ายน้ำประปา) | K80: 0302 | P80: 14638
C81: ค่าธรรมเนียมจดทะเบียนพาณิชย์ | P81: 200
C82: ค่าขายแบบแปลน | K82: 307 | P82: 43000
C83: ค่ใบอนุญาตจัดตั้งสถานที่จำหน่ายหรือสะสมอาหารฯ | K83: 307 | P83: 2000
C84: ค่าธรรมเนียมจดทะเบียนสิทธิและนิติกรรมเกี่ยวกับที่ดิน | K84: 1005 | P84: 198661
C85: รายได้เบ็ดเตล็ด | P85: 250
C86: ค่าปรับการผิดสัญญา | P86: 5832
C87: ดอกเบี้ยเงินฝากธนาคาร | P87: 53500.11
C88: ภาษีมูลค่าเพิ่มตามพรบ.กำหนดแผนฯ | P88: 623215.75
C89: ภาษีมูลค่าเพิ่ม 1 ใน 9 | P89: 263661.22
C90: ภาษีสุรา | K90: 1005 | P90: 93796.39
C91: ภาษีสรรพสามิต | P91: 211371.27
C92: ค่าภาคหลวงปิโตรเลี่ยม | P92: 34470.77
C93: ค่าภาษีจัดสรรอื่น ๆ | P93: 510
C94: เงินอุดหนุนทั่วไประบุวัตถุประสงค์ฯ
C95: เงินเดือนครูผู้ดูแลเด็ก | P95: 26310
C96: เงินเพิ่มการครองชีพ/ครูผู้ดูแลเด็ก | P96: 3690
C97: ค่าจ้างชั่วคราว/ผดด. | P97: 28060
C98: เงินเพิ่มการครองชีพ/ผู้ดูแลเด็ก | P98: 7940
C99: ค่าจ้างประจำ-ลูกจ้างสถานีสูบน้ำ | P99: 23720
C100: เงินเพิ่มการครองชีพ | P100: 850
C101: เงินประกันสังคม | P101: 1440
C102: เงินอุดหนุน-โครงการป้องกันและแก้ไขปัญหายาเสพติด | P102: 31500
M103: =SUM(M75:O89) -> 1689318.11 | P103: =SUM(P76:R102) -> 1689318.11
A104: คำอธิบาย เพื่อบันทึกรายการจากทะเบียนรายรับ ไปยังบัญชีแยกประเภทที่เกี่ยวข้องประจำเดือน | O104: สิงหาคม | Q104: 2556
A106: ผู้จัดทำ | F106: ผู้อนุมัติ | M106: ผู้บันทึกบัญชี
A108: ..................................... | F108: ........................................ | M108: .....................................

Sheet ใบผ่านทั่วไป
O1: เลขที่ | P1: 45/2556
O2: วันที่ | P2: 30 ก.ย 2556
A3: ใบผ่านรายการบัญชีทั่วไป
A4: ฝ่าย | B4: องค์การบริหารส่วนตำบลหัวไทร
A6: รายการ | K6: รหัสบัญชี | M6: เดบิท | P6: เครดิต
A8: เดบิต | B8: ค่าที่ดินและสิ่งก่อสร้าง | K8: 500 | M8: 1930370
B9: ค่าตอบแทน | K9: 200 | M9: 896000
B11: เครดิต | C11: รายจ่ายค้างจ่าย | P11: 1930370
C12: รายจ่ายรอจ่าย | P12: 896000
M27: =SUM(M7:O26) -> 2826370 | P27: =SUM(P7:R26) -> 2826370
A29: คำอธิบาย | C29: เพื่อบันทึกรายการปรับปรุงบัญชีเงินรายจ่ายค้างจ่าย และรายจ่ายรอจ่าย
A31: ผู้จัดทำ | F31: ผู้อนุมัติ | M31: ผู้บันทึกบัญชี
A33: ..................................... | F33: ........................................ | M33: .....................................
O35: เลขที่ | P35: 46/2556
O36: วันที่ | P36: 30 ก.ย 2556
A37: ใบผ่านรายการบัญชีทั่วไป
A38: ฝ่าย | B38: องค์การบริหารส่วนตำบลหัวไทร
A40: รายการ | K40: รหัสบัญชี | M40: เดบิท | P40: เครดิต
A42: เดบิต | B42: ลูกหนี้-ภาษีบำรุงท้องที่ | M42: 10573.2
B45: เครดิต | C45: เงินรายรับ | P45: 10573.2
M60: =SUM(M41:O59) -> 10573.2 | P60: =SUM(P41:R59) -> 10573.2
A62: คำอธิบาย | C62: เพื่อบันทึกรายการสำรวจลูกหนี้-ภาษีบำรุงท้องที่ประจำปี งบประมาณ 2556
A64: ผู้จัดทำ | F64: ผู้อนุมัติ | M64: ผู้บันทึกบัญชี
A66: ..................................... | F66: ........................................ | M66: .....................................
O69: เลขที่ | P69: 47/2556
O70: วันที่ | P70: 30 ก.ย 2556
A71: ใบผ่านรายการบัญชีทั่วไป
A72: ฝ่าย | B72: องค์การบริหารส่วนตำบลหัวไทร
A74: รายการ | K74: รหัสบัญชี | M74: เดบิท | P74: เครดิต
A76: เดบิต | B76: เงินฝากจังหวัด | M76: 30000
B77: เงินเดือน (ฝ่ายประจำ) | M77: 30000
B80: เครดิต | C80: บัญชีเงินรายรับ | P80: 30000
C81: รายจ่ายค้างจ่าย | P81: 30000
M94: =SUM(M75:O93) -> 60000 | P94: =SUM(P75:R93) -> 60000
A96: คำอธิบาย | C96: เพื่อบันทึกรายการปรับปรุงรายการค้างจ่ายเงินอุดหนุนระบุวัตถุประสงค์ที่ยังได้ดำเนินการในปีนี้ไป
A97: ดำเนินการในปีต่อไปเงินเดือนครูประจำเดือนกันยายน (ศูนย์พัฒนาเด็กเล็กวัดทะเลปัง/หัวลำภู)เป็นเงิน30,000 บาท
A98: ผู้จัดทำ | F98: ผู้อนุมัติ | M98: ผู้บันทึกบัญชี
A100: ..................................... | F100: ........................................ | M100: .....................................
O103: เลขที่ | P103: 48/2556
O104: วันที่ | P104: 30 ก.ย 2556
A105: ใบผ่านรายการบัญชีทั่วไป
A106: ฝ่าย | B106: องค์การบริหารส่วนตำบลหัวไทร
A108: รายการ | K108: รหัสบัญชี | M108: เดบิท | P108: เครดิต
A110: เดบิต | B110: เงินรายรับ | M110: 40573.2
B113: เครดิต | C113: ภาษีบำรุงท้องที่ | P113: 10573.2
C114: เงินอุดหนุนเฉพาะกิจ/เงินอุดหนุนระบุวัตถุประสงค์ | P114: 30000
M127: =SUM(M109:O126) -> 40573.2 | P127: =SUM(P109:R126) -> 40573.2
A129: คำอธิบาย | C129: เพื่อบันทึกรายการปรับปรุงบัญชีณ. วันสิ้นปีงบประมาณ 2556
A131: ผู้จัดทำ | F131: ผู้อนุมัติ | M131: ผู้บันทึกบัญชี
A133: ..................................... | F133: ........................................ | M133: .....................................
O136: เลขที่ | P136: 49/2556
O137: วันที่ | P137: 30 ก.ย 2556
A138: ใบผ่านรายการบัญชีทั่วไป
A139: ฝ่าย | B139: องค์การบริหารส่วนตำบลหัวไทร
A141: รายการ | K141: รหัสบัญชี | M141: เดบิท | P141: เครดิต
A143: เดบิต | B143: ภาษีบำรุงท้องที่ | M143: =32367.52+10573.2 -> 42940.72
B144: ภาษีโรงเรือนและที่ดิน | M144: 491844
B145: ภาษีป้าย | M145: 107788
B146: ค่าธรรมเนียมเก็บและขนขยะมูลฝอย | M146: 103160
B147: ค่าธรรมเนียมจดทะเบียนพาณิชย์ | M147: 2110
B148: ค่าปรับการผิดสัญญา | M148: 90984
B149: ค่าปรับผู้กระทำผิดตามกฎจราจรทางบก | M149: 2900
B150: ค่าใบอนุญาตจัดตั้งสถานที่จำหน่ายอาหารหรือสถานที่สะสมฯ | M150: 2000
B151: ค่าใบอนุญาตประกอบการค้าสำหรับกิจการที่เป็นอันตรายต่อสุขภาพ | M151: 240
B152: ค่าใบอนุญาตให้ตั้งตลาดเอกชน | M152: 3600
B153: ค่าใบอนุญาตอื่น ๆ | M153: 20
B154: ดอกเบี้ยเงินฝากธนาคาร | M154: 254953.12
B155: รายได้จากสาธารณูปโภคอื่น ๆ(การจำหน่ายน้ำ) | M155: 147144
M161: =SUM(M142:O160) -> 1249683.84 | P161: =SUM(P142:R160) -> 0
A163: คำอธิบาย | C163: เพื่อบันทึกรายการปิดบัญชี
A165: ผู้จัดทำ | F165: ผู้อนุมัติ | M165: ผู้บันทึกบัญชี
A167: ..................................... | F167: ........................................ | M167: .....................................
O170: เลขที่ | P170: 49/2556
O171: วันที่ | P171: 30 ก.ย 2556
A172: ใบผ่านรายการบัญชีทั่วไป
A173: ฝ่าย | B173: องค์การบริหารส่วนตำบลหัวไทร
A175: รายการ | K175: รหัสบัญชี | M175: เดบิท | P175: เครดิต
M176: =M161 -> 1249683.84
A177: เดบิต | B177: ค่าขายแบบแปลน | M177: 126000
B178: รายได้เบ็ดเตล็ดอื่น ๆ | M178: 3590
B179: พรบ.กำหนดแผนฯจากภาษีมูลค่าเพิ่ม | M179: 8030329.41
B180: ภาษีมูลค่าเพิ่ม 1 ใน 9 | M180: 3195719.63
B181: ภาษีสุรา | M181: 1398597.12
B182: ภาษีสรรพสามิต | M182: 3057694.46
B183: ภาษีธุรกิจเฉพาะ | M183: 134221.45
B184: ค่าภาคหลวงแร่ | M184: 98859.24
B185: ค่าภาคหลวงปิโตรเลี่ยม | M185: 125669.8
B186: ค่าธรรมเนียมจดทะเบียนนิติกรรมเกี่ยวกับที่ดิน | M186: 2438872
B187: ภาษีจัดสรรอื่น ๆ | M187: 2776
B188: เงินอุดหหนุนทั่วไปสำหรับการดำเนินการตามอำนาจหน้าที่และ | M188: 8316666.23
B189: ภารกิจถ่ายโอนเลือกทำ
B190: เงินอุดหหนุนระบุวัตถุประสงค์/เงินอุดหนุนเฉพาะกิจ | M190: =18720+12359012.78+28500+30000 -> 12436232.78
M195: =SUM(M176:O194) -> 40614911.96
A197: คำอธิบาย | C197: เพื่อบันทึกรายการปิดบัญชี
A199: ผู้จัดทำ | F199: ผู้อนุมัติ | M199: ผู้บันทึกบัญชี
A201: ..................................... | F201: ........................................ | M201: .....................................
O203: เลขที่ | P203: 49/2556
O204: วันที่ | P204: 30 ก.ย 2556
A205: ใบผ่านรายการบัญชีทั่วไป
A206: ฝ่าย | B206: องค์การบริหารส่วนตำบลหัวไทร
A208: รายการ | K208: รหัสบัญชี | M208: เดบิท | P208: เครดิต
B210: เครดิต | C210: งบกลาง | P210: =12312194 -> 12312194
C211: เงินเดือน (ฝ่ายการเมือง) | P211: 2713636
C212: เงินเดือน (ฝ่ายประจำ) | P212: =3235894+30000 -> 3265894 | S212: =12312194+180 -> 12312374
C213: ค่าจ้างประจำ | P213: 285300 | S213: 2713636
C214: ค่าจ้างชั่วคราว | P214: 712533 | S214: =3235894+30000 -> 3265894
C215: ค่าตอบแทน | P215: 1287739 | S215: 285300
C216: ค่าใช้สอย | P216: 4189193.41 | S216: 712533
C217: ค่าวัสดุ | P217: 1807915.2 | S217: =391739+896000 -> 1287739
C218: ค่าสาธารณูปโภค | P218: 343449.81 | S218: 4189193.41
C219: เงินอุดหนุน | P219: 1200480 | S219: 1807915.2
C220: ค่าครุภัณฑ์ | P220: 310090 | S220: 343449.81
C221: ค่าที่ดินและสิ่งก่อสร้าง | P221: =2633800+1930370 -> 4564170 | S221: 1200480
C222: รายจ่ายอื่น | P222: 50000 | S222: 310090
C223: เงินทุนสำรองเงินสะสม | P223: =1893034.38+45 -> 1893079.38 | S223: =2633800+1930370 -> 4564170
C224: เงินสะสม | P224: =5679103.16+135 -> 5679238.16 | S224: 50000
S226: =SUM(S212:S224) -> 33042774.42 | U226: =SUM(S226:T226) -> 33042774.42
M228: =M195 -> 40614911.96 | P228: =SUM(P209:R227) -> 40614911.96
A230: คำอธิบาย | B230: เพื่อบันทึกรายการปิดบัญชีรายรับสูง(ต่ำ)กว่ารายจ่ายเข้าบัญชีเงินสะสม โดยรายรับรวมเป็นเงิน 40,614,911.96 บาท | U230: =40614911.96-33042594.42 -> 7572317.54
B231: รายจ่ายเป็นเงิน 33,042,594.42 บาท เงินสะสมเป็นเงิน 5,679,238.16 บาท เงินทุนสำรองเงินสะสม 1,893,079.38บาท
A233: ผู้จัดทำ | F233: ผู้อนุมัติ | M233: ผู้บันทึกบัญชี
A235: ..................................... | F235: ........................................ | M235: .....................................
O240: เลขที่ | P240: 78/2555
O241: วันที่ | P241: 30 ก.ย 2555
A242: ใบผ่านรายการบัญชีทั่วไป
A243: ฝ่าย | B243: องค์การบริหารส่วนตำบลหัวไทร
A245: รายการ | K245: รหัสบัญชี | M245: เดบิท | P245: เครดิต
A247: เดบิท | B247: เงินสะสม | K247: 700
B249: เครดิต | C249: รายจ่ายค้างจ่าย
M261: =SUM(M246:O260) -> 0 | P261: =SUM(P246:R260) -> 0
A263: คำอธิบาย | C263: บันทึกรายกันเงินสะสมตามที่ได้ก่อหนี้ผูกพัน ตามสัญญาเลขที่ 25/2555 ลงวันที่ 24 กรกฎาคม 2555
A265: ผู้จัดทำ | F265: ผู้อนุมัติ | M265: ผู้บันทึกบัญชี
A267: ..................................... | F267: ........................................ | M267: .....................................
O272: เลขที่ | P272: 77/2555
O273: วันที่ | P273: 30 ก.ย 2555
A274: ใบผ่านรายการบัญชีทั่วไป
A275: ฝ่าย | B275: องค์การบริหารส่วนตำบลหัวไทร
A277: รายการ | K277: รหัสบัญชี | M277: เดบิท | P277: เครดิต
A279: เดบิต | B279: ภาษีบำรุงท้องที่ | M279: =39355.83+7226.8 -> 46582.63
B280: ภาษีโรงเรือนและที่ดิน | M280: 401497
B281: ภาษีป้าย | M281: 74935
B282: ค่าธรรมเนียมเก็บและขนขยะมูลฝอย | M282: 93100
B283: ค่าปรับการผิดสัญญา | M283: 11668
B284: ค่าปรับผู้กระทำผิดตามกฎจราจรทางบก | M284: 32700
B285: ค่าใบอนุญาตจัดตั้งสถานที่จำหน่ายอาหารหรือสถานที่สะสมฯ | M285: 0
B286: ค่าใบอนุญาตประกอบการค้าสำหรับกิจการที่เป็นอันตรายต่อสุขภาพ | M286: 440
B287: ค่าใบอนุญาตให้ตั้งตลาดเอกชน | M287: 1500
B288: ค่าธรรมเนียมจดทะเบียนพาณิชย์ | M288: 2300
B289: ค่าธรรมเนียมอื่น ๆ | M289: 20
B290: ดอกเบี้ยเงินฝากธนาคาร | M290: 186939.11
B291: รายได้จากการจำหน่ายน้ำ | M291: 42906
M297: =SUM(M278:O296) -> 894587.74 | P297: =SUM(P278:R296) -> 0
A299: คำอธิบาย | C299: เพื่อบันทึกรายการปิดบัญชี
A301: ผู้จัดทำ | F301: ผู้อนุมัติ | M301: ผู้บันทึกบัญชี
A303: ..................................... | F303: ........................................ | M303: .....................................
O306: เลขที่ | P306: 77/2555
O307: วันที่ | P307: 30 ก.ย 2555
A308: ใบผ่านรายการบัญชีทั่วไป
A309: ฝ่าย | B309: องค์การบริหารส่วนตำบลหัวไทร
A311: รายการ | K311: รหัสบัญชี | M311: เดบิท | P311: เครดิต
M312: =M297 -> 894587.74
A313: เดบิต | B313: ค่าขายแบบแปลน | M313: 300000
B314: รายได้เบ็ดเตล็ดอื่น ๆ | M314: 25381.24
B315: พรบ.กำหนดแผนฯจากภาษีมูลค่าเพิ่ม | M315: 5986706.3
B316: ภาษีมูลค่าเพิ่ม 1 ใน 9 | M316: 2821465.78
B317: ภาษีสุรา | M317: 1361890.53
B318: ภาษีสรรพสามิต | M318: 2447390.87
B319: ภาษีธุรกิจเฉพาะ | M319: 119553.91
B320: ค่าภาคหลวงแร่ | M320: 83991.12
B321: ค่าภาคหลวงปิโตรเลี่ยม | M321: 128620.42
B322: ค่าธรรมเนียมจดทะเบียนนิติกรรมเกี่ยวกับที่ดิน | M322: 2567277
B323: เงินอุดหหนุนทั่วไปสำหรับการดำเนินการตามอำนาจหน้าที่และ | M323: 8868537
B324: ภารกิจถ่ายโอนเลือกทำ
B325: ภาษีจัดสรรอื่น ๆ | M325: 116244.85
B326: เงินอุดหหนุนระบุวัตถุประสงค์/เงินอุดหนุนเฉพาะกิจ | M326: 12367516.99
M332: =SUM(M312:O331) -> 38089163.75
A334: คำอธิบาย | C334: เพื่อบันทึกรายการปิดบัญชี
A336: ผู้จัดทำ | F336: ผู้อนุมัติ | M336: ผู้บันทึกบัญชี
A338: ..................................... | F338: ........................................ | M338: .....................................
O340: เลขที่ | P340: 77/2555
O341: วันที่ | P341: 30 ก.ย 2555
A342: ใบผ่านรายการบัญชีทั่วไป
A343: ฝ่าย | B343: องค์การบริหารส่วนตำบลหัวไทร
A345: รายการ | K345: รหัสบัญชี | M345: เดบิท | P345: เครดิต
B347: เครดิต | C347: งบกลาง | P347: =13280152+51463 -> 13331615
C348: เงินเดือน (ฝ่ายการเมือง) | P348: 2722272
C349: เงินเดือน (ฝ่ายประจำ) | P349: 2613124
C350: ค่าจ้างประจำ | P350: 281580
C351: ค่าจ้างชั่วคราว | P351: 855831.99
C352: ค่าตอบแทน | P352: =285962+809900 -> 1095862
C353: ค่าใช้สอย | P353: =3509071.14+57000 -> 3566071.14
C354: ค่าวัสดุ | P354: =1791113.8+7800 -> 1798913.8
C355: ค่าสาธารณูปโภค | P355: 267523.05
C356: เงินอุดหนุน | P356: 1225160
C357: ค่าครุภัณฑ์ | P357: 71629
C358: ค่าที่ดินและสิ่งก่อสร้าง | P358: =643550+4073300 -> 4716850
C359: รายจ่ายอื่น | P359: 25000
C360: รายจ่ายค้างจ่าย
C361: เงินทุนสำรองเงินสะสม | P361: 1379432.94
C362: เงินสะสม | P362: 4138298.83
... 16 more rows

Sheet รายละเอียดรายรับ
A1: องค์การบริหารส่วนตำบลหัวไทร อำเภอหัวไทร จังหวัดนครศรีธรรมราช
A2: งบบัญชีรายละเอียดรายรับ-รายจ่ายจริง
A3: ตั้งแต่วันที่ 1 ตุลาคม 2555 ถึงวันที่ 30 กันยายน 2556
D4: ประมาณการ | E4: รายรับจริง | F4: + | G4: สูง | H4: หมายเหตุ
F5: - | G5: ต่ำ
A6: รายได้ภาษีอากร
B7: ภาษีจัดเก็บเอง
A8: 1. | B8: หมวดภาษีอากร
B9: 1) | C9: ภาษีโรงเรือนและที่ดิน | D9: 370000 | E9: =491844+10573.2 -> 502417.2 | F9: + | G9: =E9-D9 -> 132417.2
B10: 2) | C10: ภาษีบำรุงท้องที่ | D10: 40000 | E10: 32367.52 | F10: - | G10: 7632.48
B11: 3) | C11: ภาษีป้าย | D11: 70000 | E11: 107788 | F11: + | G11: =E11-D11 -> 37788
A12: รวม | D12: =SUM(D9:D11) -> 480000 | E12: =SUM(E9:E11) -> 642572.72 | F12: + | G12: =E12-D12 -> 162572.72
B13: ภาษีที่รัฐจัดสรรให้
B14: 1) | C14: ภาษีมูลค่าเพิ่ม พรบ.ตามแผน | D14: 5800000 | E14: 8030329.41 | F14: + | G14: =E14-D14 -> 2230329.41
B15: 2) | C15: ภาษีมูลค่าเพิ่ม 1 ใน 9 | D15: 2600000 | E15: 3195719.63 | F15: + | G15: =E15-D15 -> 595719.63
B16: 3) | C16: ภาษีสุรา | D16: 1400000 | E16: 1398597.12 | F16: - | G16: 1402.88
B17: 4) | C17: ภาษีสรรพสามิต | D17: 2000000 | E17: 3057694.46 | F17: + | G17: 1057694.46
B18: 5) | C18: ภาษีธุรกิจเฉพาะ | D18: 40000 | E18: 134221.45 | F18: + | G18: 94221.45
B19: 6) | C19: ค่าภาคหลวงแร่ | D19: 100000 | E19: 98859.24 | F19: - | G19: =D19-E19 -> 1140.76
B20: 7) | C20: ค่าภาคหลวงปิโตรเลียม | D20: 80000 | E20: 125669.8 | F20: + | G20: 45669.8
B21: 8) | C21: ค่าธรรมเนียมจดทะเบียนสิทธิและนิติกรรมที่ดิน | D21: 2600000 | E21: 2438872 | F21: - | G21: 161128
B22: 9) | C22: ภาษีจัดสรรอื่น ๆ | D22: 1000 | E22: 2776 | F22: + | G22: 1776
A24: รวม | D24: =SUM(D14:D23) -> 14621000 | E24: =SUM(E14:E23) -> 18482739.11 | F24: + | G24: 3861739.11
A25: รายได้ที่มิใช่ภาษีอากร | G25: =D25-E25 -> 0
A26: 2. | B26: หมวดค่าธรรมเนียม ค่าปรับและใบอนุญาต | G26: =D26-E26 -> 0
B27: 1) | C27: ค่าธรรมเนียมเกี่ยวกับการควบคุมอาคาร | D27: 500 | E27: 0 | F27: . | G27: 1000
B28: 2) | C28: ค่าธรรมเนียมเกี่ยวกับใบอนุญาตการพนัน | D28: 0 | E28: 0 | F28: - | G28: =E28-D28 -> 0
B29: 3) | C29: ค่าธรรมเนียมเก็บและขนขยะมูลฝอย | D29: 90000 | E29: 103160 | F29: + | G29: =E29-D29 -> 13160
B30: 4) | C30: ค่าปรับผู้กระทำผิดกฎจราจร | D30: 15000 | E30: 2900 | F30: - | G30: 12100
B31: 5) ค่าใบอนุญาตเกี่ยวกับการควบคุมอาคาร | C31: ค่าปรับการผิดสัญญา | D31: 15000 | E31: 90984 | F31: + | G31: =E31-D31 -> 75984
A32: ยอดยกไป | D32: =SUM(D27:D31) -> 120500 | E32: =SUM(E27:E31) -> 197044 | F32: + | G32: =E32-D32 -> 76544
A34: (นางข้อหนัน เจะดุหมัน) (นายเสน่ห์ อ่อนเกตุพล) | E34: (นายสมบูรณ์ ขลุกเอียด)
A35: ผู้อำนวยการกองคลัง ปลัดองค์การบริหารส่วนตำบล | E35: นายกองค์การบริหารส่วนตำบลหัวไทร
A37: -2-
D38: ประมาณการ | E38: รายรับจริง | F38: - | G38: ต่ำ | H38: หมายเหตุ
F39: + | G39: สูง
C40: ยอดยกมา | D40: =D32 -> 120500 | E40: =E32 -> 197044 | F40: + | G40: =E40-D40 -> 76544
B41: 6) | C41: ค่าธรรมเนียมอื่น ๆ | D41: 500 | E41: 0 | F41: 0 | G41: 500
B42: 7) | C42: ค่าธรรมเนียมจดทะเบียนพาณิชย์ | D42: 2000 | E42: 2110 | F42: + | G42: 110
B43: 8) | C43: ค่าใบอนุญาตจัดตั้งสถานที่จำหน่ายอาหารหรือ | D43: 1500 | E43: 2000 | F43: + | G43: 500
C44: สถานที่สะสมอาหารฯ
B45: 9) | C45: ค่าใบอนุญาตให้ตั้งตลาดเอกชน | D45: 4500 | E45: 3600 | F45: - | G45: =D45-E45 -> 900
B46: 10) | C46: ค่าใบอนุญาตเกี่ยวกับการควบคุมอาคาร | D46: 1000 | E46: 0 | F46: - | G46: =D46-E46 -> 1000
B47: 11) | C47: ค่าใบอนุญาตประกอบการค้าสำหรับกิจการ | D47: 1000 | E47: 240 | F47: - | G47: 760
C48: ที่เป็นอันตรายต่อสุขภาพ
B49: 12) | C49: ค่าใบอนุญาตอื่น ๆ | D49: 500 | E49: 20 | F49: - | G49: =D49-E49 -> 480
A51: รวม | D51: =SUM(D40:D50) -> 131500 | E51: =SUM(E37:E50) -> 205014 | F51: + | G51: =E51-D51 -> 73514
A52: 3. | B52: รายได้จากทรัพย์สิน | G52: =D52-E52 -> 0
B53: 1) | C53: ดอกเบี้ยเงินฝากธนาคาร | D53: 150000 | E53: 254953.12 | F53: + | G53: =E53-D53 -> 104953.12
A54: รวม | D54: =SUM(D53) -> 150000 | E54: =SUM(E53) -> 254953.12 | F54: + | G54: =E54-D54 -> 104953.12
B55: หมวดรายได้จากทรัพย์สิน
B56: 1) | C56: รายได้จากการจำหน่ายน้ำ | D56: 5000 | E56: 147144 | F56: + | G56: 142144
A57: รวม | D57: =SUM(D56) -> 5000 | E57: =SUM(E56) -> 147144 | F57: + | G57: =E57-D57 -> 142144
A58: 4 | B58: หมวดรายได้เบ็ดเตล็ด
B59: 1) | C59: ค่าขายแบบแปลน | D59: 10000 | E59: 126000 | F59: + | G59: =E59-D59 -> 116000
B60: 2) | C60: ค่ารับรองสำเนาและถ่ายเอกสาร | D60: 1000 | F60: - | G60: 1000
B61: 3) | C61: รายได้เบ็ดเตล็ดอื่น ๆ | D61: 1500 | E61: 3590 | F61: + | G61: =E61-D61 -> 2090
C62: รวม | D62: =SUM(D59:D61) -> 12500 | E62: =SUM(E59:E61) -> 129590 | F62: + | G62: =E62-D62 -> 117090
B63: หมวดเงินอุดหนุน
B64: 1) | C64: เงินอุดหนุนทั่วไป (อบต.) | D64: 8600000 | E64: 8316666.23 | F64: - | G64: 283333.77
C65: รวม | D65: =SUM(D64) -> 8600000 | E65: =SUM(E64) -> 8316666.23 | F65: - | G65: 283333.77
A66: 5 | B66: หมวดเงินอุดหนุน
B67: 1) | C67: เงินอุดหนุนทั่วไปที่ระบุวัตถุประสงค์/เฉพาะกิจ | E67: 12436232.78
A68: รวม | E68: =SUM(E67:E67) -> 12436232.78
A69: รวมรายรับตามงบประมาณ | D69: =D12+D24+D51+D54+D57+D62+D65 -> 24000000 | E69: =E12+E24+E51+E54+E57+E62+E65 -> 28178679.18
A70: รวเงินรายรับทั้งสิ้น | E70: =SUM(E68:E69) -> 40614911.96
A73: (นางข้อหนัน เจะดุหมัน) (นายเสน่ห์ อ่อนเกตุพล) | E73: (นายสมบูรณ์ ขลุกเอียด)
A74: ผู้อำนวยการกองคลัง ปลัดองค์การบริหารส่วนตำบล | E74: นายกองค์การบริหารส่วนตำบลหัวไทร
I79: =1639154.48-1639153.94 -> 0.54
E150: นายกองค์การบริหารส่วนตำบลหัวไทร
A156: -5-
A157: เงินอุดหนุนเฉพาะกิจ(บันทึกจ่ายเงินอุดหนุนเฉพาะกิจ)
A158: 1) | B158: ค่าขยายระบบไฟฟ้าระบบประปา ม.6 บ้านโคกหลวง | E158: 220000
A159: 2) | B159: ค่าจ้างประจำ-สถานีสูบน้ำด้วยไฟฟ้า8 | E159: 203150
B160: เงินเพิ่ม-การครองชีพ-สถานีสูบน้ำด้วยไฟฟ้า | E160: 33000
B161: เงินสมทบ กสจ. 3% | E161: 3077.7
B162: เงินช่วยเหลือค่ารักษาพยาบาล | E162: 6947
B163: ค่ากระแสไฟฟ้าสถานีสูบน้ำ(ประชาชน) | E163: =97050.43 -> 97050.43
A164: 3) | B164: ค่าจ้างชั่วคราว/เงินค่าครองชีพ/ศูนย์เด็กเล็กวัดทะเลปัง | E164: 196800
B165: ประกันสังคม | E165: =9184-492 -> 8692
A166: 4) | B166: เงินพัฒนาสนับสนุนครอบครัวและเยาวชน | E166: =10000 -> 10000 | G166: -
A167: 5) | B167: ค่าครุภัณฑ์ศูนย์เด็ก หัวลำภู ทะเลปัง | E167: 50000
B168: ค่าวัสดุศูนย์เด็ก หัวลำภู ทะเลปัง | E168: 13200
B169: เงินทุนการศึกษาศูนย์เด็ก หัวลำภู ทะเลปัง | E169: 20000
E170: =SUM(E158:E169) -> 861917.13
C171: เงินสะสม | H171: จ่ายปี2553
A172: 1) | B172: ค่าซ่อมบ้านให้ราษฎร | D172: 25842 | E172: 25842
A173: 2) | B173: รถบรรทุกดีเซล ขนาด 6 ล้อ 6 ตัน | D173: 1600000 | G173: =D173-E173 -> 1600000 | H173: =D173-E173 -> 1600000
A174: 3) | B174: ห้องน้ำ ข้างอาคารพัสดุ | D174: 252400 | G174: =D174-E174 -> 252400 | H174: =D174-E174 -> 252400
A175: 4) | B175: สระน้ำ เก็บน้ำที่ทำการอบต. | D175: 195900 | E175: 157000 | G175: =D175-E175 -> 38900
A176: 5) | B176: ระบบประปา อบต. | D176: 442900 | G176: =D176-E176 -> 442900 | H176: =D176-E176 -> 442900
A177: 6) | B177: ค่าปรับปรุงถนนสายซอยแพรกเมือง 1 หมู่ที่ 2 | D177: 34900
A178: 7) | B178: ค่าปรับปรุงถนนสายซอยแพรกเมือง 2 หมู่ที่ 2 | D178: 21400
A179: 8) | B179: ค่าปรับปรุงถนนสายซอยประชารวมใจ 1 หมู่ที่ 2 | D179: 55100
A180: 9) | B180: ค่าปรับปรุงถนนสายซอยประชารวมใจ 2 หมู่ที่ 2 | D180: 61700
A181: 10) | B181: ค่าปรับปรุงถนนสายซอยทะเลปัง 1 หมู่ที่ 2 | D181: 83000
A182: 11) | B182: ค่าปรับปรุงถนนสายซอยทะเลปัง 2 หมู่ที่ 2 | D182: 41600
A183: 12) | B183: ค่าปรับปรุงถนนสายซอยทะเลปัง 4 หมู่ที่ 2 | D183: 26700
C184: รวม 7 สาย | D184: =SUM(D177:D183) -> 324400 | E184: 301900 | G184: =D184-E184 -> 22500
A185: 13) | B185: ขยายท่อเมนจ่ายน้ำประปา ม.6 | D185: 192500 | E185: 176000 | G185: =D185-E185 -> 16500
A186: 14) | B186: ค่าก่อสร้างประตูระบายน้ำโรงสูบน้ำและติดตั้งเครื่องม.3 | D186: 582300 | E186: 580000 | G186: 2300
A187: 15) | B187: ค่าขยายเขตระบบจ่ายไฟฟ้าแรงสูง 3 เฟส หมู่ที่ 3 | D187: 437043.65 | E187: =185822.62+237057.62 -> 422880.24 | G187: 14163.41
A188: 16) | B188: ค่าติดตั้งหม้อแปลง | D188: 95000 | E188: 95000 | G188: 0 | H188: =D188-E188 -> 0
A189: 17) | B189: ค่าที่ดิน | D189: 1250000 | G189: 1250000 | H189: =D189-E189 -> 1250000
G190: 0 | H190: =D190-E190 -> 0
A191: รวมจ่ายขาดเงินสะสม | D191: =D172+D173+D174+D175+D176+D177+D184+D185+D186+D187+D188+D189 -> 5433185.65 | E191: =SUM(E172:E190) -> 1758622.24 | G191: 3674563.41 | H191: =SUM(H172:H190) -> 3545300

Sheet งบรับจ่าย-ตามงบ
A1: องค์การบริหารส่วนตำบลหัวไทร อำเภอหัวไทร จังหวัดนครศรีธรรมราช
A2: งบรายรับ-รายจ่ายตามงบประมาณ
A3: ตั้งแต่วันที่ 1 ตุลาคม 2555 ถึงวันที่ 30 กันยายน 2556
D4: ประมาณการ | E4: รายรับจริง | F4: + | G4: สูง | H4: หมายเหตุ
F5: - | G5: ต่ำ
B6: รายรับตามประมาณการ
B7: รายรับ
C8: ภาษีอากร | D8: 480000 | E8: 642572.72 | F8: + | G8: =E8-D8 -> 162572.72
C9: ค่าธรรมเนียมค่าปรับและใบอนุญาต | D9: 131500 | E9: 205014 | F9: + | G9: =E9-D9 -> 73514
C10: รายได้จากทรัพย์สิน | D10: 150000 | E10: 254953.12 | F10: + | G10: =E10-D10 -> 104953.12
C11: รายได้จากสาธารณูปโภคและการพาณิชย์ | D11: 5000 | E11: 147144 | F11: - | G11: 142144
C12: รายได้เบ็ดเตล็ด | D12: 12500 | E12: 129590 | F12: + | G12: =E12-D12 -> 117090
C13: รายได้ที่รัฐบาลจัดสรรให้ | D13: 14621000 | E13: 18482739.11 | F13: + | G13: =E13-D13 -> 3861739.11
C14: เงินอุดหนุนทั่วไป | D14: 8600000 | E14: 8316666.23 | F14: - | G14: 283333.77
A15: รวมเงินตามประมาณการราย | D15: =SUM(D8:D14) -> 24000000 | E15: =SUM(E8:E14) -> 28178679.18 | F15: + | G15: =E15-D15 -> 4178679.18
C16: รายรับ(นอกงบประมาณ) | E16: 12436232.78
A17: รวมรายรับทั้งสิ้น | E17: =SUM(E15:E16) -> 40614911.96
D19: ประมาณการ | E19: รายจ่ายจริง | F19: + | G19: สูง | H19: รายจ่ายจากเงิน
F20: - | G20: ต่ำ | H20: อุดหนุนระบุวัตถุ
H21: ประสงค์/เฉพาะกิจ
B22: รายจ่ายตามประมาณการ
C23: งบกลาง | D23: 1141150 | E23: 1021954 | F23: - | G23: =D23-E23 -> 119196 | H23: 11290240
C24: เงินเดือน(ฝ่ายการเมือง) | D24: 2787500 | E24: 2713636 | F24: - | G24: =D24-E24 -> 73864
C25: เงินเดือน(ฝ่ายประจำ) | D25: 3110975 | E25: 2905894 | F25: - | G25: 205081 | H25: 360000
C26: ค่าจ้างประจำ | D26: 140000 | E26: 137880 | F26: - | G26: 2120 | H26: 147420
C27: ค่าจ้างชั่วคราว | D27: 688000 | E27: 496533 | F27: - | G27: 191467 | H27: 216000
C28: ค่าตอบแทน | D28: 1709000 | E28: 1284451 | F28: - | G28: 424549 | H28: 3288
C29: ค่าใช้สอย | D29: 5241745 | E29: 4052193.41 | F29: - | G29: 1189551.59 | H29: 137000
C30: ค่าวัสดุ | D30: 2397650 | E30: 1705560.2 | F30: - | G30: 692089.8 | H30: 102355
C31: ค่าสาธารณูปโภค | D31: 270000 | E31: 215700.03 | F31: - | G31: 54299.97 | H31: 127749.78
C32: เงินอุดหนุน | D32: 1250480 | E32: 1200480 | F32: - | G32: 50000 | J32: =700355+137000 -> 837355
C33: รายจ่ายอื่น | D33: 50000 | E33: 50000 | F33: - | G33: 0
C34: ค่าครุภัณฑ์ | D34: 413200 | E34: 258090 | F34: - | G34: 155110 | H34: 52000
C35: ค่าที่ดินและสิ่งก่อสร้าง | D35: 4800300 | E35: 4564170 | F35: - | G35: 236130
A36: รวมรายจ่ายตามประมาณการรายจ่ายทั้งสิ้น | D36: =SUM(D23:D35) -> 24000000 | E36: =SUM(E23:E35) -> 20606541.64 | F36: - | G36: =SUM(G23:G35) -> 3393458.36 | H36: =SUM(H23:H35) -> 12436052.78
C37: รายจ่าย(ระบุวัตถุประสงค์/เฉพาะกิจ) | E37: 12436052.78
A38: รวมรายจ่ายทั้งสิ้น | E38: =SUM(E36:E37) -> 33042594.42
C39: สูงกว่า | E39: =E17-E38 -> 7572317.54
C40: รายรับ รายจ่าย
C41: ต่ำกว่า
B43: (นางข้อหนัน เจะดุหมัน) | D43: (นายเสน่ห์ อ่อนเกตุพล) | F43: (นายสมบูรณ์ ขลุกเอียด)
B44: ผู้อำนวยการกองคลัง | D44: ปลัดองค์การบริหารส่วนตำบล | F44: นายกองค์การบริหารส่วนตำบลหัวไทร

Sheet งบแสดงฐานะการเงิน
A1: องค์การบริหารส่วนตำบลหัวไทร อำเภอหัวไทร จังหวัดนครศรีธรรมราช
A2: งบแสดงฐานะการเงิน
A3: เพียง ณ วันที่ 30 กันยายน 2556
B5: ทรัพย์สิน | D5: บาท
A6: ทรัพย์สินตามงบทรัพย์สิน | B6: (หมายเหตุ 1) | D6: 36904320.37
A7: เงินสด เงินฝากธนาคาร | B7: (หมายเหตุ 2) | D7: =876472.62+14359822.01+2068621.5+14438429.42 -> 31743345.55
A8: เงินฝากจังหวัด | B8: 30000
A9: เงินฝาก กสอ.
A10: ลูกหนี้- ภาษีโรงเรือน | B10: 12480
A11: ลูกหนี้-ภาษีบำรุงท้องที่ | B11: 69255.72
A12: ลูกหนี้-ภาษีป้าย | B12: 400
A13: เงินยืม-เงินงบประมาณ | D13: =+B8+B10+B11+B12+B13 -> 112135.72
B14: รวม | D14: =SUM(D7:D13) -> 31855481.27
B16: หนี้สินและเงินสะสม
A17: ทุนทรัพย์สิน | B17: (หมายเหตุ 1) | D17: 36904320.37
A18: เงินรับฝากต่าง ๆ | B18: (หมายเหตุ 4) | D18: 397604.13
A19: รายจ่ายค้างจ่าย | B19: (หมายเหตุ 5) | D19: 1960370
A20: เงินทุนโครงการเศรษฐกิจชุมชน | D20: 2068621.5
A21: รายจ่ายรอจ่าย | B21: (หมายเหตุ 6) | D21: 896000
A22: รายจ่ายผัดส่งใบสำคัญ | B22: (หมายเหตุ 6)
A23: เงินทุนสำรองเงินสะสม | D23: 11996906.39
A24: เงินสะสม | B24: (หมายเหตุ8) | D24: 14535979.25
B25: รวม | D25: =SUM(D18:D24) -> 31855481.27
A29: (นางข้อหนัน เจะดุหมัน) (นายเสน่ห์ อ่อนเกตุพล) | C29: (นายสมบูรณ์ ขลุกเอียด)
A30: ผู้อำนวยการกองคลัง ปลัดองค์การบริหารส่วนตำบล | C30: นายกองค์การบริหารส่วนตำบลหัวไทร
A35: องค์การบริหารส่วนตำบลหัวไทร อำเภอหัวไทร จังหวัดนครศรีธรรมราช
A36: งบแสดงฐานะการเงิน
A37: เพียง ณ วันที่ 30 กันยายน 2555
B39: ทรัพย์สิน | D39: บาท
A40: ทรัพย์สินตามงบทรัพย์สิน | B40: (หมายเหตุ 1) | D40: 32370220.37
A41: เงินสด เงินฝากธนาคาร | B41: (หมายเหตุ 2) | D41: =262379.26+8772604.19+1938010.9+14324159.8 -> 25297154.15
A42: เงินฝากสำนักงานกลางส่งเสริมอาชีพ
A43: เงินฝาก กสอ.
A44: ลูกหนี้- ภาษีโรงเรือน | B44: 12480
A45: ลูกหนี้-ภาษีบำรุงท้องที่ | B45: 66328.83
A46: ลูกหนี้-ภาษีป้าย | B46: 400
A47: เงินยืม-เงินงบประมาณ | D47: =B44+B45+B46+B47 -> 79208.83
B48: รวม | D48: =SUM(D41:D47) -> 25376362.98
B50: หนี้สินและเงินสะสม
A51: ทุนทรัพย์สิน | B51: (หมายเหตุ 1) | D51: 32370220.37
A52: เงินรับฝากต่าง ๆ | B52: (หมายเหตุ 4) | D52: 342718.75
A53: รายจ่ายค้างจ่าย | B53: (หมายเหตุ 5) | D53: 3420813
A54: เงินทุนโครงการเศรษฐกิจชุมชน | D54: 1938010.9
A55: รายจ่ายรอจ่าย | B55: (หมายเหตุ 6) | D55: 809900
A56: รายจ่ายผัดส่งใบสำคัญ | B56: (หมายเหตุ 6)
A57: เงินทุนสำรองเงินสะสม (54) | D57: 10103827.01
A58: เงินสะสม | B58: (หมายเหตุ8) | D58: 8761093.32
B59: รวม | D59: =SUM(D52:D58) -> 25376362.98
A63: (นางข้อหนัน เจะดุหมัน) | B63: (นายเสน่ห์ อ่อนเกตุพล) | C63: (นายเสน่ห์ อ่อนเกตุพล)
A64: หัวหน้าส่วนการคลัง | B64: ปลัดองค์การบริหารส่วนตำบล | C64: ปลัดองค์การบริหารส่วนตำบล ปฎิบัติหน้าที่
C65: นายกองค์การบริหารส่วนตำบลหัวไทร

Sheet หมายเหตุ 1
H1: หมายเหตุ 1 | J1: . | Q1: หมายเหตุ 1
A2: องค์การบริหารส่วนตำบลหัวไทร อำเภอหัวไทร จังหวัดนครศรีธรรมราช
A3: งบทรัพย์สิน
A4: ณ วันที่ 30 กันยายน 2556
A5: ประเภททรัพย์สิน | C5: ยกมา | D5: รับเพิ่มงวดนี้ | E5: จำหน่ายงวดนี้ | F5: ยกไปงวดหน้า | G5: ทรัพย์สินเกิดจาก | H5: จำนวน
C6: จากงวดก่อน
A7: ก. | B7: อสังหาริมทรัพย์ | G7: รายได้ของ อบต. | H7: =9368206.37+52000-105025-91806+103600-94000+3580+5390+48000+14659+2008590 -> 11313194.37
A8: 1 | B8: ที่ดิน | C8: 2749049 | F8: =C8+D8 -> 2749049 | G8: เงินสะสม | H8: =7797316+3452900+2545000+2661000 -> 16456216
A9: 2 | B9: อาคาร | C9: 7089066 | D9: 2661000 | F9: 9750066 | G9: ได้รับบริจาค | H9: =4045+21500-845 -> 24700
A10: 3 | B10: ค่าถมดิน | C10: 1371500 | D10: 257000 | F10: 1628500 | G10: กรมการปกครอง | H10: =6308900+1197000+408500+975300 -> 8889700
A11: 4 | B11: ลานเอนกประสงค์ | C11: 66500 | F11: 66500 | G11: เงินอุดหนุนจาก อบจ. | H11: 356000
A12: 5 | B12: เสาธง | C12: 193000 | F12: 193000
A13: 6 | B13: รั้ว | C13: 602000 | D13: 7500 | F13: 609500
A14: 7 | B14: สถานที่จอดรถ | C14: 92000 | D14: 99000 | F14: 191000
A15: 8 | B15: ค่าติดตั้งระบบไฟฟ้าที่ก่อสร้างอบต. | C15: 246467 | F15: 246467
A16: 9 | B16: อ่างล้างมือที่แปรงฟันนักเรียน | C16: 137900 | F16: 137900
A17: 10 | B17: เตาเผาขยะ | C17: 69200 | F17: 69200
A18: 11 | B18: ขยายท่อเมนประปา/ก่อสร้างหอถังประปา | C18: 1814400 | D18: 379500 | F18: 2193900
A19: 12 | B19: ระบบประปาหมู่บ้าน/เจาะบ่อบาดาล | C19: 6700000 | D19: 380000 | F19: 7080000
A20: 13 | B20: ก่อสร้างประตูระบายน้ำบ้านโคกสูง ม.6 | C20: 580000 | F20: 580000
A21: 14 | B21: ขุดสระน้ำประปาที่อบต. ระบบประปา | C21: 579000 | F21: 579000
A22: 15 | B22: ก่อสร้างลานกีฬาเอนกประสงค์ | C22: 1197000 | D22: 340000 | F22: 1537000
A23: 16 | B23: ซ่อมแซมประตูระบายน้ำ หมู่ที่ 3 | C23: 408500 | F23: 408500
A24: 17 | B24: ก่อสร้างซุ้มประชาสัมพันธ์อบต.หัวไทร | C24: 0 | D24: 243000 | F24: =C24+D24 -> 243000
A25: ข. | B25: สังหาริมทรัพย์
A26: 1 | B26: ครุภัณฑ์สำนักงาน | C26: 1137632.37 | F26: =C26+D26-E26 -> 1137632.37
A27: 2 | B27: ครุภัณฑ์ไฟฟ้าและวิทยุ | C27: 202880 | F27: 202880
A28: 3 | B28: ครุภัณฑ์ยานพาหนะและขนส่ง | C28: 4735380 | D28: =38740+9160+32000 -> 79900 | E28: 24990 | F28: 4790290
A29: 4 | B29: ครุภัณฑ์การเกษตร | C29: 222500 | F29: 222500
A30: 5 | B30: ครุภัณฑ์การศึกษา | C30: 975300 | F30: 975300
A31: 6 | B31: ครุภัณฑ์คอมพิวเตอร์ | C31: 751450 | D31: =14390+52000+40500+20300+45000+9950+5290+8760 -> 196190 | E31: 76000 | F31: 871640
A32: 7 | B32: ครุภัณฑ์สำรวจ | C32: 36000 | D32: 8000 | F32: =C32+D32 -> 44000
A33: 8 | B33: ครุภัณฑ์'สำรวจก่อสร้าง | C33: 14500 | D33: 18500 | F33: =C33+D33 -> 33000
A34: 9 | B34: ครุภัณฑ์โฆษณาและเผยแพร่ | C34: 260970 | E34: =34500 -> 34500 | F34: =C34+D34-E34 -> 226470 | K34: (นายเสน่ห์ อ่อนเกตุพล)
A35: 10 | B35: ครุภัณฑ์อื่น | C35: 86400 | F35: =C35+D35-E35 -> 86400 | K35: ปลัดองค์การบริหารส่วนตำบล
A36: 11 | B36: ครุภัณฑ์งานบ้านงานครัว | C36: 51626 | F36: =C36+D36-E36 -> 51626
C37: =SUM(C8:C36) -> 32370220.37 | D37: =SUM(D8:D36) -> 4669590 | E37: =SUM(E26:E36) -> 135490 | F37: =C37+D37-E37 -> 36904320.37 | H37: =SUM(H7:H36)-E37 -> 36904320.37
A40: (นางข้อหนัน เจะดุหมัน) | C40: (นายเสน่ห์ อ่อนเกตุพล) | F40: (นายสมบูรณ์ ขลุกเอียด)
A41: ผู้อำนวยการกองคลัง | C41: ปลัดองค์การบริหารส่วนตำบล | F41: นายกองค์การบริหารส่วนตำบลหัวไทร
F42: หมายเหตุ 1
A43: องค์การบริหารส่วนตำบลหัวไทร อำเภอหัวไทร จังหวัดนครศรีธรรมราช
A44: งบทรัพย์สิน
A45: ณ วันที่ 30 กันยายน 2556
A46: ประเภททรัพย์สิน | C46: ยกมา | D46: รับเพิ่มงวดนี้ | E46: จำหน่ายงวดนี้ | F46: ยกไปงวดหน้า | G46: ทรัพย์สินเกิดจาก | H46: จำนวน
C47: จากงวดก่อน
A48: ก. | B48: อสังหาริมทรัพย์ | G48: รายได้ของ อบต. | H48: =9368206.37+52000-105025-91806+103600-94000+3580+5390+48000+14659+2008590 -> 11313194.37 | J48: 1137632.37
A49: 1 | B49: ที่ดิน | C49: 2749049 | F49: =C49+D49 -> 2749049 | G49: เงินสะสม | H49: =7797316+3452900+2545000+2661000 -> 16456216 | J49: 202880
A50: 2 | B50: อาคาร | C50: 7089066 | D50: 2661000 | F50: 9750066 | G50: ได้รับบริจาค | H50: =4045+21500-845 -> 24700 | J50: 4735380
A51: 3 | B51: ค่าถมดิน | C51: 1371500 | D51: 257000 | F51: 1628500 | G51: กรมการปกครอง | H51: =6308900+1197000+408500+975300 -> 8889700 | J51: 222500
A52: 4 | B52: ลานเอนกประสงค์ | C52: 66500 | F52: 66500 | G52: เงินอุดหนุนจาก อบจ. | H52: 356000 | J52: 975300
A53: 5 | B53: เสาธง | C53: 193000 | F53: 193000 | J53: 751450
A54: 6 | B54: รั้ว | C54: 602000 | D54: 7500 | F54: 609500 | J54: 36000
A55: 7 | B55: สถานที่จอดรถ | C55: 92000 | D55: 99000 | F55: 191000 | J55: 14500
A56: 8 | B56: ค่าติดตั้งระบบไฟฟ้าที่ก่อสร้างอบต. | C56: 246467 | F56: 246467 | J56: 260970
A57: 9 | B57: อ่างล้างมือที่แปรงฟันนักเรียน | C57: 137900 | F57: 137900 | J57: 86400
A58: 10 | B58: เตาเผาขยะ | C58: 69200 | F58: 69200 | J58: 51626
A59: 11 | B59: ขยายท่อเมนประปา/ก่อสร้างหอถังประปา | C59: 1814400 | D59: 379500 | F59: 2193900 | J59: =38740+9160+32000 -> 79900
A60: 12 | B60: ระบบประปาหมู่บ้าน/เจาะบ่อบาดาล | C60: 6700000 | D60: 380000 | F60: 7080000 | J60: =14390+52000+40500+20300+45000+9950+5290+8760 -> 196190
A61: 13 | B61: ก่อสร้างประตูระบายน้ำบ้านโคกสูง ม.6 | C61: 580000 | F61: 580000 | J61: 8000
A62: 14 | B62: ขุดสระน้ำประปาที่อบต. ระบบประปา | C62: 579000 | F62: 579000 | J62: 18500
A63: 15 | B63: ก่อสร้างลานกีฬาเอนกประสงค์ | C63: 1197000 | D63: 340000 | F63: 1537000 | J63: =SUM(J48:J62) -> 8777228.37 | K63: =J63-135490 -> 8641738.37
A64: 16 | B64: ซ่อมแซมประตูระบายน้ำ หมู่ที่ 3 | C64: 408500 | F64: 408500
A65: 17 | B65: ก่อสร้างซุ้มประชาสัมพันธ์อบต.หัวไทร | C65: 0 | D65: 243000 | F65: =C65+D65 -> 243000
A66: ข. | B66: สังหาริมทรัพย์
A67: 1 | B67: ครุภัณฑ์สำนักงาน | C67: 1137632.37 | F67: =C67+D67-E67 -> 1137632.37
A68: 2 | B68: ครุภัณฑ์ไฟฟ้าและวิทยุ | C68: 202880 | F68: 202880
A69: 3 | B69: ครุภัณฑ์ยานพาหนะและขนส่ง | C69: 4735380 | D69: =38740+9160+32000 -> 79900 | E69: 24990 | F69: 4790290
A70: 4 | B70: ครุภัณฑ์การเกษตร | C70: 222500 | F70: 222500
A71: 5 | B71: ครุภัณฑ์การศึกษา | C71: 975300 | F71: 975300
A72: 6 | B72: ครุภัณฑ์คอมพิวเตอร์ | C72: 751450 | D72: =14390+52000+40500+20300+45000+9950+5290+8760 -> 196190 | E72: 76000 | F72: 871640
A73: 7 | B73: ครุภัณฑ์สำรวจ | C73: 36000 | D73: 8000 | F73: =C73+D73 -> 44000
A74: 8 | B74: ครุภัณฑ์'สำรวจก่อสร้าง | C74: 14500 | D74: 18500 | F74: =C74+D74 -> 33000
A75: 9 | B75: ครุภัณฑ์โฆษณาและเผยแพร่ | C75: 260970 | E75: =34500 -> 34500 | F75: =C75+D75-E75 -> 226470
A76: 10 | B76: ครุภัณฑ์อื่น | C76: 86400 | F76: =C76+D76-E76 -> 86400 | J76: =J73+79900+196190+8000+18500-135490 -> 167100
A77: 11 | B77: ครุภัณฑ์งานบ้านงานครัว | C77: 51626 | F77: =C77+D77-E77 -> 51626 | J77: =G77+H77-I77 -> 0
C78: =SUM(C49:C77) -> 32370220.37 | D78: =SUM(D49:D77) -> 4669590 | E78: =SUM(E67:E77) -> 135490 | F78: =C78+D78-E78 -> 36904320.37 | H78: =SUM(H48:H77)-E78 -> 36904320.37
A81: (นางข้อหนัน เจะดุหมัน) | C81: (นายเสน่ห์ อ่อนเกตุพล) | F81: (นายเสน่ห์ อ่อนเกตุพล)
A82: หัวหน้าส่วนการคลัง | C82: ปลัดองค์การบริหารส่วนตำบล | F82: ปลัดองค์การบริหารส่วนตำบล ปฎิบัติหน้าที่
F83: นายกองค์การบริหารส่วนตำบลหัวไทร

Sheet หมายเหตุ2
A3: องค์การบริหารส่วนตำบลหัวไทร อำเภอหัวไทร จังหวัดนครศรีธรรมราช
A4: หมายเหตุ ประกอบงบแสดงฐานะการเงิน
A5: 30 กันยายน 2556
A7: เงินสด เงินฝากธนาคาร (หมายเหตุ 2)
B10: เงินสด
B11: เงินฝากธนาคาร
C12: กรุงไทย | D12: ประเภท กระแสรายวัน 082-6-01908-3 | F12: 876472.62
C13: ธ.ก.ส | D13: ประเภท ออมทรัพย์ 715-2-41562-7 | F13: 14359822.01
D14: ประเภท ออมทรัพย์ 715-2-46719-5 | F14: 2068621.5
C15: ออมสิน | D15: ประเภท ออมทรัพย์ 05331067844-5 | F15: 14438429.42
F17: =SUM(F12:F16) -> 31743345.55
A22: (นางข้อหนัน เจะดุหมัน) | C22: (นายเสน่ห์ อ่อนเกตุพล) | E22: (นายสมบูรณ์ ขลุกเอียด)
A23: ผู้อำนวยการกองคลัง | C23: ปลัดองค์การบริหารส่วนตำบล | E23: นายกองค์การบริหารส่วนตำบลหัวไทร
A35: องค์การบริหารส่วนตำบลหัวไทร อำเภอหัวไทร จังหวัดนครศรีธรรมราช
A36: หมายเหตุ ประกอบงบแสดงฐานะการเงิน
A37: 2556-09-30
A39: เงินสด เงินฝากธนาคาร (หมายเหตุ 2)
B42: เงินสด
B43: เงินฝากธนาคาร
C44: กรุงไทย | D44: ประเภท กระแสรายวัน 082-6-01908-3 | F44: 262379.3
C45: ธ.ก.ส | D45: ประเภท ออมทรัพย์ 715-2-41562-7 | F45: 8772604.15
D46: ประเภท ออมทรัพย์ 715-2-46719-5 | F46: 1938010.9
C47: ออมสิน | D47: ประเภท ออมทรัพย์ 05331067844-5 | F47: 14324159.8
F49: =SUM(F44:F48) -> 25297154.15
A53: (นางข้อหนัน เจะดุหมัน) | C53: (นายเสน่ห์ อ่อนเกตุพล) | E53: (นายเสน่ห์ อ่อนเกตุพล)
A54: หัวหน้าส่วนการคลัง | C54: ปลัดองค์การบริหารส่วนตำบล | E54: ปลัดองค์การบริหารส่วนตำบล ปฎิบัติหน้าที่
E55: นายกองค์การบริหารส่วนตำบลหัวไทร

Sheet หมายเหตุ 4
F1: (หมายเหตุ 4)
A2: หมายเหตุ ประกอบงบแสดงฐานะการเงิน
A3: องค์การบริหารส่วนตำบลหัวไทร อำเภอหัวไทร จังหวัดนครศรีธรรมราช
B4: เงินรับฝาก | C4: (หมายเหตุ 4)
C6: ภาษีหัก ณ ที่จ่าย | E6: 9134.74
C7: ค่าใช้จ่ายภาษีบำรุงท้องที่ 5% | E7: 7.45
C8: ค่าส่วนลดภาษีบำรุงท้องที่ 6% | E8: 8.94
C9: เงินมัดจำประกันสัญญา | E9: 373147
C10: เงินค่ากระแสไฟฟ้าจากเกษตรกร | E10: 15306
C13: รวม | E13: =SUM(E6:E12) -> 397604.13
B16: รายจ่ายผัดส่งใบสำคัญ (หมายเหตุ 6 )
C17: รายจ่ายรอจ่าย | E17: 896000
C18: ลูกหนี้-เงินยืมเงินงบประมาณ
C20: รวม | E20: =SUM(E17:E19) -> 896000
A25: (นางข้อหนัน เจะดุหมัน) | C25: (นายเสน่ห์ อ่อนเกตุพล) | E25: (นายสมบูรณ์ ขลุกเอียด)
A26: ผู้อำนวยการกองคลัง | C26: ปลัดองค์การบริหารส่วนตำบล | E26: นายกองค์การบริหารส่วนตำบลหัวไทร
A36: หมายเหตุ ประกอบงบแสดงฐานะการเงิน
A37: องค์การบริหารส่วนตำบลหัวไทร อำเภอหัวไทร จังหวัดนครศรีธรรมราช
B38: เงินรับฝาก | C38: (หมายเหตุ 4)
C40: ภาษีหัก ณ ที่จ่าย | E40: 28261.8
C41: ค่าใช้จ่ายภาษีบำรุงท้องที่ 5% | E41: 106.81
C42: ค่าส่วนลดภาษีบำรุงท้องที่ 6% | E42: 128.14
C43: เงินมัดจำประกันสัญญา | E43: 314181
C44: เงินรับฝาก-เงินภาษีบำรุงท้องที่ | E44: 41
C47: รวม | E47: =SUM(E40:E46) -> 342718.75
B50: รายจ่ายผัดส่งใบสำคัญ (หมายเหตุ 6 )
C51: รายจ่ายรอจ่าย | E51: 809900
C52: ลูกหนี้-เงินยืมเงินงบประมาณ
C54: รวม | E54: =SUM(E51:E53) -> 809900
A57: (นางข้อหนัน เจะดุหมัน) | C57: (นายเสน่ห์ อ่อนเกตุพล) | E57: (นายเสน่ห์ อ่อนเกตุพล)
A58: หัวหน้าส่วนการคลัง | C58: ปลัดองค์การบริหารส่วนตำบล | E58: ปลัดองค์การบริหารส่วนตำบล ปฎิบัติหน้าที่
E59: นายกองค์การบริหารส่วนตำบลหัวไทร

Sheet หมายเหตุ5.1
F2: หมายเหตุ 5/1
A3: องค์การบริหารส่วนตำบลหัวไทร อำเภอหัวไทร จังหวัดนครศรีธรรมราช
A4: รายจ่ายค้างจ่าย
A5: ปีงบประมาณ 2556
A7: หมวด/ประเภท | B7: จำนวนเงิน | D7: เบิกจ่ายแล้ว | E7: คงเหลือ | F7: หมายเหตุ
B8: ก่อหนี้ผูกพัน | C8: ไม่ก่อหนี้ผูกพัน
A9: ค่าที่ดินและสิ่งก่อสร้าง
A10: ขุดเจาะบ่อบาดาลบ้านลำคลอง หมู่ที่ 7 | B10: 423000 | E10: 423000
A11: ก่อสร้างถนนคอนกรีตเสริมเหล็กซอยเทพรักษา(1,2,3)ม.4 | B11: 988000 | E11: 988000
A12: ปรับปรุงขยายเขตระบบประปาบ้านหนองนกไข่ ม.5 | B12: 99870 | E12: 99870
A13: ปรับปรุงอาคารสำนักงานองค์การบริหารส่วนตำบลหัวไทร | B13: 419500 | E13: 419500
A21: รวม | B21: =SUM(B10:B20) -> 1930370 | D21: =SUM(D10:D20) -> 0 | E21: =SUM(E10:E20) -> 1930370
A24: (นางข้อหนัน เจะดุหมัน) | B24: (นายเสน่ห์ อ่อนเกตุพล) | D24: (นายสมบูรณ์ ขลุกเอียด)
A25: ผู้อำนวยการกองคลัง | B25: ปลัดองค์การบริหารส่วนตำบล | D25: นายกองค์การบริหารส่วนตำบลหัวไทร

Sheet หมายเหตุ 5.2
J2: หมายเหตุ 5/2
A3: องค์การบริหารส่วนตำบลหัวไทร อำเภอหัวไทร จังหวัดนครศรีธรรมราช
A4: รายจ่ายค้างจ่าย
A5: ปีงบประมาณ 2556
A6: รายงานรายจ่ายค้างจ่ายการกันเงินอุดหนุนระบุวัตถุประสงค์ รายการกันเงินไม่ก่อหนี้
A8: งาน | B8: หมวด | C8: ประเภทรายจ่าย | D8: โครงการ | E8: ปีงบประมาณ | F8: จ่ายจริง | G8: รับจริง | H8: กันเงิน | I8: คงเหลือ | J8: หมายเหตุ
E9: ที่กันเงิน
A11: งานระดับก่อนวัยเรียน | B11: เงินเดือน | C11: เงินเดือน | D11: กรมส่งเสริมการ | E11: 2556 | F11: 330000 | G11: 330000 | H11: 30000 | I11: =H11 -> 30000 | J11: เงินฝากจังหวัด
A12: และประถมศึกษา | B12: (ฝ่ายประจำ) | C12: (ฝ่ายประจำ) | D12: ปกครองท้องถิ่น | I12: 0 | J12: =I12 -> 0
I16: =H16 -> 0 | J16: =I16 -> 0
I17: 0 | J17: 0
E19: เงินเดือน/ | I19: =H19 -> 0 | J19: 0
E20: ฝ่ายประจำ | F20: 330000 | G20: 330000 | H20: 30000 | I20: 30000 | J20: 30000
A21: รวมทั้งหมด | F21: =SUM(F18:F20) -> 330000 | G21: =SUM(G18:G20) -> 330000 | H21: =SUM(H18:H20) -> 30000 | I21: 30000 | J21: =SUM(J18:J20) -> 30000
A24: (นางข้อหนัน เจะดุหมัน) | D24: (นายเสน่ห์ อ่อนเกตุพล) | H24: (นายสมบูรณ์ ขลุกเอียด)
A25: ผู้อำนวยการกองคลัง | D25: ปลัดองค์การบริหารส่วนตำบล | H25: นายกองค์การบริหารส่วนตำบลหัวไทร
K29: หมายเหตุ 5/2
A30: องค์การบริหารส่วนตำบลหัวไทร อำเภอหัวไทร จังหวัดนครศรีธรรมราช
A31: รายจ่ายค้างจ่าย
A32: ปีงบประมาณ 2555
A33: รายงานรายจ่ายค้างจ่ายการกันเงินอุดหนุนระบุวัตถุประสงค์ รายการกันเงินไม่ก่อหนี้
A34: งาน | B34: หมวด | C34: ประเภทรายจ่าย | D34: โครงการ | E34: ปีงบประมาณ | F34: จ่ายจริง | G34: รับจริง | I34: กันเงิน | J34: คงเหลือ | K34: หมายเหตุ
E35: ที่กันเงิน
D36: เงินอุดหนุนระบุ
A37: งบกลาง | B37: งบกลาง | C37: สำรองจ่าย | D37: วัตถุประสงค์ของ | E37: 2555 | F37: 234880 | G37: 286343 | I37: 51463 | J37: 51463
D38: กรมส่งเสริมการ
D39: ปกครองท้องถิ่น
E46: รวมงบกลาง | F46: 234880 | G46: 286343 | I46: 51463 | J46: 51463
E47: รวมงบกลาง | F47: 234880 | G47: 286343 | I47: 51463 | J47: 51463
A48: รวมทั้งหมด | F48: 234800 | G48: 286343 | I48: 51463 | J48: 51463
B51: (นางข้อหนัน เจะดุหมัน) | E51: (นายเสน่ห์ อ่อนเกตุพล) | I51: (นายเสน่ห์ อ่อนเกตุพล)
B52: หัวหน้าส่วนการคลัง | E52: ปลัดองค์การบริหารส่วนตำบล | I52: ปลัดองค์การบริหารส่วนตำบล ปฎิบัติหน้าที่
I53: นายกองค์การบริหารส่วนตำบลหัวไทร

Sheet หมายเหตุ 7
F1: หมายเหตุ 7
A2: องค์การบริหารส่วนตำบลหัวไทร อำเภอหัวไทร จังหวัดนครศรีธรรมราช
A3: เงินอุดหนุนเฉพาะกิจค้างจ่าย
A4: (เงินอุดหนุนเฉพาะกิจที่ได้ก่อหนี้ผูกันและยังไม่ได้เบิกจ่ายและเบิกจ่ายไม่ทัน)
A5: ปีงบประมาณ 2556
A7: ลำดับ | B7: หมวด/ประเภท | C7: จำนวนเงินตาม | D7: ก่อหนี้ผูกพัน | E7: เบิกจ่ายแล้ว | F7: คงเหลือ
C8: ใบอนุมัติประจำงวด | D8: จำนวนเงิน | E8: จำนวนเงิน | F8: จำนวนเงิน
A11: 1
B22: (นางข้อหนัน เจะดุหมัน) | C22: (นายเสน่ห์ อ่อนเกตุพล) | E22: (นายสมบูรณ์ ขลุกเอียด)
B23: ผู้อำนวยการกองคลัง | C23: ปลัดองค์การบริหารส่วนตำบล | E23: นายกองค์การบริหารส่วนตำบลหัวไทร

Sheet ทะเบียน
A1: งานทะเบียน
A2: องค์การบริหารส่วนตำบลหัวไทร อำเภอหัวไทร จังหวัดนครศรีธรรมราช
A3: สิ้นงวดปีงบประมาณ พ.ศ. 2552
A4: ประเภท | B4: เลขที่ | C4: ยี่ห้อ ชนิด แบบ ขนาด | D4: วัน/เดือน/ปี | E4: เลขหมาย | F4: ราคาต่อ | G4: ราคารวม | H4: วิธีการ | I4: เลขที่เอกสาร | J4: ใช้ประจำที่ | K4: รายการ | L4: เลขที่ | M4: หมายเหตุ
B5: หรือ | C5: และ | D5: ที่ได้ | E5: และ | F5: หน่วย | G5: (บาท) | H5: ได้มาซึ่ง | L5: เอกสาร
B6: รหัส | C6: ลักษณะ | D6: กรรมสิทธิ์ | E6: ทะเบียน | F6: (บาท) | H6: กรรมสิทธิ์
A7: พ.ศ.2538 (รายได้)
A8: 1) โต๊ะทำงานพร้อมเก้าอี้ | B8: 400 38 0001-2 | C8: โต๊ะทำงานระดับ 3-6 | D8: 8 ก.ย 38 | F8: 2900 | G8: =F8*2 -> 5800 | H8: ตกลงราคา | I8: ฎีกาที่ 8/2538 | J8: สำนักงาน
C9: มี 4 ลิ้นชัก สีเทา พร้อม
C10: เก้าอี้ มีพนักพิงหมุนได้มีล้อ
A11: 2) โต๊ะประชุม | B11: 400 38 0003-7 | C11: โต๊ะไม้ธรรมดา | D11: 8 ก.ย 38 | F11: 845 | G11: =F11*5 -> 4225 | H11: ตกลงราคา | I11: ฎีกาที่ 7/2538 | J11: สำนักงาน
C12: ขนาด 58” x 35”
A13: 3) เก้าอี้ | B13: 401 38 0001-22 | C13: ชนิดหมุนได้ มีล้อ | D13: 8 ก.ย 38 | F13: 900 | G13: =F13*22 -> 19800 | H13: ตกลงราคา | I13: ฎีกาที่ 7/2538 | J13: สำนักงาน
A14: 4) โต๊ะพิมพ์ดีด | B14: 400 38 0008 | C14: โต๊ะไม้ มี 2 ลิ้นชัก | D14: 8 ก.ย 38 | F14: 1600 | G14: =F14*1 -> 1600 | H14: ตกลงราคา | I14: ฎีกาที่ 6/2538 | J14: สำนักงาน
C15: ขนาด 30” x 20”
A16: 5) ตู้เหล็กเก็บเอกสาร | B16: 406 38 0001 | C16: ตู้เหล็ก ชนิด 2 บาน | D16: 8 ก.ย 38 | F16: 3300 | G16: =F16*1 -> 3300 | H16: ตกลงราคา | I16: ฎีกาที่ 5/2538 | J16: สำนักงาน
C17: ยี่ห้อ “Futnimax”
A18: 6) โอ่งน้ำ | B18: 1-65 | C18: ขนาดบรรจุ 25 ปี๊บ | D18: 29 ก.ย 38 | F18: 300 | G18: =F18*65 -> 19500 | H18: ตกลงราคา | I18: ฎีกาที่ 9/2538 | J18: หมู่ที่ 1-9
G19: =SUM(G8:G18) -> 54225
A20: พ.ศ.2539 (รายได้)
A21: 1) โทรทัศน์สี | B21: 400 40 0010 | C21: ขนาด 20 นิ้ว ยี่ห้อ | D21: 30 ส.ค 39 | E21: 300346 | F21: 11000 | G21: =F21*1 -> 11000 | H21: ตกลงราคา | I21: ฎีกาที่ 26/2539 | J21: สำนักงาน
C22: “PHILIPS”
A23: 2) วีดีโอ | B23: 455 39 0001 | C23: แบบเล่นเทป รุ่น RHI | D23: 30 ส.ค 39 | E23: 940855 | F23: 6500 | G23: =F23*1 -> 6500 | H23: ตกลงราคา | I23: ฎีกาที่ 27/2539 | J23: สำนักงาน
C24: ยี่ห้อ “PANASONIC”
A25: 3) เครื่องทำน้ำเย็น | B25: 439 39 0001 | C25: เครื่องทำน้ำเย็นแบบใช้ขวด | D25: 5 ก.ย 39 | F25: 3300 | G25: =F25*1 -> 3300 | H25: ตกลงราคา | I25: ฎีกาที่ 21/2539 | J25: สำนักงาน
C26: ยี่ห้อ “STANDARD”
A27: 4) ตู้เก็บเอกสาร | B27: 406 39 0002 | C27: ตู้เก็บเอกสาร 15 ลิ้นชัก | D27: 5 ก.ย 39 | F27: 2300 | G27: =F27*1 -> 2300 | H27: ตกลงราคา | I27: ฎีกาที่ 22/2539 | J27: สำนักงาน
C28: ยี่ห้อ “KANSAI”
G29: =SUM(G21:G28) -> 23100
A30: พ.ศ.2539 (ได้รับบริจาค)
A31: 1) โต๊ะประชุม | B31: 400 39 0009 | C31: โต๊ะไม้ธรรมดา | D31: 2 ก.ย 39 | F31: 845 | G31: =F31*1 -> 845 | H31: ได้รับบริจาค | I31: - | J31: สำนักงาน
C32: ขนาด 58” x 35”
A34: 2) พัดลม | B34: 432 39 0001-2 | C34: ชนิดยืน ยี่ห้อ “เนชั่นแนล” | D34: 5 ก.ย 39 | F34: 1600 | G34: =F34*2 -> 3200 | H34: ได้รับบริจาค | I34: - | J34: สำนักงาน
G35: =SUM(G31:G34) -> 4045
A36: พ.ศ.2540 (รายได้)
A37: 1) โต๊ะทำงาน | B37: 400 40 0010-11 | C37: โต๊ะทำงานระดับ 1-2 | D37: 3 มี.ค 40 | F37: 1500 | G37: 3000 | H37: ตกลงราคา | I37: ฎีกาที่ 56/2540 | J37: สำนักงาน
A38: 2) เครื่องอัดสำเนา | B38: 418 40 0001 | C38: ชนิดเติมหมึก | D38: 3 มี.ค 40 | E38: RE-450 | F38: 26000 | G38: =F38*1 -> 26000 | H38: ตกลงราคา | I38: ฎีกาที่ 57/2540 | J38: สำนักงาน
C39: “แอคโทรแฟ็กซ์”
A40: 3) เครื่องพิมพ์ดีด | B40: 413 40 0001-2 | C40: ขนาดแคร่ 18 นิ้ว | D40: 3 มี.ค 40 | E40: LINEA 98 | F40: 8600 | G40: =F40*2 -> 17200 | H40: ตกลงราคา | I40: ฎีกาที่ 58/2540 | J40: สำนักงาน
C41: ยี่ห้อ “OLIVETTI”
A42: 4) เครื่องคำนวณเลข | B42: 415 40 0001 | C42: ยี่ห้อ “MORGAN” | D42: 3 มี.ค 40 | E42: 395003404 | F42: 2500 | G42: =F42*1 -> 2500 | H42: ตกลงราคา | I42: ฎีกาที่ 60/2540 | J42: สำนักงาน
A43: 5) โต๊ะพิมพ์ดีดพร้อมเก้าอี้ | B43: 400 40 0012-13 | C43: โต๊ะไม้ธรรมดามี 2 ลิ้นชัก | D43: 16 ก.ค 40 | F43: 1500 | G43: =F43*2 -> 3000 | H43: ตกลงราคา | I43: ฎีกาที่ 105/2540 | J43: สำนักงาน
C44: พร้อมเก้าอี้ ขนาด 47” x 23”
A45: 6) ตู้เก็บแบบฟอร์มเอกสาร | B45: 406 40 0005 | C45: สีเทา ขนาด 15 ลิ้นชัก | D45: 16 ก.ค 40 | F45: 2300 | G45: =F45*1 -> 2300 | H45: ตกลงราคา | I45: ฎีกาที่ 106/2540 | J45: สำนักงาน
A46: 7) ตู้เหล็กเก็บเอกสาร | B46: 406 40 0003-04 | C46: ตู้เหล็กชนิด 2 บาน สีเทา | D46: 16 ก.ค 40 | F46: 2300 | G46: 4600 | H46: ตกลงราคา | I46: ฎีกาที่ 107/2540 | J46: สำนักงาน
C47: ยี่ห้อ “KINGKONG”
A48: 8) ตู้นิรภัย | B48: 612 40 0001 | C48: ตู้นิรภัย มอก.2529 | D48: 16 ก.ค 40 | E48: 97750066 | F48: 11000 | G48: =F48*1 -> 11000 | H48: ตกลงราคา | I48: ฎีกาที่ 108/2540 | J48: สำนักงาน
C49: ยี่ห้อ “KINGKONG”
A50: 10) เครื่องโทรศัพท์ | B50: 423 40 0001 | C50: ยี่ห้อ “RICH” | D50: 1 ก.ย 40 | E50: AT 802 D | F50: 1200 | G50: =F50*1 -> 1200 | H50: ตกลงราคา | I50: ฎีกาที่ 128/2540 | J50: สำนักงาน
G51: =SUM(G37:G50) -> 70800
A52: พ.ศ.2541 (รายได้)
A53: 1) เครื่องถ่ายเอกสาร | B53: 417 41 0001 | C53: รุ่น 2732 ขนาด 32 แผ่น/นาที | D53: 29 ก.ย 41 | E53: 910845 | F53: 94000 | G53: =F53*1 -> 94000 | H53: สอบราคา | I53: ฎีกาที่ 176/2541 | J53: สำนักงาน
C54: สีเทา ยี่ห้อ “เก็ตเตอร์เนอร์”
G55: =SUM(G53:G54) -> 94000
A56: พ.ศ.2542 (รายได้)
A57: 1) ตู้เหล็กเก็บเอกสาร | B57: 406 42 0006 | C57: ตู้เหล็กมี 2 บาน สีเทา | D57: 18 ม.ค 42 | F57: 3600 | G57: =F57*1 -> 3600 | H57: ตกลงราคา | I57: ฎีกาที่ 27/2542 | J57: สำนักงาน
C58: มอก.353-2532 ยี่ห้อ
C59: “KINGKONG”
A60: 2) รถจักรยานยนต์ | B60: 009 42 0001 | C60: NF 110 (WAVE) ขนาด | D60: 24 เม.ย 42 | E60: 0004901, | F60: 39000 | G60: =F60*1 -> 39000 | H60: ตกลงราคา | I60: ฎีกาที่ 79/2542 | J60: สำนักงาน
C61: 1 สูบ 100 CC สีแดง | E61: ขกท 757
C62: ยี่ห้อ “HONDA”
A63: 3) เครื่องขยายเสียง | B63: 462 42 0001 | C63: เครื่องขยายเสียง 1 ชุด | D63: 13 ก.ย 42 | F63: 18600 | G63: =F63*1 -> 18600 | H63: ตกลงราคา | I63: ฎีกาที่ 120/2542 | J63: ตลาดเกษตร
A64: 4) รถไถนา | B64: 602 42 0001-2 | C64: รถไถนาชนิดเดินตาม ขนาด | D64: 13 ก.ย 42 | E64: 375771, | F64: 47000 | G64: =F64*2 -> 94000 | H64: สอบราคา | I64: ฎีกาที่ 124/2542 | J64: หมู่ที่ 2
C65: 8 แรงม้า มีอุปกรณ์ครบชุด | E65: 375774
C66: ยี่ห้อ “คูโบต้า” รุ่น ET 80
G67: =SUM(G57:G66) -> 155200
A68: พ.ศ.2543 (รายได้)
A69: 1) โต๊ะทำงาน | B69: 400 43 0014-15 | C69: โต๊ะทำงานระดับ 3-6 | D69: 6 ม.ค 43 | F69: 2700 | G69: =F69*2 -> 5400 | H69: ตกลงราคา | I69: ฎีกาที่ 25/2543 | J69: สำนักปลัด
C70: พร้อมเก้าอี้มีพนักพิง | J70: ส่วนโยธา
A71: 2) ตู้เหล็กเก็บเอกสาร | B71: 406 43 0007 | C71: ตู้เหล็กมี 2 บาน สีเทา | D71: 6 ม.ค 43 | F71: 3300 | G71: =F71*1 -> 3300 | H71: ตกลงราคา | I71: ฎีกาที่ 26/2543 | J71: สำนักงาน
C72: มอก.353-2532 ยี่ห้อ
C73: “TAIYO”
A74: 3) เครื่องคอมพิวเตอร์ | B74: 416 43 0001 | C74: PENTIUM III 600 MHg | D74: 19 พ.ค 43 | F74: 71500 | G74: =F74*1 -> 71500 | H74: สอบราคา | I74: ฎีกาที่ 27/2543 | J74: สำนักงาน
B75: 401 43 0023 | C75: Monitor 15” RAM 64 MB
B76: 400 43 0016-17 | C76: HDD 8.4 GB พร้อมอุปกรณ์
C77: ต่อพ่วง, โต๊ะวางพร้อมเก้าอี้
A78: 4) หอกระจายข่าว | B78: 283-43-0001 | C78: หอกระจายข่าวตามแบบ | D78: 29 เม.ย 43 | F78: 42900 | G78: =F78*1 -> 42900 | H78: ตกลงราคา | I78: ฎีกาที่ 94/2543 | J78: หมู่ที่ 11
C79: มาตรฐาน โดยมีเสาหอ
C80: กระจายข่าว สูง 12 เมตร
C81: พร้อมติดตั้งอุปกรณ์ครบชุด
A82: 5) ศาลาเอนกประสงค์ | B82: 007-43-0001 | C82: ศาลาเอนกประสงค์ประจำ | D82: 14 มิ.ย 43 | F82: 171700 | G82: =F82*1 -> 171700 | H82: สอบราคา | I82: ฎีกาที่ 27/2543 | J82: หมู่ที่ 6
C83: หมู่บ้าน ขนาดกว้าง 6 เมตร
C84: ยาว 12 เมตร
G85: =SUM(G69:G84) -> 294800
A86: พ.ศ.2544 (รายได้)
A87: 1) หอกระจายข่าว | B87: 283-44-0002 | C87: หอกระจายข่าวตามแบบ | D87: 12 ต.ค 43 | F87: 42000 | G87: =F87*1 -> 42000 | H87: ตกลงราคา | I87: ฎีกาที่ 168/2543 | J87: หมู่ที่ 12 | M87: เบิกตัดปี
C88: มาตรฐาน โดยมีเสาหอ
C89: กระจายข่าว สูง 12 เมตร
C90: พร้อมติดตั้งอุปกรณ์ครบชุด
A91: 2) โต๊ะทำงาน | B91: 400 44 0018-19 | C91: โต๊ะทำงานระดับ 3-6 พร้อม | D91: 28 ม.ค 44 | F91: 2900 | G91: =F91*2 -> 5800 | H91: ตกลงราคา | I91: ฎีกาที่ 36/059 | J91: สนง.ปลัด
C92: เก้าอี้มีพนักพิง | I92: ฎีกาที่ 14/060 | J92: ส่วนการคลัง
A93: 3) ตู้เหล็กเก็บเอกสาร | B93: 406 44 0008 | C93: ตู้เหล็กมี 2 บาน สีเทา | D93: 28 ม.ค 44 | F93: 3200 | G93: =F93*1 -> 3200 | H93: ตกลงราคา | I93: ฎีกาที่ 36/059 | J93: สนง.ปลัด
C94: มอก.353-2532 ยี่ห้อ
C95: “TAIYO”
A96: 4) ตู้เหล็กเก็บเอกสาร | B96: 406 44 0009 | C96: ตู้เหล็กมี 2 บาน สีเทา | D96: 25 มิ.ย 44 | F96: 2600 | G96: =F96*1 -> 2600 | H96: ตกลงราคา | I96: ฎีกาที่ 29/159 | J96: ส่วนโยธา
C97: มอก.353-2532 ยี่ห้อ
C98: "PESIDENT”
A99: 5) ตู้เก็บแบบฟอร์ม | B99: 406 44 0010-13 | C99: ตู้เก็บเอกสาร 15 ลิ้นชัก | D99: 25 มิ.ย 44 | F99: 2200 | G99: =F99*4 -> 8800 | H99: ตกลงราคา | I99: ฎีกาที่ 104/160 | J99: สนง.ปลัด
C100: ขนาด 18x14x52” สีเทา | I100: ฎีกาที่ 29/159 | J100: ส่วนโยธา
C101: ยี่ห้อ ”PESIDENT” และ
C102: “KING’S STAR”
A104: 6) ล้อวัดระยะทาง | B104: 086 44 0001 | C104: ล้อวัดระยะทาง วงล้อขนาด | D104: 10 พ.ค 44 | F104: 7500 | G104: =F104*1 -> 7500 | H104: ตกลงราคา | I104: ฎีกาที่ 20/115 | J104: ส่วนโยธา
C105: เส้าผ่าศูนย์กลาง 30 ซม.
C106: มีด้ามจับแบบล็อคเก็บได้
A108: 7) หอกระจายข่าว | B108: 283-44-0003 | C108: หอกระจายข่าวตามแบบ | D108: 30 ก.ค 44 | F108: 30616 | G108: =F108*1 -> 30616 | H108: ตกลงราคา | I108: ฎีกาที่ 133/201 | J108: หมู่ที่ 6
C109: มาตรฐาน โดยมีเสาหอ
C110: กระจายข่าว สูง 12 เมตร
C111: พร้อมติดตั้งอุปกรณ์ครบชุด
A113: 8) ศาลาเอนกประสงค์ | B113: 007-44-0002 | C113: ศาลาเอนกประสงค์ประจำ | D113: 20 ส.ค 44 | F113: 122750 | G113: =F113*1 -> 122750 | H113: สอบราคา | I113: ฎีกาที่ 140/209 | J113: หมู่ที่ 8
C114: หมู่บ้าน ขนาดกว้าง 6 เมตร
C115: ยาว 12 เมตร
A117: 9) กล้องถ่ายวีดีโอ | B117: 454 44 0001 | C117: กล้องถ่ายวีดีโอ SONY รุ่น | D117: 14 ก.ย 44 | E117: 1053269 | F117: 34500 | G117: =F117*1 -> 34500 | H117: ตกลงราคา | I117: ฎีกาที่ 151/229 | J117: สำนักงาน
C118: DCR-TRV330E ระบบ
C119: ดิจิตอล 8 ความชัด 500 เส้น
C120: จอ LCD 2.5” ซูมภาพได้
C121: 700 เท่า Super Night Shot
C122: 0 ลักซ์ บันทึกภาพได้ใน
C123: ที่มืดสนิท
A124: 10) รถไถนา | B124: 602 42 0003-04 | C124: รถไถนาชนิดเดินตาม ขนาด | D124: 24 ก.ย 44 | E124: 396919, | F124: 45903 | G124: =F124*2 -> 91806 | H124: สอบราคา | I124: ฎีกาที่ 159/237 | J124: หมู่ที่ 9
C125: 8 แรงม้า มีอุปกรณ์ครบชุด | E125: 430610
C126: ยี่ห้อ “คูโบต้า” รุ่น ET 80
G127: =SUM(G87:G126) -> 349572
A128: พ.ศ.2545 (รายได้)
A129: 1) กล้องถ่ายรูปอัตโนมัติ | B129: 452 45 0002 | C129: กล้องถ่ายรูปอัตโนมัติ เลนส์ | D129: 12 มิ.ย 45 | E129: 6324116 | F129: 8000 | G129: =F129*1 -> 8000 | H129: ตกลงราคา | I129: ฎีกาที่ 27/191 | J129: ส่วนโยธา
C130: ขนาด 38-70 มม.หรือดีกว่า
C131: ใช้ฟิล์มขนาด 35 มม.
C132: มีไฟแวบในตัวกล้อง
A133: 2) โต๊ะประชุม 12 ที่นั่ง | B133: 400 45 0020 | C133: โต๊ะประชุมขนาด 12 คน | D133: 12 มิ.ย 45 | F133: 16000 | G133: =F133*2 -> 32000 | H133: ตกลงราคา | I133: ฎีกาที่ 131/192 | J133: สนง.ปลัด
B134: 401 45 0024 | C134: ประกอบด้วยโต๊ะยาว 6 ตัว
C135: หน้าโต๊ะสำหรับประธานต่อ
C136: มุม 2 ตัว และเก้าอี้ 12 ตัว
A137: 3) เครื่องคอมพิวเตอร์ | B137: 416 45 0002 | C137: PENTIUM IV 2.0 GHz | D137: 17 ก.ค 45 | F137: 48950 | G137: =F137*1 -> 48950 | H137: ตกลงราคา | I137: ฎีกาที่ 40/216 | J137: ส่วนการคลัง
C138: Monitor 17” RAM 256 MB
C139: HDD 40 GB พร้อมอุปกรณ์
C140: ต่อพ่วง, โต๊ะวางพร้อมเก้าอี้
A141: 4) ตู้เหล็กเก็บเอกสาร | B141: 406 45 0014-16 | C141: ตู้เหล็กมี 2 บาน สีเทา | D141: 11 ก.ย 45 | F141: 3200 | G141: =F141*3 -> 9600 | H141: ตกลงราคา | I141: ฎีกาที่ 182/274 | J141: สนง.ปลัด
C142: มอก.353-2532 ยี่ห้อ taiyo | I142: ฎีกาที่ 50/275 | J142: ส่วนการคลัง
G143: =SUM(G129:G142) -> 98550
A144: พ.ศ.2545 (เงินสะสม)
A145: 5) ที่ดิน | B145: 001 45 0001 | C145: ที่ดิน จำนวน 9 ไร่ 1 งาน | D145: 24 ก.ย 45 | F145: 1539049 | G145: =F145*1 -> 1539049 | H145: พิเศษ | I145: ฎีกาที่ 86/86 | J145: หมู่ที่ 10
C146: 4.90 ตารางวา
C147: (สำหรับก่อสร้างที่ทำการ อบต.)
A148: 6) เครื่องพ่นหมอกควัน | B148: 054 45 0001 | C148: เครื่องพ่นหมอกควันกำจัด | D148: 26 ก.ย 45 | F148: 50000 | G148: =F148*1 -> 50000 | H148: ตกลงราคา | I148: ฎีกาที่ 84/84 | J148: หมู่ที่ 1-12
C149: ยุงลาย ยี่ห้อไอจีบ้า
C150: รุ่น TF-35
G151: =SUM(G145:G150) -> 1589049
A152: พ.ศ.2546 (รายได้)
A153: 1) ศาลาอเนกประสงค์ | B153: 007-46-0003 | C153: ศาลาอเนกประสงค์ ขนาด | D153: 19 พ.ย 45 | F153: 199000 | G153: =F153*1 -> 199000 | H153: สอบราคา | I153: ฎีกาที่ 04/04 | J153: หมู่ที่ 5
C154: กว้าง 6 เมตร ยาว 12 เมตร
C155: มีพื้นที่ใช้สอย 72 ตร.ม.
A156: 2) โต๊ะเขียนแบบ | B156: 400 46 0021 | C156: โต๊ะเขียนแบบ ปรับระดับได้ | D156: 3 ม.ค 46 | F156: 4100 | G156: =F156*1 -> 4100 | H156: ตกลงราคา | I156: ฎีกาที่ 15/63 | J156: ส่วนโยธา
B157: 401 46 0025 | C157: ขนาด 80x120 ซม.
C158: พร้อมเก้าอี้
A159: 3) ไม้สต๊าฟและกล้องระดับ | B159: 051-46-0001 | C159: ไม้สต๊าฟอลูมิเนียม แบบพับ | D159: 21 ก.พ 46 | F159: 27000 | G159: =F159*1 -> 27000 | H159: ตกลงราคา | I159: ฎีกาที่ 19/97 | J159: ส่วนโยธา
B160: 078-46-0001 | C160: ขนาด 3 เมตร พร้อมด้วย
C161: กล้องระดับ Topcon 24 เท่า
C162: รุ่น AT-G6
A163: 4) หอกระจายข่าว | B163: 283-46-0004-05 | C163: หอกระจายข่าวแบบเสาสูง | D163: 8 ก.ค 46 | F163: 38500 | G163: =F163*2 -> 77000 | H163: ตกลงราคา | I163: ฎีกาที่ 158/231 | J163: หมู่ที่ 5
C164: 12 เมตร มีลำโพงฮอนด์ | I164: ฎีกาที่ 159/232 | J164: หมู่ที่ 7
C165: 4 ด้าน และอุปกรณ์ต่อพ่วง
A167: 5) ศาลาอเนกประสงค์ | B167: 007-46-0004 | C167: ศาลาอเนกประสงค์ ขนาด | D167: 18 ส.ค 46 | F167: 233500 | G167: =F167*1 -> 233500 | H167: สอบราคา | I167: ฎีกาที่ 186/271 | J167: หมู่ที่ 7
C168: กว้าง 6 เมตร ยาว 12 เมตร
C169: มีพื้นที่ใช้สอย 72 ตร.ม.
A171: 6) ศาลาอเนกประสงค์ | B171: 007-46-0005 | C171: ศาลาอเนกประสงค์ ขนาด | D171: 5 ก.ย 46 | F171: 238000 | G171: =F171*1 -> 238000 | H171: สอบราคา | I171: ฎีกาที่ 191/279 | J171: หมู่ที่ 12
C172: กว้าง 6 เมตร ยาว 12 เมตร
C173: มีพื้นที่ใช้สอย 72 ตร.ม.
A174: 7) รถจักรยานยนต์ | B174: 009 46 0002 | C174: ยี่ห้อซูซูกิ สแมช จูเนียร์ | D174: 22 ก.ย 46 | F174: 33380 | G174: =F174*1 -> 33380 | H174: ตกลงราคา | I174: ฎีกาที่ 39/289 | J174: ส่วนการคลัง
C175: รุ่น FD110XCSU-B
C176: สีเหลือง-ดำ แบบ 4 จังหวะ
C177: ปริมาตรกระบอกสูบ 110 ซีซี
C178: ระบบสตาร์ทเท้า
A179: 8) เครื่องคอมพิวเตอร์ | B179: 416 46 0004 | C179: เครื่องไมโครคอมพิวเตอร์ | D179: 22 ก.ย 46 | E179: E424-TH 310253 | F179: 80500 | G179: =F179*1 -> 80500 | H179: ตกลงราคา | I179: ฎีกาที่ 40/290 | J179: สำนักงาน
C180: ยี่ห้อ Mac พร้อมอุปกรณ์ดังนี้ | E180: 310253
C181: -Mouse
C182: -Keyboard
C183: -จอภาพ Powell 17 นิ้ว
C184: -เครื่องสำรองไฟฟ้า
C185: -เครื่องพิมพ์แบบ Laser
C186: -โต๊ะวางพร้อมเก้าอี้
G187: =SUM(G153:G186) -> 892480
A188: พ.ศ.2546 (เงินสะสม)
A189: 9) ถมดิน | C189: ถมดินลูกรัง กว้าง 30 เมตร | D189: 30 มิ.ย 46 | F189: 283500 | G189: =F189*1 -> 283500 | H189: สอบราคา | I189: ฎีกาที่ 78/78 | J189: หมู่ที่ 10
C190: ยาว 50 เมตร และถนนทางเข้า
C191: กว้าง 5 เมตร ระยะทางข้างละ
C192: 75 เมตร รวม 150 เมตร ฯ
C193: (สถานที่ก่อสร้าง อบต.
G194: =SUM(G189:G193) -> 283500
A195: พ.ศ.2546 (เงินอุดหนุน)
A196: 10) เครื่องคอมพิวเตอร์ | B196: 416 46 0003 | C196: เครื่องไมโครคอมพิวเตอร์ | D196: 18 ต.ค 45 | E196: 450930-360204-1 | F196: 79500 | G196: =F196*1 -> 79500 | H196: - | I196: - | J196: สนง.ปลัด | M196: กรมการ
C197: ยี่ห้อ Powell รุ่น Achilles | M197: ปกครอง
C198: P4160D พร้อมอุปกรณ์ดังนี้
C199: -Mouse | E199: 000000348952-9
C200: -Keyboard | E200: 000000311492-6
C201: -จอภาพ Powell 15 นิ้ว | E201: 000000342989-1
C202: -Modem 56 Kbps | E202: 000000354725-0
C203: -เครื่องพิมพ์แบบ Laser | E203: 000000304031-7
C204: -เครื่องสำรองไฟฟ้า | E204: 000000339872-2
C205: -เครื่องสแกนเนอร์,ลำโพง | E205: 000000340709-7
A206: 11) อาคารศูนย์พัฒนา | B206: 009-46-0001 | C206: อาคาร ขนาดกว้าง 6.50 เมตร | D206: 16 เม.ย 46 | F206: 356000 | G206: =F206*1 -> 356000 | H206: สอบราคา | I206: ฎีกาที่ 55/55 | J206: หมู่ที่ 1
A207: เด็กเล็ก | C207: ยาว 16 เมตร โดยมีพื้นที่ | I207: ฎีกาที่ 56/56
... 329 more rows

Sheet 56
A1: งานทะเบียนทรัพย์สิน
A2: องค์การบริหารส่วนตำบลหัวไทร อำเภอหัวไทร จังหวัดนครศรีธรรมราช
A3: สิ้นงวดปีงบประมาณ พ.ศ. 2556
A4: ประเภท | C4: เลขที่ หรือ รหัส | D4: ยี่ห้อ แบบ ขนาดและลักษณะ | E4: วัน/เดือน/ปีที่ได้รับกรรมสิทธิ์ | F4: ราคาต่อหน่วย(บาท) | G4: ราคารวม(บาท) | H4: วิธีได้มาซึ่งกรรมสิทธ์ | I4: เลขที่เอกสาร | J4: ใช้ประจำที่ | K4: จำหน่าย | L4: เลขที่ เอกสาร | M4: หมายเหตุ
A7: 1) | B7: ครุภัณฑ์สำนักงาน
B8: โต๊ะทำงาน | C8: 400 40 0010-11 | D8: โต๊ะทำงานระดับ 1-2 | E8: 3 มี.ค 40 | F8: 1500 | G8: 3000 | H8: ตกลงราคา | I8: 56/2540 | J8: สำนักงาน
C9: 400 43 0014-15 | D9: โต๊ะทำงานระดับ 3-6พร้อมเก้าอี้ | E9: 6 ม.ค 43 | F9: 2700 | G9: =F9*2 -> 5400 | H9: ตกลงราคา | I9: 25/2543 | J9: สำนักปลัด
C10: 400 43 0016-17 | D10: โต๊ะคอมพ์พร้อมเก้าอี้ | E10: 19 พ.ค 43 | H10: สอบราคา | I10: 27/43
C11: 400 44 0018-19 | D11: โต๊ะทำงานระดับ 3-6 พร้อม | E11: 28 ม.ค 44 | F11: 2900 | G11: =F11*2 -> 5800 | H11: ตกลงราคา | I11: 36/059 | J11: ปลัด/คลัง
I12: 14/060 | J12: ส่วนการคลัง
C13: 400 45 0020 | D13: โต๊ะประชุมขนาด 12 คน | E13: 12 มิ.ย 45 | F13: 16000 | G13: =F13*2 -> 32000 | H13: ตกลงราคา | I13: 131/192 | J13: สนง.ปลัด
C14: 400 46 0021 | D14: โต๊ะเขียนแบบ ปรับระดับได้ | E14: 3 ม.ค 46 | F14: 4100 | G14: =F14*1 -> 4100 | H14: ตกลงราคา | I14: 15/63 | J14: ส่วนโยธา
C15: 400 48 0022--32 | D15: โต๊ะทำงานระดับ 3-6พร้อมเก้าอี้ | E15: 18 เม.ย 48 | F15: 2600 | G15: 28600 | H15: ตกลงราคา | I15: 287-290/48 | J15: สนง.ปลัด
C16: 400 48 0033--42 | D16: โต๊ะทำงานระดับ 2 พร้อมเก้าอี้ | E16: 9 พ.ค 48 | F16: 1800 | G16: 10800 | H16: ตกลงราคา | I16: 357/48 | J16: สนง.ปลัด
C17: 400 49 0043--44 | D17: โต๊ะทำงานระดับ --2พร้อมเก้าอี้ | E17: 10 ก.พ 49 | F17: 1800 | G17: 3600 | H17: ตกลงราคา | I17: 277/49 | J17: สนง.ปลัด
C18: 400 49 0045--60 | D18: โต๊ะประชุม | E18: 31 ส.ค 49 | F18: 1000800 | G18: 32000 | H18: ตกลงราคา | I18: 900/49 | J18: สนง.ปลัด
A20: ประเภท | C20: เลขที่ หรือ รหัส | D20: ยี่ห้อ แบบ ขนาดและลักษณะ | E20: วัน/เดือน/ปีที่ได้รับกรรมสิทธิ์ | F20: ราคาต่อหน่วย(บาท) | G20: ราคารวม(บาท) | H20: วิธีได้มาซึ่งกรรมสิทธ์ | I20: เลขที่เอกสาร | J20: ใช้ประจำที่ | K20: จำหน่าย | L20: เลขที่ เอกสาร | M20: หมายเหตุ
C23: 400 51 0061-66 | D23: โต๊ะทำงานระดับ 3-6พร้อมเก้าอี้ | E23: 21 ม.ค 51 | F23: 3700 | G23: 22200 | H23: ตกลงราคา | I23: 245/51 | J23: สนง.ปลัด
C24: 400 51 0067 | D24: โต๊ะคอมพ์พร้อมเก้าอี้ | E24: 30 ก.ค 51 | F24: 3200 | G24: 3200 | H24: ตกลงราคา | I24: 960 | J24: สนง.ปลัด
C25: 400 52 0068-75 | D25: โต๊ะพร้อมเก้าอี้เด็กเล็กขนาด 6 ที่นั่ง( 1ชุด ประกอบด้วยโต๊ะ 1 ตัวและเก้าอี้1 ตัว) | E25: 30 มิ.ย 53 | F25: 5000 | G25: 40000 | H25: ตกลงราคา | I25: 978/52 | J25: ศพด.วัดหัวลำภูและศพดวัดทะเลปังแห่งละ 4 ชุด
B26: ตู้เหล็กเก็บเอกสาร | C26: 406 38 0001 | D26: ตู้เหล็กชนิด 2 บาน สีเทา | E26: 8 ก.ย 38 | F26: 3300 | G26: 3300 | H26: ได้รับบริจาค | I26: 5/2538 | J26: สำนักงาน
C27: 406 39 0002 | D27: ตู้เหล็ก 15 ลิ้นชัก | E27: 5 ก.ย 39 | F27: 2300 | G27: 2300 | H27: ตกลงราคา | I27: 105/40 | J27: สำนักงาน
C28: 406 40 0003-4 | D28: ตู้เหล็กชนิด 2 บาน สีเทา | E28: 16 ก.ค 40 | F28: 2300 | G28: 4600 | H28: ได้รับบริจาค | I28: 106/2540 | J28: สำนักงาน
C29: 406 40 0005 | D29: ตู้เหล็ก 15 ลิ้นชัก | E29: 16 ก.ค 40 | F29: 2300 | G29: 2300 | H29: ตกลงราคา | I29: 107/2540 | J29: สำนักงาน
C30: 406 42 0006 | D30: ตู้เหล็กชนิด 2 บาน สีเทา | E30: 18 ม.ค 42 | F30: 3600 | G30: 3600 | H30: ตกลงราคา | I30: 27/42 | J30: สำนักงาน
C31: 406 43 0007 | D31: ตู้เหล็กชนิด 2 บาน สีเทา | E31: 6 ม.ค 43 | F31: 3300 | G31: 3300 | H31: ตกลงราคา | I31: 262/43 | J31: สำนักงาน
C32: 406 44 0008 | D32: ตู้เหล็กชนิด 2 บาน สีเทา | E32: 28 ม.ค 44 | F32: 3200 | G32: 3200 | H32: ตกลงราคา | I32: 36/059 | J32: สำนักงาน
C33: 406 44 0009 | D33: ตู้เหล็กชนิด 2 บาน สีเทา | E33: 25 มิ.ย 44 | F33: 2600 | G33: 2600 | H33: ตกลงราคา | I33: 29/159 | J33: ส่วนโยธา
C34: 406 44 0010-13 | D34: ตู้เหล็ก 15 ลิ้นชัก | E34: 25 มิ.ย 44 | F34: 2200 | G34: 8800 | H34: ตกลงราคา | I34: 10/160 29/159 | J34: สำนักงาน ส่วนโยธา
C35: 406 45 0014-16 | D35: ตู้เหล็กชนิด 2 บาน สีเทา | E35: 11 ก.ย 45 | F35: 3200 | G35: 9600 | H35: ตกลงราคา | I35: 182/274 50/275 | J35: สำนักงาน ส่วนการคลัง
C36: 406 52 0017-18 | D36: ตู้เหล็กชนิด 2 บาน สีเทา | E36: 23 ก.พ 52 | F36: 4800 | G36: 9600 | H36: ตกลงราคา | I36: 380/52 | J36: ศพด.หัวลำภู
C37: 406 52 19-20 | D37: ตู้เก็บเอกสาร 3 ประตูทำด้วยไม้ | E37: 30 มิ.ย 52 | F37: 5000 | G37: 10000 | H37: ตกลงราคา | I37: 978 | J37: ศพด.วัดหัวลำภูและศพดวัดทะเลปังแห่งละ 4 ชุด
C38: 406 54 21-22 | D38: ตู้เหล็กชนิด 2 บาน สีเทา | E38: 14 ก.ย 54 | F38: 5200 | G38: 15600 | H38: ตกลงราคา | I38: 001102/54 | J38: คลัง
A39: ประเภท | C39: เลขที่ หรือ รหัส | D39: ยี่ห้อ แบบ ขนาดและลักษณะ | E39: วัน/เดือน/ปีที่ได้รับกรรมสิทธิ์ | F39: ราคาต่อหน่วย(บาท) | G39: ราคารวม(บาท) | H39: วิธีได้มาซึ่งกรรมสิทธ์ | I39: เลขที่เอกสาร | J39: ใช้ประจำที่ | K39: จำหน่าย | L39: เลขที่ เอกสาร | M39: หมายเหตุ
B42: พัดลม | C42: 432 39 001-2 | D42: ชนิดยื่นยี่ห้อ NATIONAL | E42: 5 ก.ย 39 | F42: 1600 | G42: 3200 | H42: รับบริจาค | J42: สำนักงาน
B43: เครื่องพิมพ์ดีด | C43: 413 40 0001-2 | D43: ขนาดแคร่ 18 นิ้ว OLIVETTI 1 | E43: 3มี.ค 40 | F43: 8600 | G43: 17200 | H43: ตกลงราคา | I43: 105/40 | J43: สำนักงาน
B44: เครื่องอัดสำเนา | C44: 418 40 0001 | D44: ชนิดเติมหมึก " แอคโทรแฟ็กซ์" | E44: 3มี.ค 40 | F44: 26000 | G44: 26000 | H44: ตกลงราคา | I44: 57/40 | J44: สำนักงาน
C45: 417 54 0002 | D45: ยี่ห้อ เก็ตเตอร์เนอร์ | E45: 21 ก.พ 54 | F45: 88000 | G45: 88000 | H45: ตกลงราคา | I45: 00345/54 | J45: สนง.ปลัด
B46: ตู้นิรภัย | C46: 612 40 0001 | D46: ยี่ห้อ KINGKONG | E46: 16ก.ค 40 | F46: 11000 | G46: 11000 | H46: ตกลงราคา | I46: 108/40 | J46: ส่วนการคลัง
B47: ชุดรับแขก | C47: 403480001-2 | D47: ชุดรับแขก 4ที่นั่งเข้ามุม 1 ตัว | E47: 18 พ.ค 48 | F47: 8000 | G47: 16000 | H47: ตกลงราคา | I47: 407 | J47: สนง.ปลัด
B48: ชั้นวางเอกสาร | C48: 404480001 | D48: ชั้นวางเอกสารติดฝาพนัง | E48: 3 ส.ค 48 | F48: 160280.37 | G48: 160280.37 | H48: สอบราคา | I48: 619 | J48: สนง.ปลัด
B49: ชั้นวางเอกสาร | C49: 404 50 0002 | D49: ชั้นวางเอกสาร | E49: 4 เม.ย. 50 | F49: 11000 | G49: 11000 | H49: ตกลงราคา | I49: 523 | J49: สนง. ปลัด
C50: 404 50 0003 | D50: ชั้นวางเอกสารแบบ 2ชั้น | E50: 4 เม.ย. 50 | F50: 12000 | G50: 12000 | H50: ตกลงราคา | I50: 523 | J50: สนง. ปลัด
C51: 404 50 0004-7 | D51: ชั้นวางเอกสารแบบ 4 ชุด | E51: 4 เม.ย. 50 | F51: 13000 | G51: 52000 | H51: ตกลงราคา | I51: 511 | J51: ส่วนการคลัง
B52: ตู้ปิดประกาศ | C52: 479480001-3 | D52: ตู้ปิดประกาศพร้อมกุญแจ | E52: 9 มิ.ย 48 | F52: 7500 | G52: 22500 | H52: ตกลงราคา | I52: 458 | J52: สนง.ปลัด
B53: เครื่องปรับอากาศ | C53: 420 48 0001-4 | D53: ชนิดแขวน12000บีทียู | E53: 14 มิ.ย 48 | F53: 19700 | G53: 78800 | H53: สอบราคา | I53: 465 | J53: สนง.ปลัด
C54: 420 48 0005-8 | D54: ชนิดแขวน25000บีทียู | E54: 14 มิ.ย 48 | F54: 28050 | G54: 112200 | H54: สอบราคา | I54: 465 | J54: สนง.ปลัด
C55: 420 49 0008 | D55: ซ่อมบำรุงครุภํณฑ์ | E55: 3 ก.พ 55 | F55: 14659 | G55: 14659 | H55: ตกลงราคา | I55: 236/55 | J55: ส่วนโยธา
C56: 420 49 0009 | D56: เครื่องปรับอากาศชนิด | E56: 28 ก.พ. 49 | F56: 32833 | G56: 98500 | H56: ตกลงราคา | I56: 344 | J56: สนง.ปลัด
C57: 420 49 0010 | D57: แขวน ยี่ห้อ NEC ขนาด | F57: 32833 | I57: 344
C58: 420 49 0011 | D58: 25,000 บีทียู | F58: 32834 | I58: 344
B59: ม่านปรับแสง | C59: 480 48 0001 | D59: ม่านปรับแสง 12 ช่อง | E59: 22 เม.ย 48 | F59: 25993 | G59: 25993 | H59: ตกลงราคา | I59: 303 | J59: สนง.ปลัด
B60: ตู้สาขาโทรศัพท์ | C60: 481 48 0001 | D60: ตู้สาขาโทรศัพท์พร้อมอุปกรณ์ | E60: 26 ส.ค 2548 | F60: 32000 | G60: 32000 | H60: ตกลงราคา | I60: 684 | J60: สนง.ปลัด
A61: ประเภท | C61: เลขที่ หรือ รหัส | D61: ยี่ห้อ แบบ ขนาดและลักษณะ | E61: วัน/เดือน/ปีที่ได้รับกรรมสิทธิ์ | F61: ราคาต่อหน่วย(บาท) | G61: ราคารวม(บาท) | H61: วิธีได้มาซึ่งกรรมสิทธ์ | I61: เลขที่เอกสาร | J61: ใช้ประจำที่ | K61: จำหน่าย | L61: เลขที่ เอกสาร | M61: หมายเหตุ
B64: โต๊ะหมู่บูชา | C64: 477 49 0001 | D64: โต๊ะหมู่บูชาชุด 9 หมู่ | E64: 10 ก.พ. 49 | F64: 6800 | G64: 6800 | H64: ตกลงราคา | I64: 276
B65: เครื่องเจาะกระดาษ | C65: 470 53 0002 | D65: เครื่องเจาะรูกระดาษ | E65: 1 ก.ย 53 | F65: 5000 | G65: 5000 | H65: ตกลงราคา | I65: 1097/53 | J65: สนง.ปลัด
B66: เครื่องเจาะกระดาษ | C66: 470 52 0001 | D66: 1) เครื่องเจาะกระดาษและ | E66: 23 ก.พ. 52 | F66: 16000 | G66: 16000 | H66: ตกลงราคา | I66: 379 | J66: สำนักปลัด
D67: เข้าเล่ม ยี่ห้อ Binco Come
D68: รุ่น Delta 2002
B69: โพเดียม | C69: 488 52 0001 - | D69: 2) แท่นยืนบรรยาย(โพเดียม) | E69: 8 เม.ย. 52 | F69: 7500 | G69: 15000 | H69: ตกลงราคา | I69: 567 | J69: สำนักปลัด
C70: '0002 | D70: ทำด้วยไม้ จำนวน 2 ชุด
B71: ฉากกั้น | C71: 489 52 0001 | D71: 3) ฉากกั้นสำนักงาน(ปาติชั่น) | E71: 8 เม.ย. 52 | F71: 10000 | G71: 10000 | H71: ตกลงราคา | I71: 567 | J71: ส่วนโยธา
D72: ทำด้วยไม้ จำนวน 1 ชุด
B73: เวทีห้องประชุม | C73: 490 52 0001 | D73: 4) เวทีห้องประชุมโดยใช้ | E73: 8 เม.ย. 52 | F73: 34000 | G73: 34000 | H73: ตกลงราคา | I73: 567 | J73: ห้องประชุม
D74: โครงคร่าวไม้ยกระดับสูง | J74: อบต.หัวไทร
D75: จากพื้นเดิม 0.15 ม.ขนาด
D76: กว้าง 2 ม. ยาว 6.10ม. ชน
D77: ฝาผนังทั้ง 2 ด้านพร้อมปูพื้นไม้ปาเก้
A78: 2) | B78: ครุภัณฑ์ไฟฟ้าและวิทยุ | C78: ผ่าน
B79: ชุดไมโครโฟนสำหรับห้องประชุม | C79: 485 50 0001 -17 | D79: ชุดไมโครโฟนสำหรับ | E79: 19 ม.ค. 50 | F79: 75000 | G79: 75000 | H79: ตกลงราคา | I79: 189 | J79: สนง. ปลัด
D80: ห้องประชุม(17ชิ้น) 1 ชุด
A81: ประเภท | C81: เลขที่ หรือ รหัส | D81: ยี่ห้อ แบบ ขนาดและลักษณะ | E81: วัน/เดือน/ปีที่ได้รับกรรมสิทธิ์ | F81: ราคาต่อหน่วย(บาท) | G81: ราคารวม(บาท) | H81: วิธีได้มาซึ่งกรรมสิทธ์ | I81: เลขที่เอกสาร | J81: ใช้ประจำที่ | K81: จำหน่าย | L81: เลขที่ เอกสาร | M81: หมายเหตุ
D84: เงินรายได้
B85: ระบบเครื่องขยายเสียง | C85: 459 52 0001-4 | D85: (1) ระบบเครื่องขยายเสียง | E85: 16 มิ.ย. 52 | G85: 48900 | H85: ตกลงราคา | I85: 795 | J85: ห้องประชุม
D86: ห้องประชุม อบต. | J86: อบต.หัวไทร
D87: ประกอบด้วย | E87: 16 มิ.ย. 52 | F87: 4850*4 | H87: ตกลงราคา | I87: 795
B88: - ลำโพงขยายเสียงขนาด 18ล้อ | D88: - ลำโพงขยายเสียงขนาด 18ล้อ
D89: (พร้อมอุปกรณ์ติดตั้ง) ยี่ห้อ
D90: NPEรุ่น V-ST 802 จำนวน 4 ตัว
B91: - เครื่องขยาย AC/DC 150 W | C91: 462 52 0001 | D91: - เครื่องขยาย AC/DC 150 W | E91: 16 มิ.ย. 52 | F91: 15000 | H91: ตกลงราคา | I91: 795
D92: กำลัง 300 W ยี่ห้อ NPE รุ่น
D93: PDA 300 จำนวน 1 เครื่อง
B94: - เครื่องมิกเซอร์ ยี่ห้อ NTS | C94: 491 52 0001 | D94: - เครื่องมิกเซอร์ ยี่ห้อ NTS | E94: 16 มิ.ย. 52 | F94: 9800 | H94: ตกลงราคา | I94: 795
D95: รุ่น STEREO MEXER M 12
D96: MICKLE จำนวน 1 เครื่อง
B97: - ขาไมค์ตั้งโต๊ะ รุ่น D-228A | C97: 452 52 0001-4 | D97: - ขาไมค์ตั้งโต๊ะ รุ่น D-228A | E97: 16 มิ.ย. 52 | F97: 550*4 | H97: ตกลงราคา | I97: 795
D98: จำนวน 4 อัน
B99: - ขาโปรเจคเตอร์ รุ่น PJ-002 | C99: 492 52 0001 | D99: - ขาโปรเจคเตอร์ รุ่น PJ-002 | E99: 16 มิ.ย. 52 | F99: 2500 | H99: ตกลงราคา | I99: 795
D100: จำนวน 1 อัน
D101: เงินอุดหนุนทั่วไป
B102: เครื่องรับส่งวิทยุพรัอม | D102: เครื่องรับส่งวิทยุพรัอม | E102: 24 ส.ค. 52 | G102: 94000 | H102: ตกลงราคา | I102: 1077
D103: อุปกรณ์ครบชุด (รวมค่าใบ
D104: อนุญาตใช้เครื่องและค่าติดตั้ง)
A105: ประเภท | C105: เลขที่ หรือ รหัส | D105: ยี่ห้อ แบบ ขนาดและลักษณะ | E105: วัน/เดือน/ปีที่ได้รับกรรมสิทธิ์ | F105: ราคาต่อหน่วย(บาท) | G105: ราคารวม(บาท) | H105: วิธีได้มาซึ่งกรรมสิทธ์ | I105: เลขที่เอกสาร | J105: ใช้ประจำที่ | K105: จำหน่าย | L105: เลขที่ เอกสาร | M105: หมายเหตุ
D108: ประกอบด้วย
B109: - เครื่องรับส่งวิทยุระบบYHF/FM | C109: 494 52 0001 | D109: - เครื่องรับส่งวิทยุระบบYHF/FM | E109: 24 ส.ค. 52 | F109: 32000 | H109: ตกลงราคา | I109: 1077 | J109: ที่ทำการ
D110: ชนิดประจำสถานีฐานกำลังส่ง | J110: อบต.
D111: 10 วัตต์ พร้อมอุปกรณ์ครบชุด
D112: จำนวน 1 เครื่อง และติดตั้ง
D113: เสาอากาศ 4 แร็ก
B114: - เครื่องรับส่งวิทยุระบบYHF/FM | C114: 494 52 0002 | D114: - เครื่องรับส่งวิทยุระบบYHF/FM | E114: 24 ส.ค. 52 | F114: 16500 | H114: ตกลงราคา | I114: 1077 | J114: รถยนต์อบต.
D115: ชนิดติดรถยนต์กำลังส่ง 10 วัตต์ | J115: กจ. 3543
D116: พร้อมอุปกรณ์ครบชุด จำนวน | J116: น.ศ
D117: 1 เครื่อง
B118: - เครื่องรับส่งวิทยุระบบYHF/FM | C118: 464 52 0001-7 | D118: - เครื่องรับส่งวิทยุระบบYHF/FM | E118: 24 ส.ค. 52 | F118: 45500 | H118: ตกลงราคา | I118: 1077 | J118: จนท.อปพร.
D119: ชนิดมือถือ กำลังส่ว 5 วัตต์
D120: พร้อมอุปกรณ์ครบชุด จำนวน
D121: 7 เครื่อง @ 6,500.- บาท
B122: เครื่องขยายเสียงแบบหูหิ้ว | C122: 493 55 0001 | D122: เครื่องขยายเสียงแบบหูหิ้ว | E122: 27 เม.ย 55 | F122: 3580 | G122: 3580 | H122: ตกลงราคา | I122: 423/55 | J122: สนง.ปลัด
D123: ยี่ห้อ suke รุ่น 599(มอก.1195-2536)
A125: ประเภท | C125: เลขที่ หรือ รหัส | D125: ยี่ห้อ แบบ ขนาดและลักษณะ | E125: วัน/เดือน/ปีที่ได้รับกรรมสิทธิ์ | F125: ราคาต่อหน่วย(บาท) | G125: ราคารวม(บาท) | H125: วิธีได้มาซึ่งกรรมสิทธ์ | I125: เลขที่เอกสาร | J125: ใช้ประจำที่ | K125: จำหน่าย | L125: เลขที่ เอกสาร | M125: หมายเหตุ
A128: 3) | B128: ครุภัณฑ์ยานพาหนะและขนส่ง
A129: 1) | B129: รถจักรยานยนต์ | C129: 009 42 0001 | D129: NF 110 (WAVE) ขนาด HONDA ขกท757 | E129: 24 เม.ย 42 | F129: 39000 | G129: =F129*1 -> 39000 | H129: ตกลงราคา | I129: 79/2542 | J129: สำนักงาน
C130: 009 46 0002 | D130: FDI110 สแช จูเนียร์ SUSUKI 495 | E130: 24 ก.ย 46 | F130: 33380 | G130: 33380 | H130: ตกลงราคา | I130: 39/289 | J130: ส่วนการคลัง
A131: 2) | B131: รถบรรทุกน้ำ | D131: รถบรรทุกน้ำ ขนาด 10,000 | E131: 16 ส.ค. 48
D132: ลิตร มิตซูบิซิ รุ่น ฟูโร่ ป.5321 นศ
D133: ซ่อมรถบรรทุกน้ำ | E133: 29 ส.ค 56 | F133: 38740 | G133: 38740 | H133: ตกลงราคา | I133: 846/56 | J133: สำนักปลัด
A134: 3) | B134: รถกู้ภัยเคลื่อนที่เร็ว | D134: รถกู้ภัยเคลื่อนที่เร็ว ยี่ห้อ อีซูซุ | E134: 16 ส.ค. 48
D135: รุ่น TFS 55 HPY บท9941 นศ
D136: ซ่อมรถกู้ภัยเคลื่อนที่เร็ว | E136: 12 มิ.ย 56 | F136: 9160 | G136: 9160 | H136: ตกลงราคา | I136: 613/56 | J136: สำนักปลัด
A137: 4) | B137: รถบรรทุกดีเซล | C137: 001 49 0001 | D137: รถบรรทุกดีเชล ขนาด 1 ตัน ก.จ | E137: 27 ธ.ค 49 | F137: 532000 | G137: 532000 | H137: สอบราคา | I137: 782 | J137: สนง.ปลัด
D138: .3543 ขับเคลื่อน 2 ล้อ แบบดับเบิ้ลแคบ ยี่ห้อ โตโยตา
D139: วีโก้ รุ่น 2.5 เจ สีบรอนซ์เงิน
A140: 5) | B140: รถบรรทุกขยะ | C140: 005 53 0001 | D140: รถบรรทุกขยะชนิดเปิดข้างเทท้าย | E140: 14 พ.ย 52 | F140: 1586000 | G140: 1586000
D141: ขนาด 6 ล้อ 6 ตัน
D142: ซ่อมรถบรรทุกขยะ | E142: 23 ก.ค 56 | F142: 32000 | G142: 32000 | H142: ตกลงราคา | I142: 906/56 | J142: สำนักปลัด
A143: 6) | B143: รถบรรทุกแบบเปิดข้างเทท้ายติดตั้งเครนไฮครอลิคฯ | C143: 006 55 0001 | D143: รถบรรทุกแบบเปิดข้างเทท้ายติดตั้งเครนไฮครอลิคพร้อมกระเช้าไฟฟ้า | E143: 4 ก.ค 55 | F143: 2545000 | G143: 2545000 | H143: สอบราคา | I143: 00641/55 | J143: ส่วนโยธา
D144: ยี่ห้ออีซูซุ หมายเลขทะเบียนรถ 81-9201 นศ.
A145: ประเภท | C145: เลขที่ หรือ รหัส | D145: ยี่ห้อ แบบ ขนาดและลักษณะ | E145: วัน/เดือน/ปีที่ได้รับกรรมสิทธิ์ | F145: ราคาต่อหน่วย(บาท) | G145: ราคารวม(บาท) | H145: วิธีได้มาซึ่งกรรมสิทธ์ | I145: เลขที่เอกสาร | J145: ใช้ประจำที่ | K145: จำหน่าย | L145: เลขที่ เอกสาร | M145: หมายเหตุ
A148: 4) | B148: ครุภัณฑ์การเกษตร | C148: ผ่าน
A149: 1) | B149: รถไถนา | C149: 602 42 0001-2 | D149: รถไถนาชนิดเดินตาม 8 แรงม้าET80 | E149: 13 ก.ย 42 | F149: 47000 | G149: =F149*2 -> 94000 | H149: สอบราคา | I149: 124/42 | J149: หมู่ที่ 2
A150: 2) | B150: เครื่องพ่นหมอกควัน | C150: 054 45 0001 | D150: เครื่องพ่นหมอกควันยี่ห้อ IGบ้า รุ่น TF-35 | E150: 26 ก.ย 45 | F150: 50000 | G150: =F150*1 -> 50000 | H150: ตกลงราคา | I150: 84/84 | J150: หมู่ที่ 1-12
A151: 3) | B151: เครื่องพ่นหมอกควัน | C151: 054 50 0002 | D151: เครื่องพ่นหมอกควัน | E151: 14 พ.ค 50 | F151: 61500 | G151: 61500 | H151: ตกลงราคา | I151: 654/50 | J151: สนง.ปลัด
A152: 4) | B152: เครื่องตัดหญ้า | C152: 491 53 0001-2 | D152: เครื่องตัดหญ้า ยี่ห้อ HONDA | E152: 15 มิ.ย 53 | F152: 8500 | G152: 17000 | H152: บริจาค
A153: 5) | B153: ครุภัณฑ์คอมพิวเตอร์
A154: 1) | B154: เครื่องคอมพิวเตอร์ | C154: 416 43 0001 | D154: PENTIUM III 600 MHg | E154: 19 พ.ค 43 | F154: 71500 | G154: =F154*1 -> 71500 | H154: สอบราคา | I154: 27/43 | J154: สำนักงาน
D155: Monitor 15” RAM 64 MB
D156: HDD 8.4 GB พร้อมอุปกรณ์ต่อพ่วง
B157: เครื่องคอมพิวเตอร์ | C157: 416 45 0002 | D157: PENTIUM IV 2.0 GHz | E157: 17 ก.ค 45 | F157: 48950 | G157: =F157*1 -> 48950 | H157: ตกลงราคา | I157: 40/216 | J157: ส่วนการคลัง
D158: Monitor 17” RAM 256 MB
D159: HDD 40 GB พร้อมอุปกรณ์
B160: เครื่องคอมพิวเตอร์ | C160: 416 46 0003 | D160: เครื่องไมโครคอมพิวเตอร์ | E160: 18 ต.ค 45 | F160: 79500 | G160: =F160*1 -> 79500 | H160: - | I160: - | J160: สนง.ปลัด
D161: ยี่ห้อ Powell รุ่น Achilles
D162: P4160D พร้อมอุปกรณ์ดังนี้
D163: -Mouse
D164: -Keyboard
D165: -จอภาพ Powell 15 นิ้ว
D166: -Modem 56 Kbps
D167: -เครื่องพิมพ์แบบ Laser
A168: ประเภท | C168: เลขที่ หรือ รหัส | D168: ยี่ห้อ แบบ ขนาดและลักษณะ | E168: วัน/เดือน/ปีที่ได้รับกรรมสิทธิ์ | F168: ราคาต่อหน่วย(บาท) | G168: ราคารวม(บาท) | H168: วิธีได้มาซึ่งกรรมสิทธ์ | I168: เลขที่เอกสาร | J168: ใช้ประจำที่ | K168: จำหน่าย | L168: เลขที่ เอกสาร | M168: หมายเหตุ
D171: -เครื่องสำรองไฟฟ้า
D172: -เครื่องสแกนเนอร์,ลำโพง
C173: 416 46 0003 | D173: ซ่อมบำรุงคอมพิวเตอร์ | E173: 14 พ.ค 56 | F173: 14390 | G173: 14390 | H173: ตกลงราคา | I173: 535/56 | J173: สำนักปลัด
B174: เครื่องคอมพิวเตอร์ | C174: 416 46 0004 | D174: เครื่องไมโครคอมพิวเตอร์ | E174: 22 ก.ย 46 | F174: 80500 | G174: =F174*1 -> 80500 | H174: ตกลงราคา | I174: 40/290 | J174: สำนักงาน
D175: ยี่ห้อ Mac พร้อมอุปกรณ์ดังนี้
D176: -Mouse
D177: -Keyboard
D178: -จอภาพ Powell 17 นิ้ว
D179: -เครื่องสำรองไฟฟ้า
D180: -เครื่องพิมพ์แบบ Laser
D181: หมู่บ้าน ขนาดกว้าง 6 เมตร
D182: ยาว 12 เมตร
B183: เครื่องคอมพิวเตอร์ | C183: 416 48 0005 | D183: คอมพิวเตอร์ ACER SA 60 | E183: 22 ส.ค 48 | F183: 65000 | G183: 65000 | H183: สอบราคา | I183: 631 | J183: ส่วนโยธา
D184: พร้อมอุปกรณ์ต่อพ่วง
C185: 416 48 0006-8 | D185: คอมพิวเตอร์ ACER SA 60 | F185: 31666 | G185: 95000 | H185: สอบราคา | I185: 628 | J185: สนง.ปลัด
F186: 31666.66 | I186: 630 | J186: ส่วนการคลัง
F187: 31666.66 | I187: 629 | J187: สนง.ปลัด
B188: ครุภัณฑ์คอมพิวเตอร์ | C188: 416 50 0009 | D188: เครื่องคอมพิวเตอร์ | E188: 12 เม.ย. 50 | F188: 20700 | G188: =20700 -> 20700 | H188: สอบราคา | I188: 540 | J188: ส่วนการคลัง
B189: ครุภัณฑ์คอมพิวเตอร์ | C189: 416 51 0010 | D189: เครื่องคอมพิวเตอร์พร้อม | E189: 20 ก.พ 51 | F189: 38000 | G189: 38000 | H189: สอบราคา | I189: 540 | J189: สนง. ปลัด
D190: อุปกรณ์ต่อพ่วง 1 ชุด
A191: ประเภท | C191: เลขที่ หรือ รหัส | D191: ยี่ห้อ แบบ ขนาดและลักษณะ | E191: วัน/เดือน/ปีที่ได้รับกรรมสิทธิ์ | F191: ราคาต่อหน่วย(บาท) | G191: ราคารวม(บาท) | H191: วิธีได้มาซึ่งกรรมสิทธ์ | I191: เลขที่เอกสาร | J191: ใช้ประจำที่ | K191: จำหน่าย | L191: เลขที่ เอกสาร | M191: หมายเหตุ
B194: ครุภัณฑ์คอมพิวเตอร์ | C194: 416 51 0011 | D194: เครื่องคอมพิวเตอร์พร้อม | E194: 30 ก.ค 51 | F194: 60000 | G194: 60000 | H194: สอบราคา | I194: 540/51 | J194: สนง. ปลัด
D195: อุปกรณ์ต่อพ่วง 1 ชุด
B196: ครุภัณฑ์คอมพิวเตอร์ | C196: 416 53 0012 | D196: เครื่องคอมพิวเตอร์พร้อม | E196: 22 ม.ค 53 | F196: 34000 | G196: 34000 | H196: ตกลงราคา | I196: 329/53 | J196: ส่วนการคลัง
D197: อุปกรณ์ต่อพ่วง 1 ชุด (เครื่องปริ้น)
B198: ครุภัณฑ์คอมพิวเตอร์ | C198: 416 56 0013-14 | D198: เครื่องคอมพิวเตอร์ชนิดตั้งโต๊ะยี่ห้อHP | E198: 22 มี.ค 2556 | F198: 26000 | G198: 52000 | H198: ตกลงราคา | I198: 423/56 | J198: ศพด.หัวลำภู
D199: รุ่น Pro 6300 | J199: ศพด.ทะเลปัง
B200: ครุภัณฑ์คอมพิวเตอร์ | C200: 416 56 0015-17 | D200: เครื่องคอมพิวเตอร์ชนิดตั้งโต๊ะยี่ห้อHP | E200: 13 ส.ค 2556 | F200: 13500 | G200: 40500 | H200: สอบราคา | I200: 805-8/56 | J200: สนง.ปลัด 2
D201: รุ่น Pavillion 110-031l | J201: กองคลัง 1
B202: ครุภัณฑ์คอมพิวเตอร์ | C202: 416 56 0018 | D202: เครื่องคอมพิวเตอร์ชนิดตั้งโต๊ะยี่ห้อHP | E202: 13 ส.ค 2556 | F202: 20300 | G202: 20300 | H202: สอบราคา | I202: 809/56 | J202: กองช่าง
D203: รุ่น Pro 3330 MT
B205: ครุภัณฑ์คอมพิวเตอร์ | C205: 484 51 0003 | D205: เครื่องคอมพิวเตอร์ (notebock) | E205: 20 ก.พ 51 | F205: 45300 | G205: 45300 | H205: ตกลงราคา | I205: 858 | J205: ส่วนโยธา
C206: 484 56 0004-6 | D206: เครื่องคอมพิวเตอร์ (notebock)ยี่ห้อ Aser | E206: 13 ส.ค 2556 | F206: 15000 | G206: 45000 | H206: สอบราคา | I206: 805/56 | J206: สำนักปลัด
D207: รุ่น TMP243-M-33124G75makk
C208: 483 49 0001-2 | D208: เครื่องคอมพิวเตอร์ (poket Pc) | E208: 27 ธ.ค 49 | F208: 13000 | G208: 26000 | H208: ตกลงราคา | I208: 186 | J208: สำนักปลัด
B209: เครื่องพริ้นเตอร์ | C209: 486 51 0002 | D209: เครื่องพริ้นเตอร์ 1 เครื่อง | E209: 20 ก.พ 51 | F209: 3200 | G209: 3200 | H209: ตกลงราคา | I209: 858 | J209: ส่วนโยธา
B210: เครื่องพริ้นเตอร์ | C210: 486 51 0003 | D210: เครื่องพริ้นเตอร์ 1 เครื่อง HP | E210: 20 ก.พ 51 | F210: 3200 | G210: 3300 | H210: ตกลงราคา | I210: 858 | J210: ส่วนโยธา
B211: เครื่องพริ้นเตอร์ | C211: 486 51 0004 | D211: เครื่องพริ้นเตอร์ 1 เครื่อง HP | E211: 15 มิ.ย 53 | F211: 4500 | G211: 4500 | H211: บริจาค
A213: ประเภท | C213: เลขที่ หรือ รหัส | D213: ยี่ห้อ แบบ ขนาดและลักษณะ | E213: วัน/เดือน/ปีที่ได้รับกรรมสิทธิ์ | F213: ราคาต่อหน่วย(บาท) | G213: ราคารวม(บาท) | H213: วิธีได้มาซึ่งกรรมสิทธ์ | I213: เลขที่เอกสาร | J213: ใช้ประจำที่
K214: จำหน่าย | L214: เลขที่ เอกสาร | M214: หมายเหตุ
C216: 486 56 0005-9 | D216: เครื่องพริ้นเตอร์ 1 เครื่อง FUJI Xerox | E216: 13 ส.ค 2556 | F216: 1990 | G216: 9950 | H216: สอบราคา | I216: 805-8/56 | J216: สนง.ปลัด 2
D217: รุ่น DocuPrint P2056 | J217: กองคลัง 1
J218: ศพด.หัวลำภู
J219: ศพด.ทะเลปัง
C220: 486 56 0010 | D220: เครื่องพริ้นเตอร์ 1 เครื่อง Brother รุ่น | E220: 13 ส.ค 2556 | F220: 5290 | G220: 5290 | H220: สอบราคา | I220: 809/56 | J220: กองช่าง
D221: HL-2250DN
B222: เครื่องสำรองไฟ | C222: 487 56 0001-6 | D222: เครื่องสำรองจ่ายไฟขนาด 850 va | E222: 13 ส.ค 2556 | F222: 1460 | G222: 8760 | H222: สอบราคา | I222: 805-9/56 | J222: สนง.ปลัด 2
D223: ยี่ห้อ CBC รุ่น Champ | J223: กองคลัง 1
J224: ศพด.หัวลำภู
J225: ศพด.ทะเลปัง
... 189 more rows

Sheet ทรัพย์สิน
A1: งานทะเบียนทรัพย์สิน
A2: องค์การบริหารส่วนตำบลหัวไทร อำเภอหัวไทร จังหวัดนครศรีธรรมราช
A3: สิ้นงวดปีงบประมาณ พ.ศ. 2555
A4: ประเภท | C4: เลขที่ หรือ รหัส | D4: ยี่ห้อ แบบ ขนาดและลักษณะ | E4: วัน/เดือน/ปีที่ได้รับกรรมสิทธิ์ | F4: ราคาต่อหน่วย(บาท) | G4: ราคารวม(บาท) | H4: วิธีได้มาซึ่งกรรมสิทธ์ | I4: เลขที่เอกสาร | J4: ใช้ประจำที่ | K4: จำหน่าย | L4: เลขที่ เอกสาร | M4: หมายเหตุ
B7: ครุภัณฑ์สำนักงาน
A8: 1 | B8: โต๊ะทำงาน | C8: 400 38 0001-2 | D8: โต๊ะทำงานระดับ 3-6 มี 4 ลิ้นชัก | E8: 8 ก.ย 38 | F8: 2900 | H8: ตกลงราคา | I8: 8/2538 | J8: สำนักงาน | K8: 5800 | L8: 164/53
C9: 400 38 0003-7 | D9: โต๊ะไม้ธรรมดา ขนาด 58"X35" | E9: 8 ก.ย 38 | F9: 845 | H9: ตกลงราคา | I9: 7/2538 | J9: สำนักงาน | K9: 4225 | L9: 269/52
C10: 400 38 0008 | D10: โต๊ะไม้ มี 2 ลิ้นชัก | E10: 8 ก.ย 38 | F10: 1600 | H10: ตกลงราคา | I10: 6/2538 | J10: สำนักงาน | K10: 1600 | L10: 164/53
C11: 400 39 0009 | D11: โต๊ะไม้ธรรมดา | E11: 2 ก.ย 39 | F11: 845 | H11: ได้รับบริจาค | I11: - | J11: สำนักงาน | K11: 845 | L11: 269/52
C12: 400 40 0010-11 | D12: โต๊ะทำงานระดับ 1-2 | E12: 3 มี.ค 40 | F12: 1500 | G12: 3000 | H12: ตกลงราคา | I12: 56/2540 | J12: สำนักงาน
C13: 400 40 0012-13 | D13: โต๊ะไม้มี 2 ลิ้นชักพร้อมเก้าอี้ | E13: 16 ก.ค 40 | F13: 1500 | H13: ตกลงราคา | I13: 105/40 | J13: สำนักงาน | K13: 3000 | L13: 269/52
C14: 400 43 0014-15 | D14: โต๊ะทำงานระดับ 3-6พร้อมเก้าอี้ | E14: 6 ม.ค 43 | F14: 2700 | G14: =F14*2 -> 5400 | H14: ตกลงราคา | I14: 25/2543 | J14: สำนักปลัด
C15: 400 43 0016-17 | D15: โต๊ะคอมพ์พร้อมเก้าอี้ | E15: 19 พ.ค 43 | H15: สอบราคา | I15: 27/43
C16: 400 44 0018-19 | D16: โต๊ะทำงานระดับ 3-6 พร้อม | E16: 28 ม.ค 44 | F16: 2900 | G16: =F16*2 -> 5800 | H16: ตกลงราคา | I16: 36/059 | J16: ปลัด/คลัง
I17: 14/060 | J17: ส่วนการคลัง
C18: 400 45 0020 | D18: โต๊ะประชุมขนาด 12 คน | E18: 12 มิ.ย 45 | F18: 16000 | G18: =F18*2 -> 32000 | H18: ตกลงราคา | I18: 131/192 | J18: สนง.ปลัด
C19: 400 46 0021 | D19: โต๊ะเขียนแบบ ปรับระดับได้ | E19: 3 ม.ค 46 | F19: 4100 | G19: =F19*1 -> 4100 | H19: ตกลงราคา | I19: 15/63 | J19: ส่วนโยธา
C20: 400 48 0022--32 | D20: โต๊ะทำงานระดับ 3-6พร้อมเก้าอี้ | E20: 18 เม.ย 48 | F20: 2600 | G20: 28600 | H20: ตกลงราคา | I20: 287-290/48 | J20: สนง.ปลัด
C21: 400 48 0033--42 | D21: โต๊ะทำงานระดับ 2 พร้อมเก้าอี้ | E21: 9 พ.ค 48 | F21: 1800 | G21: 10800 | H21: ตกลงราคา | I21: 357/48 | J21: สนง.ปลัด
C22: 400 49 0043--44 | D22: โต๊ะทำงานระดับ --2พร้อมเก้าอี้ | E22: 10 ก.พ 49 | F22: 1800 | G22: 3600 | H22: ตกลงราคา | I22: 277/49 | J22: สนง.ปลัด
C23: 400 49 0045--60 | D23: โต๊ะประชุม | E23: 31 ส.ค 49 | F23: 1000800 | G23: 32000 | H23: ตกลงราคา | I23: 900/49 | J23: สนง.ปลัด
A24: ประเภท | C24: เลขที่ หรือ รหัส | D24: ยี่ห้อ แบบ ขนาดและลักษณะ | E24: วัน/เดือน/ปีที่ได้รับกรรมสิทธิ์ | F24: ราคาต่อหน่วย(บาท) | G24: ราคารวม(บาท) | H24: วิธีได้มาซึ่งกรรมสิทธ์ | I24: เลขที่เอกสาร | J24: ใช้ประจำที่ | K24: จำหน่าย | L24: เลขที่ เอกสาร | M24: หมายเหตุ
C27: 400 51 0061-66 | D27: โต๊ะทำงานระดับ 3-6พร้อมเก้าอี้ | E27: 21 ม.ค 51 | F27: 3700 | G27: 22200 | H27: ตกลงราคา | I27: 245/51 | J27: สนง.ปลัด
C28: 400 51 0067 | D28: โต๊ะคอมพ์พร้อมเก้าอี้ | E28: 30 ก.ค 51 | F28: 3200 | G28: 3200 | H28: ตกลงราคา | I28: 960 | J28: สนง.ปลัด
C29: 400 52 0068-75 | D29: โต๊ะพร้อมเก้าอี้เด็กเล็กขนาด 6 ที่นั่ง( 1ชุด ประกอบด้วยโต๊ะ 1 ตัวและเก้าอี้1 ตัว) | E29: 30 มิ.ย 53 | F29: 5000 | G29: 40000 | H29: ตกลงราคา | I29: 978/52 | J29: ศพด.วัดหัวลำภูและศพดวัดทะเลปังแห่งละ 4 ชุด
A30: 2 | B30: เก้าอี้ | C30: 401 38 0001-22 | D30: เก้าอี้ชนิดหมุนได้ มีล้อ | E30: 8 ก.ย 39 | F30: 900 | I30: 7/2538 | J30: สำนักงาน | K30: 19800 | L30: 269/52 | M30: 164/53
C31: 401 43 0023 | D31: เก้าอี้ (โต๊ะคอมพ์พร้อมเก้าอี้) | E31: 2 ก.ย 39 | H31: สอบราคา | I31: - | J31: สำนักงาน
C32: 401 43 0024 | D32: เก้าอี้ (โต๊ะประชุม) | E32: 2 ก.ย 39
C33: 401 43 0025 | D33: เก้าอี้ (โต๊ะเขียนแบบ)
A34: 3 | B34: ตู้เหล็กเก็บเอกสาร | C34: 406 38 0001 | D34: ตู้เหล็กชนิด 2 บาน สีเทา | E34: 8 ก.ย 38 | F34: 3300 | G34: 3300 | H34: ได้รับบริจาค | I34: 5/2538 | J34: สำนักงาน
C35: 406 39 0002 | D35: ตู้เหล็ก 15 ลิ้นชัก | E35: 5 ก.ย 39 | F35: 2300 | G35: 2300 | H35: ตกลงราคา | I35: 105/40 | J35: สำนักงาน
C36: 406 40 0003-4 | D36: ตู้เหล็กชนิด 2 บาน สีเทา | E36: 16 ก.ค 40 | F36: 2300 | G36: 4600 | H36: ได้รับบริจาค | I36: 106/2540 | J36: สำนักงาน
C37: 406 40 0005 | D37: ตู้เหล็ก 15 ลิ้นชัก | E37: 16 ก.ค 40 | F37: 2300 | G37: 2300 | H37: ตกลงราคา | I37: 107/2540 | J37: สำนักงาน
C38: 406 42 0006 | D38: ตู้เหล็กชนิด 2 บาน สีเทา | E38: 18 ม.ค 42 | F38: 3600 | G38: 3600 | H38: ตกลงราคา | I38: 27/42 | J38: สำนักงาน
C39: 406 43 0007 | D39: ตู้เหล็กชนิด 2 บาน สีเทา | E39: 6 ม.ค 43 | F39: 3300 | G39: 3300 | H39: ตกลงราคา | I39: 262/43 | J39: สำนักงาน
C40: 406 44 0008 | D40: ตู้เหล็กชนิด 2 บาน สีเทา | E40: 28 ม.ค 44 | F40: 3200 | G40: 3200 | H40: ตกลงราคา | I40: 36/059 | J40: สำนักงาน
C41: 406 44 0009 | D41: ตู้เหล็กชนิด 2 บาน สีเทา | E41: 25 มิ.ย 44 | F41: 2600 | G41: 2600 | H41: ตกลงราคา | I41: 29/159 | J41: ส่วนโยธา
C42: 406 44 0010-13 | D42: ตู้เหล็ก 15 ลิ้นชัก | E42: 25 มิ.ย 44 | F42: 2200 | G42: 8800 | H42: ตกลงราคา | I42: 10/160 29/159 | J42: สำนักงาน ส่วนโยธา
C43: 406 45 0014-16 | D43: ตู้เหล็กชนิด 2 บาน สีเทา | E43: 11 ก.ย 45 | F43: 3200 | G43: 9600 | H43: ตกลงราคา | I43: 182/274 50/275 | J43: สำนักงาน ส่วนการคลัง
C44: 406 52 0017-18 | D44: ตู้เหล็กชนิด 2 บาน สีเทา | E44: 23 ก.พ 52 | F44: 4800 | G44: 9600 | H44: ตกลงราคา | I44: 380/52 | J44: ศพด.หัวลำภู
C45: 406 52 19-20 | D45: ตู้เก็บเอกสาร 3 ประตูทำด้วยไม้ | E45: 30 มิ.ย 52 | F45: 5000 | G45: 10000 | H45: ตกลงราคา | I45: 978 | J45: ศพด.วัดหัวลำภูและศพดวัดทะเลปังแห่งละ 4 ชุด
C46: 406 54 21-22 | D46: ตู้เหล็กชนิด 2 บาน สีเทา | E46: 14 ก.ย 54 | F46: 5200 | G46: 15600 | H46: ตกลงราคา | I46: 001102/54 | J46: คลัง
A47: ประเภท | C47: เลขที่ หรือ รหัส | D47: ยี่ห้อ แบบ ขนาดและลักษณะ | E47: วัน/เดือน/ปีที่ได้รับกรรมสิทธิ์ | F47: ราคาต่อหน่วย(บาท) | G47: ราคารวม(บาท) | H47: วิธีได้มาซึ่งกรรมสิทธ์ | I47: เลขที่เอกสาร | J47: ใช้ประจำที่ | K47: จำหน่าย | L47: เลขที่ เอกสาร | M47: หมายเหตุ
A50: 4 | B50: พัดลม | C50: 432 39 001-2 | D50: ชนิดยื่นยี่ห้อ NATIONAL | E50: 5 ก.ย 39 | F50: 1600 | G50: 3200 | H50: รับบริจาค | J50: สำนักงาน
A51: 5 | B51: เครื่องพิมพ์ดีด | C51: 413 40 0001-2 | D51: ขนาดแคร่ 18 นิ้ว OLIVETTI 1 | E51: 3มี.ค 40 | F51: 8600 | G51: 17200 | H51: ตกลงราคา | I51: 105/40 | J51: สำนักงาน
A52: 6 | B52: เครื่องอัดสำเนา | C52: 418 40 0001 | D52: ชนิดเติมหมึก " แอคโทรแฟ็กซ์" | E52: 3มี.ค 40 | F52: 26000 | G52: 26000 | H52: ตกลงราคา | I52: 57/40 | J52: สำนักงาน
A53: 7 | B53: เครื่องคำนวณเลข | C53: 415 40 0001 | D53: ยี่ห้อ MORGAN | E53: 3มี.ค 40 | F53: 2500 | H53: ตกลงราคา | I53: 60/40 | J53: ส่วนการคลัง | K53: 2500 | L53: 164/53
A54: 8 | B54: ตู้นิรภัย | C54: 612 40 0001 | D54: ยี่ห้อ KINGKONG | E54: 16ก.ค 40 | F54: 11000 | G54: 11000 | H54: ตกลงราคา | I54: 108/40 | J54: ส่วนการคลัง
A55: 9 | B55: โทรศัพท์ | C55: 423 40 0001 | D55: โทรศัพท์ ยี่ห้อ RISH | E55: 1 ก.ย 40 | F55: 1200 | H55: ตกลงราคา | I55: 128/40 | J55: สนง.ปลัด | K55: 1200 | L55: 269/52
A56: 10 | B56: เครื่องถ่ายเอกสาร | C56: 417 41 0001 | D56: ยี่ห้อ เก็ตเตอร์เนอร์ | E56: 29 ก.ย 41 | F56: 94000 | H56: ตกลงราคา | I56: 79/42 | J56: สำนักงาน | K56: 94000 | L56: 14/54 | M56: 17 ม.ค 54
C57: 417 54 0002 | D57: ยี่ห้อ เก็ตเตอร์เนอร์ | E57: 21 ก.พ 54 | F57: 88000 | G57: 88000 | H57: ตกลงราคา | I57: 00345/54 | J57: สนง.ปลัด
A58: 11 | B58: ชุดรับแขก | C58: 403480001-2 | D58: ชุดรับแขก 4ที่นั่งเข้ามุม 1 ตัว | E58: 18 พ.ค 48 | F58: 8000 | G58: 16000 | H58: ตกลงราคา | I58: 407 | J58: สนง.ปลัด
A59: 12 | B59: ชั้นวางเอกสาร | C59: 404480001 | D59: ชั้นวางเอกสารติดฝาพนัง | E59: 3 ส.ค 48 | F59: 160280.37 | G59: 160280.37 | H59: สอบราคา | I59: 619 | J59: สนง.ปลัด
B60: ชั้นวางเอกสาร | C60: 404 50 0002 | D60: ชั้นวางเอกสาร | E60: 4 เม.ย. 50 | F60: 11000 | G60: 11000 | H60: ตกลงราคา | I60: 523 | J60: สนง. ปลัด
C61: 404 50 0003 | D61: ชั้นวางเอกสารแบบ 2ชั้น | E61: 4 เม.ย. 50 | F61: 12000 | G61: 12000 | H61: ตกลงราคา | I61: 523 | J61: สนง. ปลัด
C62: 404 50 0004-7 | D62: ชั้นวางเอกสารแบบ 4 ชุด | E62: 4 เม.ย. 50 | F62: 13000 | G62: 52000 | H62: ตกลงราคา | I62: 511 | J62: ส่วนการคลัง
A63: 13 | B63: ตู้ปิดประกาศ | C63: 479480001-3 | D63: ตู้ปิดประกาศพร้อมกุญแจ | E63: 9 มิ.ย 48 | F63: 7500 | G63: 22500 | H63: ตกลงราคา | I63: 458 | J63: สนง.ปลัด
A64: 14 | B64: เครื่องปรับอากาศ | C64: 420 48 0001-4 | D64: ชนิดแขวน12000บีทียู | E64: 14 มิ.ย 48 | F64: 19700 | G64: 78800 | H64: สอบราคา | I64: 465 | J64: สนง.ปลัด
C65: 420 48 0005-8 | D65: ชนิดแขวน25000บีทียู | E65: 14 มิ.ย 48 | F65: 28050 | G65: 112200 | H65: สอบราคา | I65: 465 | J65: สนง.ปลัด
C66: 420 49 0008 | D66: ซ่อมบำรุงครุภํณฑ์ | E66: 3 ก.พ 55 | F66: 14659 | G66: 14659 | H66: ตกลงราคา | I66: 236/55 | J66: ส่วนโยธา
C67: 420 49 0009 | D67: เครื่องปรับอากาศชนิด | E67: 28 ก.พ. 49 | F67: 32833 | G67: 98500 | H67: ตกลงราคา | I67: 344 | J67: สนง.ปลัด
C68: 420 49 0010 | D68: แขวน ยี่ห้อ NEC ขนาด | F68: 32833 | I68: 344
C69: 420 49 0011 | D69: 25,000 บีทียู | F69: 32834 | I69: 344
A70: 15 | B70: ม่านปรับแสง | C70: 480 48 0001 | D70: ม่านปรับแสง 12 ช่อง | E70: 22 เม.ย 48 | F70: 25993 | G70: 25993 | H70: ตกลงราคา | I70: 303 | J70: สนง.ปลัด
A71: 16 | B71: ตู้สาขาโทรศัพท์ | C71: 481 48 0001 | D71: ตู้สาขาโทรศัพท์พร้อมอุปกรณ์ | E71: 26 ส.ค 2548 | F71: 32000 | G71: 32000 | H71: ตกลงราคา | I71: 684 | J71: สนง.ปลัด
A72: ประเภท | C72: เลขที่ หรือ รหัส | D72: ยี่ห้อ แบบ ขนาดและลักษณะ | E72: วัน/เดือน/ปีที่ได้รับกรรมสิทธิ์ | F72: ราคาต่อหน่วย(บาท) | G72: ราคารวม(บาท) | H72: วิธีได้มาซึ่งกรรมสิทธ์ | I72: เลขที่เอกสาร | J72: ใช้ประจำที่ | K72: จำหน่าย | L72: เลขที่ เอกสาร | M72: หมายเหตุ
A75: 17 | B75: โต๊ะหมู่บูชา | C75: 477 49 0001 | D75: โต๊ะหมู่บูชาชุด 9 หมู่ | E75: 10 ก.พ. 49 | F75: 6800 | G75: 6800 | H75: ตกลงราคา | I75: 276
A76: 18 | B76: เครื่องเจาะกระดาษ | C76: 470 53 0002 | D76: เครื่องเจาะรูกระดาษ | E76: 1 ก.ย 53 | F76: 5000 | G76: 5000 | H76: ตกลงราคา | I76: 1097/53 | J76: สนง.ปลัด
A77: 18 | B77: เครื่องเจาะกระดาษ | C77: 470 52 0001 | D77: 1) เครื่องเจาะกระดาษและ | E77: 23 ก.พ. 52 | F77: 16000 | G77: 16000 | H77: ตกลงราคา | I77: 379 | J77: สำนักปลัด
D78: เข้าเล่ม ยี่ห้อ Binco Come
D79: รุ่น Delta 2002
A80: 19 | B80: โพเดียม | C80: 488 52 0001 - | D80: 2) แท่นยืนบรรยาย(โพเดียม) | E80: 8 เม.ย. 52 | F80: 7500 | G80: 15000 | H80: ตกลงราคา | I80: 567 | J80: สำนักปลัด
C81: '0002 | D81: ทำด้วยไม้ จำนวน 2 ชุด
A82: 20 | B82: ฉากกั้น | C82: 489 52 0001 | D82: 3) ฉากกั้นสำนักงาน(ปาติชั่น) | E82: 8 เม.ย. 52 | F82: 10000 | G82: 10000 | H82: ตกลงราคา | I82: 567 | J82: ส่วนโยธา
D83: ทำด้วยไม้ จำนวน 1 ชุด
A84: 21 | B84: เวทีห้องประชุม | C84: 490 52 0001 | D84: 4) เวทีห้องประชุมโดยใช้ | E84: 8 เม.ย. 52 | F84: 34000 | G84: 34000 | H84: ตกลงราคา | I84: 567 | J84: ห้องประชุม
D85: โครงคร่าวไม้ยกระดับสูง | J85: อบต.หัวไทร
D86: จากพื้นเดิม 0.15 ม.ขนาด
D87: กว้าง 2 ม. ยาว 6.10ม. ชน
D88: ฝาผนังทั้ง 2 ด้านพร้อมปูพื้นไม้ปาเก้
A89: 22 | B89: โอ่งน้ำ | C89: โอ่งน้ำ | D89: ขนาดบรรจุ 25 ปี๊บ | E89: 29 ก.ย 38 | F89: 300 | K89: 19500 | L89: 269/52
B90: ครุภัณฑ์ไฟฟ้าและวิทยุ | C90: ผ่าน
A91: 1) | B91: เครื่องขยายเสียง | C91: 46 42 0001 | D91: เครื่องขยายเสียง 1 ชุด | E91: 13 ก.ย 42 | F91: 18600 | I91: 120/42 | J91: ตลาดเกดษตร | K91: 18600 | L91: 164/53
A93: 2) | B93: ชุดไมโครโฟนสำหรับห้องประชุม | C93: 485 50 0001 -17 | D93: ชุดไมโครโฟนสำหรับ | E93: 19 ม.ค. 50 | F93: 75000 | G93: 75000 | H93: ตกลงราคา | I93: 189 | J93: สนง. ปลัด
D94: ห้องประชุม(17ชิ้น) 1 ชุด
A95: ประเภท | C95: เลขที่ หรือ รหัส | D95: ยี่ห้อ แบบ ขนาดและลักษณะ | E95: วัน/เดือน/ปีที่ได้รับกรรมสิทธิ์ | F95: ราคาต่อหน่วย(บาท) | G95: ราคารวม(บาท) | H95: วิธีได้มาซึ่งกรรมสิทธ์ | I95: เลขที่เอกสาร | J95: ใช้ประจำที่ | K95: จำหน่าย | L95: เลขที่ เอกสาร | M95: หมายเหตุ
D98: เงินรายได้
A99: 3) | B99: ระบบเครื่องขยายเสียง | C99: 459 52 0001-4 | D99: (1) ระบบเครื่องขยายเสียง | E99: 16 มิ.ย. 52 | G99: 48900 | H99: ตกลงราคา | I99: 795 | J99: ห้องประชุม
D100: ห้องประชุม อบต. | J100: อบต.หัวไทร
D101: ประกอบด้วย | E101: 16 มิ.ย. 52 | F101: 4850*4 | H101: ตกลงราคา | I101: 795
B102: - ลำโพงขยายเสียงขนาด 18ล้อ | D102: - ลำโพงขยายเสียงขนาด 18ล้อ
D103: (พร้อมอุปกรณ์ติดตั้ง) ยี่ห้อ
D104: NPEรุ่น V-ST 802 จำนวน 4 ตัว
B105: - เครื่องขยาย AC/DC 150 W | C105: 462 52 0001 | D105: - เครื่องขยาย AC/DC 150 W | E105: 16 มิ.ย. 52 | F105: 15000 | H105: ตกลงราคา | I105: 795
D106: กำลัง 300 W ยี่ห้อ NPE รุ่น
D107: PDA 300 จำนวน 1 เครื่อง
B108: - เครื่องมิกเซอร์ ยี่ห้อ NTS | C108: 491 52 0001 | D108: - เครื่องมิกเซอร์ ยี่ห้อ NTS | E108: 16 มิ.ย. 52 | F108: 9800 | H108: ตกลงราคา | I108: 795
D109: รุ่น STEREO MEXER M 12
D110: MICKLE จำนวน 1 เครื่อง
B111: - ขาไมค์ตั้งโต๊ะ รุ่น D-228A | C111: 452 52 0001-4 | D111: - ขาไมค์ตั้งโต๊ะ รุ่น D-228A | E111: 16 มิ.ย. 52 | F111: 550*4 | H111: ตกลงราคา | I111: 795
D112: จำนวน 4 อัน
B113: - ขาโปรเจคเตอร์ รุ่น PJ-002 | C113: 492 52 0001 | D113: - ขาโปรเจคเตอร์ รุ่น PJ-002 | E113: 16 มิ.ย. 52 | F113: 2500 | H113: ตกลงราคา | I113: 795
D114: จำนวน 1 อัน
D115: เงินอุดหนุนทั่วไป
A116: 4) | B116: เครื่องรับส่งวิทยุพรัอม | D116: เครื่องรับส่งวิทยุพรัอม | E116: 24 ส.ค. 52 | G116: 94000 | H116: ตกลงราคา | I116: 1077
D117: อุปกรณ์ครบชุด (รวมค่าใบ
D118: อนุญาตใช้เครื่องและค่าติดตั้ง)
A119: ประเภท | C119: เลขที่ หรือ รหัส | D119: ยี่ห้อ แบบ ขนาดและลักษณะ | E119: วัน/เดือน/ปีที่ได้รับกรรมสิทธิ์ | F119: ราคาต่อหน่วย(บาท) | G119: ราคารวม(บาท) | H119: วิธีได้มาซึ่งกรรมสิทธ์ | I119: เลขที่เอกสาร | J119: ใช้ประจำที่ | K119: จำหน่าย | L119: เลขที่ เอกสาร | M119: หมายเหตุ
D122: ประกอบด้วย
B123: - เครื่องรับส่งวิทยุระบบYHF/FM | C123: 494 52 0001 | D123: - เครื่องรับส่งวิทยุระบบYHF/FM | E123: 24 ส.ค. 52 | F123: 32000 | H123: ตกลงราคา | I123: 1077 | J123: ที่ทำการ
D124: ชนิดประจำสถานีฐานกำลังส่ง | J124: อบต.
D125: 10 วัตต์ พร้อมอุปกรณ์ครบชุด
D126: จำนวน 1 เครื่อง และติดตั้ง
D127: เสาอากาศ 4 แร็ก
B128: - เครื่องรับส่งวิทยุระบบYHF/FM | C128: 494 52 0002 | D128: - เครื่องรับส่งวิทยุระบบYHF/FM | E128: 24 ส.ค. 52 | F128: 16500 | H128: ตกลงราคา | I128: 1077 | J128: รถยนต์อบต.
D129: ชนิดติดรถยนต์กำลังส่ง 10 วัตต์ | J129: กจ. 3543
D130: พร้อมอุปกรณ์ครบชุด จำนวน | J130: น.ศ
D131: 1 เครื่อง
B132: - เครื่องรับส่งวิทยุระบบYHF/FM | C132: 464 52 0001-7 | D132: - เครื่องรับส่งวิทยุระบบYHF/FM | E132: 24 ส.ค. 52 | F132: 45500 | H132: ตกลงราคา | I132: 1077 | J132: จนท.อปพร.
D133: ชนิดมือถือ กำลังส่ว 5 วัตต์
D134: พร้อมอุปกรณ์ครบชุด จำนวน
D135: 7 เครื่อง @ 6,500.- บาท
A136: 5) | B136: เครื่องขยายเสียงแบบหูหิ้ว | C136: 493 55 0001 | D136: เครื่องขยายเสียงแบบหูหิ้ว | E136: 27 เม.ย 55 | F136: 3580 | G136: 3580 | H136: ตกลงราคา | I136: 423/55 | J136: สนง.ปลัด
D137: ยี่ห้อ suke รุ่น 599(มอก.1195-2536)
A139: ประเภท | C139: เลขที่ หรือ รหัส | D139: ยี่ห้อ แบบ ขนาดและลักษณะ | E139: วัน/เดือน/ปีที่ได้รับกรรมสิทธิ์ | F139: ราคาต่อหน่วย(บาท) | G139: ราคารวม(บาท) | H139: วิธีได้มาซึ่งกรรมสิทธ์ | I139: เลขที่เอกสาร | J139: ใช้ประจำที่ | K139: จำหน่าย | L139: เลขที่ เอกสาร | M139: หมายเหตุ
B142: ครุภัณฑ์ยานพาหนะและขนส่ง
A143: 1) | B143: รถจักรยานยนต์ | C143: 009 42 0001 | D143: NF 110 (WAVE) ขนาด HONDA ขกท757 | E143: 24 เม.ย 42 | F143: 39000 | G143: =F143*1 -> 39000 | H143: ตกลงราคา | I143: 79/2542 | J143: สำนักงาน
C144: 009 46 0002 | D144: FDI110 สแช จูเนียร์ SUSUKI 495 | E144: 24 ก.ย 46 | F144: 33380 | G144: 33380 | H144: ตกลงราคา | I144: 39/289 | J144: ส่วนการคลัง
A145: 2) | B145: รถบรรทุกน้ำ | D145: รถบรรทุกน้ำ ขนาด 10,000 | E145: 16 ส.ค. 48
D146: ลิตร มิตซูบิซิ รุ่น ฟูโร่ ป.5321 นศ
A147: 3) | B147: รถกู้ภัยเคลื่อนที่เร็ว | D147: รถกู้ภัยเคลื่อนที่เร็ว ยี่ห้อ | E147: 16 ส.ค. 48
D148: อีซูซุ รุ่น TFS 55 HPY บท9941 นศ
A149: 4) | B149: รถบรรทุกดีเซล | C149: 001 49 0001 | D149: รถบรรทุกดีเชล ขนาด 1 ตัน ก.จ | E149: 27 ธ.ค 49 | F149: 532000 | G149: 532000 | H149: สอบราคา | I149: 782 | J149: สนง.ปลัด
D150: .3543 ขับเคลื่อน 2 ล้อ แบบดับเบิ้ลแคบ ยี่ห้อ โตโยตา
D151: วีโก้ รุ่น 2.5 เจ สีบรอนซ์เงิน
A152: 5) | B152: รถบรรทุกขยะ | C152: 005 53 0001 | D152: รถบรรทุกขยะชนิดเปิดข้างเทท้าย | E152: 14 พ.ย 52 | F152: 1586000 | G152: 1586000
D153: ขนาด 6 ล้อ 6 ตัน
A154: 6) | B154: รถบรรทุกแบบเปิดข้างเทท้ายติดตั้งเครนไฮครอลิคฯ | C154: 006 55 0001 | D154: รถบรรทุกแบบเปิดข้างเทท้ายติดตั้งเครนไฮครอลิคพร้อมกระเช้าไฟฟ้า | E154: 4 ก.ค 55 | F154: 2545000 | G154: 2545000 | H154: สอบราคา | I154: 00641/55 | J154: ส่วนโยธา
D155: ยี่ห้ออีซูซุ หมายเลขทะเบียนรถ 81-9201 นศ.
B156: ครุภัณฑ์การเกษตร | C156: ผ่าน
A157: 1) | B157: รถไถนา | C157: 602 42 0001-2 | D157: รถไถนาชนิดเดินตาม 8 แรงม้าET80 | E157: 13 ก.ย 42 | F157: 47000 | G157: =F157*2 -> 94000 | H157: สอบราคา | I157: 124/42 | J157: หมู่ที่ 2
C158: 602 44 0003-04 | D158: รถไถนาชนิดเดินตาม ขนาด | E158: 24 ก.ย 44 | F158: 45903 | H158: สอบราคา | I158: 159/237 | J158: หมู่ที่ 9 | K158: 91806 | L158: ก.พ 53
A159: ประเภท | C159: เลขที่ หรือ รหัส | D159: ยี่ห้อ แบบ ขนาดและลักษณะ | E159: วัน/เดือน/ปีที่ได้รับกรรมสิทธิ์ | F159: ราคาต่อหน่วย(บาท) | G159: ราคารวม(บาท) | H159: วิธีได้มาซึ่งกรรมสิทธ์ | I159: เลขที่เอกสาร | J159: ใช้ประจำที่ | K159: จำหน่าย | L159: เลขที่ เอกสาร | M159: หมายเหตุ
A162: 2) | B162: เครื่องพ่นหมอกควัน | C162: 054 45 0001 | D162: เครื่องพ่นหมอกควันกำจัด | E162: 26 ก.ย 45 | F162: 50000 | G162: =F162*1 -> 50000 | H162: ตกลงราคา | I162: 84/84 | J162: หมู่ที่ 1-12
D163: ยุงลาย ยี่ห้อไอจีบ้า รุ่น TF-35
A164: 3) | B164: เครื่องพ่นหมอกควัน | C164: 054 50 0002 | D164: เครื่องพ่นหมอกควัน | E164: 14 พ.ค 50 | F164: 61500 | G164: 61500 | H164: ตกลงราคา | I164: 654 | J164: สนง.ปลัด
A165: 4) | B165: เครื่องตัดหญ้า | C165: 491 53 0001-2 | D165: เครื่องตัดหญ้า ยี่ห้อ HONDA | E165: 15 มิ.ย 53 | F165: 8500 | G165: 17000 | H165: บริจาค
B166: ครุภัณฑ์คอมพิวเตอร์
A167: 1) | B167: เครื่องคอมพิวเตอร์ | C167: 416 43 0001 | D167: PENTIUM III 600 MHg | E167: 19 พ.ค 43 | F167: 71500 | G167: =F167*1 -> 71500 | H167: สอบราคา | I167: 27/43 | J167: สำนักงาน
D168: Monitor 15” RAM 64 MB
D169: HDD 8.4 GB พร้อมอุปกรณ์ต่อพ่วง
B170: เครื่องคอมพิวเตอร์ | C170: 416 45 0002 | D170: PENTIUM IV 2.0 GHz | E170: 17 ก.ค 45 | F170: 48950 | G170: =F170*1 -> 48950 | H170: ตกลงราคา | I170: 40/216 | J170: ส่วนการคลัง
D171: Monitor 17” RAM 256 MB
D172: HDD 40 GB พร้อมอุปกรณ์
B173: เครื่องคอมพิวเตอร์ | C173: 416 46 0003 | D173: เครื่องไมโครคอมพิวเตอร์ | E173: 18 ต.ค 45 | F173: 79500 | G173: =F173*1 -> 79500 | H173: - | I173: - | J173: สนง.ปลัด
D174: ยี่ห้อ Powell รุ่น Achilles
D175: P4160D พร้อมอุปกรณ์ดังนี้
D176: -Mouse
D177: -Keyboard
D178: -จอภาพ Powell 15 นิ้ว
D179: -Modem 56 Kbps
D180: -เครื่องพิมพ์แบบ Laser
A181: ประเภท | C181: เลขที่ หรือ รหัส | D181: ยี่ห้อ แบบ ขนาดและลักษณะ | E181: วัน/เดือน/ปีที่ได้รับกรรมสิทธิ์ | F181: ราคาต่อหน่วย(บาท) | G181: ราคารวม(บาท) | H181: วิธีได้มาซึ่งกรรมสิทธ์ | I181: เลขที่เอกสาร | J181: ใช้ประจำที่ | K181: จำหน่าย | L181: เลขที่ เอกสาร | M181: หมายเหตุ
D184: -เครื่องสำรองไฟฟ้า
D185: -เครื่องสแกนเนอร์,ลำโพง
B186: เครื่องคอมพิวเตอร์ | C186: 416 46 0004 | D186: เครื่องไมโครคอมพิวเตอร์ | E186: 22 ก.ย 46 | F186: 80500 | G186: =F186*1 -> 80500 | H186: ตกลงราคา | I186: 40/290 | J186: สำนักงาน
D187: ยี่ห้อ Mac พร้อมอุปกรณ์ดังนี้
D188: -Mouse
D189: -Keyboard
D190: -จอภาพ Powell 17 นิ้ว
D191: -เครื่องสำรองไฟฟ้า
D192: -เครื่องพิมพ์แบบ Laser
D193: หมู่บ้าน ขนาดกว้าง 6 เมตร
D194: ยาว 12 เมตร
B195: เครื่องคอมพิวเตอร์ | C195: 416 48 0005 | D195: คอมพิวเตอร์ ACER SA 60 | E195: 22 ส.ค 48 | F195: 65000 | G195: 65000 | H195: สอบราคา | I195: 631 | J195: ส่วนโยธา
D196: พร้อมอุปกรณ์ต่อพ่วง
C197: 416 48 0006-8 | D197: คอมพิวเตอร์ ACER SA 60 | F197: 31666 | G197: 95000 | H197: สอบราคา | I197: 628 | J197: สนง.ปลัด
F198: 31666.66 | I198: 630 | J198: ส่วนการคลัง
F199: 31666.66 | I199: 629 | J199: สนง.ปลัด
B200: ครุภัณฑ์คอมพิวเตอร์ | C200: 416 50 0009 | D200: เครื่องคอมพิวเตอร์ | E200: 12 เม.ย. 50 | F200: 20700 | G200: =20700 -> 20700 | H200: สอบราคา | I200: 540 | J200: ส่วนการคลัง
B201: ครุภัณฑ์คอมพิวเตอร์ | C201: 416 51 0010 | D201: เครื่องคอมพิวเตอร์พร้อม | E201: 20 ก.พ 51 | F201: 38000 | G201: 38000 | H201: สอบราคา | I201: 540 | J201: สนง. ปลัด
D202: อุปกรณ์ต่อพ่วง 1 ชุด
B203: ครุภัณฑ์คอมพิวเตอร์ | C203: 416 51 0011 | D203: เครื่องคอมพิวเตอร์พร้อม | E203: 30 ก.ค 51 | F203: 60000 | G203: 60000 | H203: สอบราคา | I203: 540 | J203: สนง. ปลัด
D204: อุปกรณ์ต่อพ่วง 1 ชุด
A205: 2) | B205: ครุภัณฑ์คอมพิวเตอร์ | C205: 484 50 0001-2 | D205: เครื่องคอมพิวเตอร์ (notebock) | E205: 12 เม.ย. 50 | F205: 38000 | G205: 76000 | H205: สอบราคา | I205: 539 | J205: สำนักปลัด
B206: ครุภัณฑ์คอมพิวเตอร์ | C206: 484 51 0003 | D206: เครื่องคอมพิวเตอร์ (notebock) | E206: 20 ก.พ 51 | F206: 45300 | G206: 45300 | H206: ตกลงราคา | I206: 858 | J206: ส่วนโยธา
A207: ประเภท | C207: เลขที่ หรือ รหัส | D207: ยี่ห้อ แบบ ขนาดและลักษณะ | E207: วัน/เดือน/ปีที่ได้รับกรรมสิทธิ์ | F207: ราคาต่อหน่วย(บาท) | G207: ราคารวม(บาท) | H207: วิธีได้มาซึ่งกรรมสิทธ์ | I207: เลขที่เอกสาร | J207: ใช้ประจำที่ | K207: จำหน่าย | L207: เลขที่ เอกสาร | M207: หมายเหตุ
A210: 3) | B210: ครุภัณฑ์คอมพิวเตอร์ | C210: 483 49 0001 - 2 | D210: คอมพิวเตอร์ PoKet PC | E210: 27 ธ.ค 49 | F210: 13000 | G210: 26000 | H210: ตกลงราคา | I210: 186 | J210: สนง.ปลัด
A211: 4) | B211: ครุภัณฑ์คอมพิวเตอร์ | C211: 486 51 0002 | D211: เครื่องพริ้นเตอร์ 1 เครื่อง | E211: 20 ก.พ 51 | F211: 3200 | G211: 3200 | H211: ตกลงราคา | I211: 858 | J211: ส่วนโยธา
B212: ครุภัณฑ์คอมพิวเตอร์ | C212: 486 51 0003 | D212: เครื่องพริ้นเตอร์ 1 เครื่อง HP | E212: 20 ก.พ 51 | F212: 3200 | G212: 3300 | H212: ตกลงราคา | I212: 858 | J212: ส่วนโยธา
A213: 5) | B213: ครุภัณฑ์คอมพิวเตอร์ | C213: 416 51 0011 | D213: เครื่องคอมพิวเตอร์พร้อม | E213: 22 ม.ค 53 | F213: 34000 | G213: 34000 | H213: ตกลงราคา | I213: 329/53 | J213: ส่วนการคลัง
D214: อุปกรณ์ต่อพ่วง 1 ชุด (เครื่องปริ้น)
A215: 6) | B215: ครุภัณฑ์คอมพิวเตอร์ | C215: 486 51 0003 | D215: เครื่องพริ้นเตอร์ 1 เครื่อง HP | E215: 15 มิ.ย 53 | F215: 4500 | G215: 4500 | H215: บริจาค
B216: ครุภัณฑ์สำรวจ
A217: 1) | B217: ล้อวัดระยะทาง | C217: 086 44 0001 | D217: ล้อวัดระยะทาง วงล้อขนาด | E217: 10 พ.ค 44 | F217: 7500 | G217: =F217*1 -> 7500 | H217: ตกลงราคา | I217: 20/115 | J217: ส่วนโยธา
D218: เส้าผ่าศูนย์กลาง 30 ซม.
D219: มีด้ามจับแบบล็อคเก็บได้
A220: 2) | B220: ไม้สต๊าฟและกล้องระดับ | C220: 051-46-0001 | D220: ไม้สต๊าฟอลูมิเนียม แบบพับ | E220: 21 ก.พ 46 | F220: 27000 | G220: =F220*1 -> 27000 | H220: ตกลงราคา | I220: 19/97 | J220: ส่วนโยธา
C221: 078-46-0001 | D221: ขนาด 3 เมตร พร้อมด้วย
D222: กล้องระดับ Topcon 24 เท่า
... 179 more rows

Sheet สะสม 8
F1: หมายเหตุ 8
B2: องค์การบริหารส่วนตำบลหัวไทร อำเภอหัวไทร จังหวัดนครศรีธรรมราช
A3: งบเงินสะสม
A4: ณ วันที่ 30 กันยายน 2556
F5: บาท
A6: เงินสะสม 1 ตุลาคม 2555 | F6: 8761093.32
A7: บวก | B7: รายรับจริงสูงกว่ารายจ่ายจริง | D7: 7572317.54
B8: รับเงินสะสมระหว่างปี | D8: =4106.77+37278+2800+51463 -> 95647.77
A11: หัก | B11: หัก 25% ของรายรับจริงสูงกว่ารายจ่ายจริง (เงินทุนสำรองเงินสะสม) | D11: 1893079.38
F13: =D7+D8-D11 -> 5774885.93
B14: เงินสะสม 30 กันยายน 2556 | F14: =F6+F13 -> 14535979.25
A17: เงินสะสม 30 กันยายน 2556 ประกอบด้วย
B18: 1. ลูกหนี้ค่าภาษี | F18: =12480+69255.72+400 -> 82135.72
B19: 2. เงินสะสมที่สามารถนำไปใช้ได้ | F19: =F14-F18 -> 14453843.53
F22: =SUM(F18:F21) -> 14535979.25
B25: หมายเหตุ
A29: (นางข้อหนัน เจะดุหมัน) | C29: (นายเสน่ห์ อ่อนเกตุพล) | D29: (นายสมบูรณ์ ขลุกเอียด)
A30: ผู้อำนวยการกองคลัง | C30: ปลัดองค์การบริหารส่วนตำบล | D30: นายกองค์การบริหารส่วนตำบลหัวไทร
A66: (นางข้อหนัน เจะดุหมัน) | C66: (นายเสน่ห์ อ่อนเกตุพล) | D66: (นายเสน่ห์ อ่อนเกตุพล)
A67: หัวหน้าส่วนการคลัง | C67: ปลัดองค์การบริหารส่วนตำบล | D67: ปลัดองค์การบริหารส่วนตำบล ปฎิบัติหน้าที่
D68: นายกองค์การบริหารส่วนตำบลหัวไทร
A120: -4-
D121: ประมาณการ | E121: รายจ่ายจริง | F121: + | H121: สูง
F122: -
C123: เงินสะสม
A124: 1) | B124: ค่าขุดเจาะบ่อบาดาลบ้านโคกหลวง ม.6 | D124: 320000 | E124: 318000 | H124: =D124-E124 -> 2000
A125: 2) | B125: ขยายเขตไฟฟ้าสาธารณ ม.1 บ้านบางแค | D125: 132325.83 | E125: 132325.83 | H125: 0
A126: 3) | B126: ขยายเขตไฟฟ้าสาธารณ ม.10 บ้านหัวเสม็ด | D126: 60734.27 | E126: 60734.27 | H126: 0
A127: 4) | B127: ค่าซ่อมแซมถนนสายซอยนางนวล ม.6, 11 | D127: 369800 | E127: 368000 | H127: 1800
A128: 5) | B128: ค่าปรับปรุงถนนสายสระโพธิ์ - ท่าเสาร์ ม.4, 6 | D128: 641100 | E128: 429000 | H128: 212100
A129: 6) | B129: ค่าปรับปรุงถนนสายต้นตาล - บ้านโคกคุระ ม.5 | D129: 503600 | E129: 320000 | H129: 183600
A130: 7) | B130: ค่าปรับปรุงถนนสายเศรษฐกิจพอเพียง ม.2, 7 | D130: 602400 | E130: 470000 | H130: 132400
A131: 8) | B131: ค่าปรับปรุงถนนสายซอยเปรมประชา ม.1 | D131: 33000 | E131: 33000 | H131: 0
A132: 9) | B132: ค่าปรับปรุงถนนสายซอยคุณน้อง ม.9 | D132: 44000 | E132: 43500 | H132: 500
A133: 10) | B133: ค่าปรับปรุงถนนซอยนิคมพัฒนา ม.1 | D133: 40900 | E133: 40900 | H133: 0
A134: 11) | B134: ค่าปรับปรุงถนนซอยนางดับ หนูยิ้มซ้าย ม.1 | D134: 22600 | E134: 22600 | H134: 0
A135: 12) | B135: ค่าซ่อมแซมถนนสายบ้านท้อมแฉ้ ม.7 | D135: 104100 | E135: 104000 | H135: 100
A136: 13) | B136: ค่าปรับปรุงถนนสายฟื้นฟูเศรษฐกิจ ม.3 | D136: 657400 | E136: 655000 | H136: 2400
A137: 14) | B137: ค่าปรับปรุงถนนสายบ้านนายผล - ศูนย์ราชการใหม่ ม.12 | D137: 200600 | E137: 199000 | H137: 1600
A138: 15) | B138: ค่าปรับปรุงถนนสายบ้านหนำหยอม-โคกหลวง ม.6 | D138: 998200 | E138: 648000 | H138: 350200
A139: 16) | B139: ค่าบุกเบิกถนนสายจากถนน(หัวไทร-ตรงเตียง)-มาบขวางม.2 | D139: 115000 | E139: 0 | H139: 115000
A140: 17) | B140: ค่าขุดลอกเหมืองส่งน้ำสายไร่นาสวนผสม ม.4 | D140: 174800 | E140: 170000 | H140: 4800
A141: 18) | B141: เงินผลประโยชน์ตอบแทนอื่นเป็นกรณีพิเศษ | D141: 429804 | E141: 429804 | H141: 0
A142: รวมจ่ายขาดเงินสะสม | D142: =SUM(D124:D141) -> 5450364.1 | E142: =SUM(E124:E141) -> 4443864.1 | H142: 1006500
C143: เงินรายจ่ายค้างจ่าย
A144: 1) | B144: เงินส่งเสริมและพัฒนาองค์ความรู้ให้แก่บุคลากรอปท. | E144: 81950
A145: 2) | B145: ค่าอาหารเสริม(นม) สปช และศพด รวม 8 แห่ง | E145: 174482.15
A146: 3) | B146: ค่าอาหารกลางวันศพด.วัดหัวลำภู | E146: 22180
A147: 3) | B147: เงินส่งเสริมสนับสนุนกิจกรรมเด็กและครอบครัว | E147: 10000
A148: รวมรายจ่ายค้างจ่าย | E148: =SUM(E144:E147) -> 288612.15 | F148: -
C149: เงินอุดหนุนถ่ายโอนบุคลากร
A150: 1) | B150: ค่ารักษาพยาบาลลูกจ้างประจำสถานีสูบน้ำ | E150: 1316
A151: รวมรายจ่ายเงินอุดหนุนถ่ายโอนบุคลากร | E151: =SUM(E150:E150) -> 1316 | F151: -
C152: เงินอุดหนุนศูนย์ข้อมูลข่าวสาร อปท.
A153: 1 | B153: เงินอุดหนุนศูนย์ข้อมูลข่าวสาร อปท. อำเภอหัวไทร | E153: 35000
A154: รวมรายจ่ายเงินอุดหนุนศูนย์ข้อมูลข่าวสาร อปท. | E154: =SUM(E153:E153) -> 35000 | F154: -
A162: -5-
D163: ประมาณการ | E163: รายจ่ายจริง | F163: + | H163: สูง
F164: -
C165: เงินสำรองเงินรายรับ
A166: 1) | B166: ค่าติดตั้งไฟฟ้าสาธารณะบ้านท่อมแฉ้ จุดที่ 1 ม.7 50%หลัง | E166: =44553.2 -> 44553.2
A167: 2) | B167: ค่าติดตั้งไฟฟ้าสาธารณะบ้านลำคลอง จุดที่ 2 ม.7 50%หลัง | E167: 37261.15
A168: 3) | B168: ค่าติดตั้งไฟฟ้าสาธารณะบ้านคลองขุด จุดที่ 2 ม.11 50%หลัง | E168: 34342.19
A169: 4) | B169: ค่าติดตั้งไฟฟ้าสาธารณะบ้านพัฒนา จุดที่ 1 ม.11 50%หลัง | E169: 75701.43
A170: 5) | B170: ค่าติดตั้งไฟฟ้าสาธารณะบ้านหัวลำภูตก 1 ม.4 50%หลัง | E170: 42036.02
A171: 6) | B171: ค่าติดตั้งไฟฟ้าสาธารณะบ้านท่าช้างสาร ม.8 50% หลัง | E171: 79595.69
A172: 7) | B172: ค่าติดตั้งไฟฟ้าสาธารณะบ้านบางขอน ม.8 50% หลัง | E172: 36733.1
C173: รวมรายจ่ายเงินสำรองเงินรายรับ | E173: =SUM(E166:E172) -> 350222.78
A174: รวมรายจ่ายทั้งสิ้น | E174: =E100+E112+E142+E148+E151+E154+E173 -> 5119015.03 | F174: -

Sheet 8.1
H1: หมายเหตุ 8.1/1
A2: องค์การบริหารส่วนตำบลหัวไทร อำเภอหัวไทร จังหวัดนครศรีธรรมราช
A3: รายงานรายจ่ายที่ได้รับอนุมัติจากเงินสะสม
A4: ปีงบประมาณ พ.ศ 2556
A5: วันที่ได้รับอนุมัติ | B5: หมวด/ประเภท | C5: จำนวนเงินที่ได้นับอนุมัติ | D5: ก่อหนี้ผูกพัน | E5: เบิกจ่ายแล้ว | F5: คงเหลือเบิกจ่าย | G5: ยังไม่ได้ก่อหนี้ | H5: หมายเหตุ
C6: จ่ายขาด | F6: ปี 2556
B22: (นางข้อหนัน เจะดุหมัน) | C22: (นายเสน่ห์ อ่อนเกตุพล) | F22: (นายสมบูรณ์ ขลุกเอียด)
B23: ผู้อำนวยการกองคลัง | C23: ปลัดองค์การบริหารส่วนตำบล | F23: นายกองค์การบริหารส่วนตำบลหัวไทร
H24: หมายเหตุ 8.1/2
A25: องค์การบริหารส่วนตำบลหัวไทร อำเภอหัวไทร จังหวัดนครศรีธรรมราช
A26: รายงานรายจ่ายที่ได้รับอนุมัติจากเงินสะสม
A27: ปีงบประมาณ พ.ศ 2555
A28: วันที่ได้รับอนุมัติ | B28: หมวด/ประเภท | C28: จำนวนเงินที่ได้นับอนุมัติ | D28: ก่อหนี้ผูกพัน | E28: เบิกจ่ายแล้ว | F28: คงเหลือเบิกจ่าย | G28: ยังไม่ได้ก่อหนี้ | H28: หมายเหตุ
C29: จ่ายขาด | F29: ปี 2556
B30: อาคารต่าง ๆ
A31: 2 ก.พ 2555 | B31: ก่อสร้างศาลาประชาคมที่ทำการอบต.หัวไทร หมู่ที่ 10 | C31: 2661800 | D31: 2661000 | F31: 2661000 | H31: สมัยแรก ประจำปี 2555 ครั้งที่ 2
H32: 2 กุมภาพันธ์ 2555
B34: รวม | C34: =SUM(C8:C33) -> 2661800 | D34: =SUM(D12:D33) -> 2661000 | E34: =SUM(E8:E33) -> 0 | F34: =SUM(F31:F33) -> 2661000
B37: (นางข้อหนัน เจะดุหมัน) | C37: (นายเสน่ห์ อ่อนเกตุพล) | F37: (นายเสน่ห์ อ่อนเกตุพล)
B38: หัวหน้าส่วนการคลัง | C38: ปลัดองค์การบริหารส่วนตำบล | F38: ปลัดองค์การบริหารส่วนตำบล ปฎิบัติหน้าที่
F39: นายกองค์การบริหารส่วนตำบลหัวไทร
H44: หมายเหตุ 8.1/1
A45: องค์การบริหารส่วนตำบลหัวไทร อำเภอหัวไทร จังหวัดนครศรีธรรมราช
A46: รายงานรายจ่ายที่ได้รับอนุมัติจากเงินสะสม
A47: ปีงบประมาณ พ.ศ 2555
A48: วันที่ได้รับอนุมัติ | B48: หมวด/ประเภท | C48: จำนวนเงินที่ได้นับอนุมัติ | D48: ก่อหนี้ผูกพัน | E48: เบิกจ่ายแล้ว | F48: คงเหลือเบิกจ่าย | G48: ยังไม่ได้ก่อหนี้ | H48: หมายเหตุ
C49: จ่ายขาด | F49: ปี 2556
B50: เงินเดือน
A51: 19 ต.ค 2554 | B51: เงินเดือน(ฝ่ายการเมือง) | C51: 236040 | E51: 236040 | H51: อนุมัติโดยผู้บริหาร 19 คุลาคม
B52: เงินเดือน(ฝ่ายประจำ) | C52: 326 | E52: 326 | H52: 2554
B53: ค่าใช้สอย | H53: อนุมัติโดยผู้บริหาร 29 มีนาคม
A54: 29 มี.ค 2555 | B54: จ้างเหมากำจัดวัชพืชในเขตพื้นที่อบต.หัวไทร | C54: 200000 | E54: 200000 | H54: 2555
B55: ค่าครุภัณฑ์ | H55: มติที่ประชุม สมัยประชุมสามัญ
A56: 2 ก.พ 2555 | B56: รถยนต์บรรทุกติดตั้งเครนไฮครอลิคพร้อมกระเช้า | C56: 2550000 | D56: 2545000 | E56: 2545000 | H56: สมัยแรก ประจำปี 2555 ครั้งที่ 2
B57: ค่าที่ดินและสิ่งก่อสร้าง | H57: 2 กุมภาพันธ์ 2555
A58: 29 มี.ค 2555 | B58: ขุดลอกเหมืองส่งน้ำบ้านท้อมแฉ้ หมู่ที่ 7 | C58: 39500 | D58: 39500 | E58: 39500 | H58: อนุมัติโดยผู้บริหาร 29 มีนาคม 55
B59: ปรับปรุงถนนสายในอ่าว-ประตูระบายน้ำคสล. หมู่ที่ 3 | C59: 489300 | D59: 486500 | E59: 486500 | H59: สมัยแรก ประจำปี 2555 ครั้งที่ 2
A60: 2 ก.พ 2555 | B60: ปรับปรุงถนนสายใซอยนางนวล หมู่ที่ 6 | C60: 247800 | D60: 240000 | E60: 240000 | H60: 2 กุมภาพันธ์ 2555
B61: ปรับปรุงถนนสายหมู่บ้านเทพรักษา-เขตเทศบาลฯ4,8 | C61: 350100 | D61: 340000 | E61: 340000 | H61: สมัยแรก ประจำปี 2555 ครั้งที่ 2
B62: ปรับปรุงถนนสายโคกคุระ - ต้นตาล หมู่ที่ 5 | C62: 590400 | D62: 588000 | E62: 588000 | H62: 2 กุมภาพันธ์ 2555
B63: ปรับปรุงถนนสายเศรษฐกิจพอเพียง หมู่ที่ 2,7 | C63: 659000 | D63: 643000 | E63: 643000 | H63: สมัยแรก ประจำปี 2555 ครั้งที่ 2
B64: ปรับปรุงถนนสายบ้านนายผล-ศูนย์ราชการใหม่หมู่ที่12 | C64: 215300 | D64: 209000 | E64: 209000 | H64: 2 กุมภาพันธ์ 2555
B65: ปรับปรุงถนนสายเมจิกซอย 1-ศูนย์ราชการใหม่หมู่ที่11 | C65: 119100 | D65: 115000 | E65: 115000 | H65: สมัยแรก ประจำปี 2555 ครั้งที่ 2
B66: ปรับปรุงถนนสายสระโพธิ์-ท่าเสาร์ หมู่ที่ 4,6 | C66: 398000 | D66: 388000 | E66: 388000 | H66: 2 กุมภาพันธ์ 2555
H68: หมายเหตุ 8.1/2
A69: องค์การบริหารส่วนตำบลหัวไทร อำเภอหัวไทร จังหวัดนครศรีธรรมราช
A70: รายงานรายจ่ายที่ได้รับอนุมัติจากเงินสะสม
A71: ปีงบประมาณ พ.ศ 2555
A72: วันที่ได้รับอนุมัติ | B72: หมวด/ประเภท | C72: จำนวนเงินที่ได้นับอนุมัติ | D72: ก่อหนี้ผูกพัน | E72: เบิกจ่ายแล้ว | F72: คงเหลือเบิกจ่าย | G72: ยังไม่ได้ก่อหนี้ | H72: หมายเหตุ
C73: จ่ายขาด | F73: ปี 2556
B74: อาคารต่าง ๆ
A75: 2 ก.พ 2555 | B75: ก่อสร้างศาลาประชาคมที่ทำการอบต.หัวไทร หมู่ที่ 10 | C75: 2661800 | D75: 2661000 | F75: 2661000 | H75: สมัยแรก ประจำปี 2555 ครั้งที่ 2
H76: 2 กุมภาพันธ์ 2555
B78: รวม | C78: =SUM(C51:C77) -> 8756666 | D78: =SUM(D55:D77) -> 8255000 | E78: =SUM(E51:E77) -> 6030366 | F78: =SUM(F75:F77) -> 2661000
B81: (นางข้อหนัน เจะดุหมัน) | C81: (นายเสน่ห์ อ่อนเกตุพล) | F81: (นายเสน่ห์ อ่อนเกตุพล)
B82: หัวหน้าส่วนการคลัง | C82: ปลัดองค์การบริหารส่วนตำบล | F82: ปลัดองค์การบริหารส่วนตำบล ปฎิบัติหน้าที่
F83: นายกองค์การบริหารส่วนตำบลหัวไทร

Sheet ผลการดำเนิน
A1: องค์การบริหารส่วนตำบลหัวไทร
A2: งบแสดงผลการดำเนินงานจ่ายจากเงินรายรับ
A3: ตั้งแต่วันที่ 1 ตุลาคม 2555 ถึงวันที่ 30 กันยายน 2556
A4: รายการ | C4: ประมาณการ | D4: เงินอุดหนุนระบุวัตถุประสงค์ | E4: รวม | F4: บริหารงานทั่วไป | G4: การรักษาความสงบ | H4: การศึกษา | I4: สาธารณสุข | J4: สังคมสงเตราะห์ | K4: เคหะและชุมชน | L4: สร้างความเข้มแข็งของชุมชน | M4: การศาสนาวัฒนธรรมและนันทนาการ | N4: การเกษตร | O4: การพาณิชย์ | P4: งบกลาง
A5: รายจ่าย
B6: งบกลาง | C6: 1141150 | E6: =SUM(F6:P6) -> 1021954 | P6: 1021954
B7: งบกลาง | D7: =11290240+180 -> 11290420 | E7: =SUM(F7:P7) -> 11290240 | P7: 11290240
B8: เงินเดือน(ฝ่ายการเมือง) | C8: 2787500 | E8: 2713636 | F8: 2713636
B9: เงินเดือน(ฝ่ายประจำ) | C9: 3110975 | E9: 2905894 | F9: 1906978 | H9: 180000 | J9: 180000 | K9: 638916
B10: เงินเดือน(ฝ่ายประจำ) | D10: 360000 | E10: 360000 | H10: 360000
B11: ค่าจ้างประจำ | C11: 140000 | E11: 137880 | F11: 137880
B12: ค่าจ้างประจำ | D12: 147420 | E12: 147420 | N12: 147420
B13: ค่าจ้างชั่วคราว | C13: 688000 | E13: 496533 | F13: 342779 | H13: 5400 | K13: 148354
B14: ค่าจ้างชั่วคราว | D14: 216000 | E14: 216000 | H14: 216000
B15: ค่าตอบแทน | C15: 1709000 | E15: 1284451 | F15: 1175943 | G15: 43600 | J15: 20497 | K15: 44411
B16: ค่าตอบแทน | D16: 3288 | E16: 3288 | N16: 3288
B17: ค่าใช้สอย | C17: 5241745 | E17: 4052193.41 | F17: 1443889.5 | G17: 59090 | H17: 670156 | I17: 1800 | J17: 53760 | K17: 934492.91 | L17: 160865 | M17: 682425 | N17: 45715
B18: ค่าใช้สอย | D18: 137000 | E18: 137000 | L18: 137000
B19: ค่าวัสดุ | C19: 2397650 | E19: 1705560.2 | F19: 442953.25 | G19: 27527.5 | H19: 994975 | I19: 23533.45 | K19: 216571
B20: ค่าวัสดุ | D20: 102355 | E20: 102355 | H20: 102355
B21: ค่าสาธารณูปโภค | C21: 270000 | E21: 215700.03 | F21: 186803.08 | N21: 28896.95
B22: ค่าสาธารณูปโภค | D22: 127749.78 | E22: 127749.78 | N22: 127749.78
B23: เงินอุดหนุน | C23: 1250480 | E23: 1200480 | F23: 10000 | H23: 1105480 | I23: 70000 | M23: 15000
B24: รายจ่ายอื่น | C24: 50000 | E24: 50000 | F24: 50000
B25: ค่าครุภัณฑ์ | C25: 413200 | E25: 258090 | F25: 180690 | H25: 6900 | J25: 16950 | K25: 53550
B26: ค่าครุภัณฑ์ | D26: 52000 | E26: 52000 | H26: 52000
B27: ค่าที่ดินและสิ่งก่อสร้าง | C27: 4800300 | E27: 4564170 | F27: 1107500 | K27: 1799800 | M27: 340000 | N27: 317000 | O27: 999870
B28: รวมรายจ่าย | C28: =SUM(C5:C27) -> 24000000 | D28: =SUM(D5:D27) -> 12436232.78 | E28: 33042594.42 | F28: =SUM(F6:F27) -> 9699051.83 | G28: 130217.5 | H28: 3693266 | I28: 95333.45 | J28: 271207 | K28: 3836094.91 | L28: 297865 | M28: 1037425 | N28: 670069.73 | O28: 999870 | P28: 12312194
A33: รายรับ | E33: ประมาณการ
B34: ภาษีอากร | E34: 480000 | G34: =631999.52+10573.2 -> 642572.72
B35: ค่าธรรมเนียมค่าปรับและใบอนุญาต | E35: 131500 | G35: 205014
B36: รายได้จากทรัพย์สิน | E36: 150000 | G36: 254953.12
B37: รายได้จากสาธารณูปโภค | E37: 5000 | G37: 147144
B38: รายได้เบ็ดเตล็ด | E38: 12500 | G38: 129590
B39: รายได้จากทุน
B40: รายได้ที่รัฐบาลจัดสรรให้ | E40: 14621000 | G40: 18482739.11
B41: เงินอุดหนุนทั่วไป | E41: 8600000 | G41: 8316666.23
B42: เงินอุดหนุนทั่วไปที่ระบุวัตถุประสงค์ | G42: 12436232.78
A43: รวม | E43: =SUM(E34:E42) -> 24000000 | G43: =SUM(G34:G42) -> 40614911.96
A44: รายรับสูง(ต่ำ)กว่ารายจ่าย | G44: =G43-E28 -> 7572317.54
C49: (นางข้อหนัน เจะดุหมัน) | G49: (นายเสน่ห์ อ่อนเกตุพล) | K49: (นายสมบูรณ์ ขลุกเอียด)
C50: ผู้อำนวยการกองคลัง | G50: ปลัดองค์การบริหารส่วนตำบล | K50: นายกองค์การบริหารส่วนตำบลหัวไทร
A55: .
P68: =SUM(E68:O68) -> 0
A95: 1
A96: องค์การบริหารส่วนตำบลหัวไทร
A97: งบแสดงผลการดำเนินงานจ่ายจากเงินรายรับ
A98: ตั้งแต่วันที่ 1 ตุลาคม 2552 ถึงวันที่ 30 กันยายน 2553
A99: รายการ | B99: ประมาณการ | C99: รวม | E99: บริหารงาน | F99: การรักษาความ | G99: การศึกษา | H99: สาธารณสุข | I99: สังคมสงเคราะห์ | J99: เคหะและขุมชน | K99: สร้างความเข้มแข็ง | L99: การศาสนาวัฒน- | N99: การเกษตร | O99: งบกลาง
E100: ทั่วไป | F100: สงบภายใน | K100: ของชุมชน | L100: ธรรมและนันทนาการ
A101: รายจ่าย
A102: เงินเดือน(ฝ่ายการเมือง) | B102: 4092840 | C102: =SUM(E102:O102) -> 1965840 | E102: 1965840 | F102: 0 | K102: 0 | L102: 0 | N102: 0 | O102: 0
A103: เงินเดือน(ฝ่ายประจำ) | C103: =SUM(E103:O103) -> 1964213 | E103: 1256195 | G103: 127120 | H103: 0 | I103: 135495 | J103: 445403
A104: ค่าจ้างประจำ | B104: =118000 -> 118000 | C104: 249600 | E104: 117480 | F104: 0 | G104: 0 | H104: 0 | I104: 0 | J104: 0 | K104: 0 | L104: 0 | N104: =132120 -> 132120 | O104: 0
A105: ค่าจ้างชั่วคราว | B105: 576800 | C105: 773107 | E105: 275760 | F105: 98400 | G105: =193490+204780+677 -> 398947 | H105: 0 | I105: 0 | J105: 0 | K105: 0 | L105: 0 | N105: 0 | O105: 0
A106: ค่าตอบแทน | B106: 1472000 | C106: 975113 | E106: =220812+166000+36000+200000 -> 622812 | F106: =30750+20000 -> 50750 | G106: =5400+30000+60000 -> 95400 | H106: 4630 | I106: =35390+30000 -> 65390 | J106: =29814+105000 -> 134814 | K106: 0 | L106: 0 | N106: =1317 -> 1317 | O106: 0
A107: ค่าใช้สอย | B107: 4043800 | C107: 2126040.72 | E107: =945557.19+858.04 -> 946415.23 | F107: 13700 | G107: 240632 | H107: 2100 | I107: 25920 | J107: =377014.75+81858.74 -> 458873.49 | K107: =24200+10000 -> 34200 | L107: 404200 | O107: 0
A108: ค่าวัสดุ | B108: 2199000 | C108: 3214107.15 | E108: =304946.15-5200 -> 299746.15 | F108: 71253 | G108: =1034085.8+5200+1515000 -> 2554285.8 | H108: 93900.2 | I108: 0 | J108: =194923-1 -> 194922 | K108: 0 | L108: 0 | N108: 0 | O108: 0
A109: ค่าสาธารณูปโภค | B109: 321000 | C109: 318286.15 | E109: 160114.87 | F109: 0 | G109: 0 | H109: 0 | I109: 0 | J109: 0 | K109: 0 | L109: 0 | N109: =60926.71+97244.57 -> 158171.28 | O109: 0
A110: เงินอุดหนุน | B110: 1746080 | C110: 1728580 | E110: 0 | F110: 0 | G110: 1262080 | H110: 120000 | I110: 0 | J110: 0 | K110: 74000 | L110: =175000+97500 -> 272500 | N110: 0 | O110: 0
A111: รายจ่ายอื่น | B111: 267250 | C111: 262250 | E111: 25000 | F111: 0 | G111: 237250 | H111: 0 | J111: 0 | L111: 0 | N111: 0 | O111: 0
A112: งบกลาง | B112: 3817230 | C112: 9601540 | E112: 0 | F112: 0 | G112: 0 | H112: 0 | I112: 0 | J112: 0 | K112: 0 | L112: 0 | N112: 0 | O112: =3260255.14+6341284.86 -> 9601540
A113: ค่าครุภัณฑ์ (หมายเหตุ 1) | B113: 53000 | C113: 52000 | E113: 52000 | H113: 0 | I113: 0 | J113: 0 | K113: 0 | L113: 0 | N113: 0 | O113: 0
A114: ค่าที่ดินและสิ่งก่อสร้าง (หมายเหตุ 2) | B114: 2293000 | C114: 4504000 | E114: 0 | F114: 0 | G114: 0 | H114: 0 | I114: 0 | J114: =1047000+3457000 -> 4504000 | K114: 0 | L114: 0 | N114: 0 | O114: 0
A115: รวมรายจ่าย | B115: =SUM(B101:B114) -> 21000000 | C115: 27734677.02 | E115: =SUM(E102:E114) -> 5721363.25 | F115: 234103 | G115: 4915714.8 | H115: 220630.2 | I115: 226805 | J115: 5738012.49 | K115: 108200 | L115: 676700 | N115: 291608.28 | O115: 9601540
A119: 2
A121: รายรับ
A122: ภาษีอากร | B122: 425000 | C122: 522687.48
A123: ค่าธรรมเนียมค่าปรับและใบอนุญาต | B123: 48000 | C123: 73283
A124: รายได้จากทรัพย์สิน | B124: 90000 | C124: 47313.74
A125: รายได้จากสาธารณูปโภค | B125: 0 | C125: 5686
A126: รายได้เบ็ดเตล็ด | B126: 291000 | C126: 174132.52
A127: รายได้จากทุน | B127: 0 | C127: 0
A128: รายได้ที่รัฐบาลจัดสรรให้ | B128: 10496000 | C128: 13810334.93
A129: เงินอุดหนุนทั่วไป | B129: 9650000 | C129: 7353115
A130: เงินอุดหนุนทั่วไป (ไม่ตั้งงบประมาณ) | C130: 125056.86
A131: เงินอุดหนุนเฉพาะกิจ | C131: 11634366.57
A132: รวมรายรับ | B132: =SUM(B122:B131) -> 21000000 | C132: =SUM(C122:C131) -> 33745976.1
A133: รายรับสูง(ต่ำ) กว่ารายจ่าย | C133: =SUM(C132-C115) -> 6011299.08
A137: (นางข้อหนัน เจะดุหมัน) (นายเสน่ห์ อ่อนเกตุพล) (นายสุทัศน์ พูลเสน)
A138: หัวหน้าส่วนการคลัง ปลัดองค์การบริหารส่วนตำบล นายกองค์การบริหารส่วนตำบลหัวไทร

Sheet แผนงานรวม
A1: องค์การบริหารส่วนตำบลหัวไทร
A2: รายงานรายจ่ายในการดำเนินงานที่จ่ายจากเงินรายรับตามทุกแผนงาน
A4: รายการ | C4: ประมาณการ | D4: เงินอุดหนุนระบุวัตถุประสงค์ | E4: รวม | F4: บริหารงานทั่วไป | G4: งานวางแผนสถิติและวิชาการ | H4: งานบริหารงานคลัง | I4: งานป้องกันฝ่ายพลเรือนและระงับอัคีภัย | J4: งานบริหารทั่วไปเกี่ยวกับการศึกษา | K4: งานระดับก่อนวัยเรียนและประถมศึกษา | L4: งานการศึกษาไม่กำหนดระดับ | M4: งานบริการสาธารณสุขและงานสาธารณสุขอื่น | N4: งานบริหารทั่วไปเกี่ยวกับการสังคมสงเคราะห์ | O4: งานสวัสดิการและสังคมสงเคราะห์ | P4: งานบริหารทั่วไปเกี่ยวกับเคหะและชุมชน | Q4: งานไฟฟ้าและถนน | R4: งานกำจัดขยะมูลฝอยและสิ่งปฏิกูล | S4: งานส่งเสริมและสนับสนุความเข้มแข็งชุมชน | T4: งานกีฬาและนันทนาการ | U4: งานศาสนาวัฒนธรรมท้องถิ่น | V4: งานส่งเสริมการเกษตร | W4: งานอนุรักษ์แหล่งน้ำและป่าไม้ | X4: งานกิจการประปา | Y4: งบกลาง
A5: รายจ่าย
B6: งบกลาง | C6: 1141150 | E6: =SUM(F6:Y6) -> 1021954 | Y6: =867954+154000 -> 1021954
B7: งบกลาง | D7: 11290420 | Y7: 11290240
B8: เงินเดือน(ฝ่ายการเมือง) | C8: 2787500 | E8: =SUM(F8:Y8) -> 2713636 | F8: 2713636
B9: เงินเดือน(ฝ่ายประจำ) | C9: 3110975 | E9: =SUM(F9:Y9) -> 3386553 | F9: 1263901 | G9: 180000 | H9: 943736 | J9: 180000 | N9: 180000 | P9: 638916
B10: เงินเดือน(ฝ่ายประจำ) | D10: 360000 | K10: 360000
B11: ค่าจ้างประจำ | C11: 140000 | E11: =SUM(F11:Y11) -> 147420 | V11: 147420
B12: ค่าจ้างประจำ | D12: 147420 | K12: 5400 | Q12: 54000 | R12: 94354
B13: ค่าจ้างชั่วคราว | C13: 688000 | E13: =SUM(F13:Y13) -> 186000 | K13: 186000
B14: ค่าจ้างชั่วคราว | D14: 372000
B15: ค่าตอบแทน | C15: 1709000 | E15: =SUM(F15:Y15) -> 388451 | F15: 138727 | G15: 26845 | H15: 114371 | I15: 43600 | N15: 20497 | P15: 44411
B16: ค่าตอบแทน | D16: 3288 | V16: 3288
B17: ค่าใช้สอย | C17: 5241745 | E17: =SUM(F17:Y17) -> 4052193.41 | F17: 1098908.5 | G17: 88223 | H17: 256758 | I17: 59090 | J17: 19688 | K17: 650468 | M17: 1800 | N17: 12960 | O17: 40800 | P17: 110262 | Q17: 505224.91 | R17: 319006 | S17: 160865 | T17: 456735 | U17: 225690 | V17: 19605 | W17: 26110
B18: ค่าใช้สอย | D18: 137000 | S18: 137000
B19: ค่าวัสดุ | C19: 2397650 | E19: =SUM(F19:Y19) -> 1705560.2 | F19: 336521.2 | G19: 17930 | H19: 88502.05 | I19: 27527.5 | J19: 8040 | K19: 802035 | L19: 184900 | M19: 23533.45 | P19: 83251 | Q19: 77720 | R19: 55600
B20: ค่าวัสดุ | D20: 102355 | K20: 102355
B21: ค่าสาธารณูปโภค | C21: 270000 | F21: 186803.08 | V21: 28896.95
B22: ค่าสาธารณูปโภค | D22: 127749.78 | E22: =SUM(F22:Y22) -> 127749.78 | V22: 127749.78
B23: เงินอุดหนุน | C23: 1250480 | E23: =SUM(F23:Y23) -> 1200480 | F23: 10000 | K23: 1105480 | M23: 70000 | U23: 15000
B24: รายจ่ายอื่น | C24: 50000 | E24: =SUM(F24:Y24) -> 50000 | F24: 50000
B25: ค่าครุภัณฑ์ | C25: 413200 | E25: =SUM(F25:Y25) -> 258090 | F25: 61950 | H25: 118740 | K25: 6900 | N25: 16950 | P25: 27050 | Q25: 26500
B26: ค่าครุภัณฑ์ | D26: 52000 | K26: 52000
B27: ค่าที่ดินและสิ่งก่อสร้าง | C27: 4800300 | E27: =SUM(F27:Y27) -> 4564170 | F27: 1107500 | Q27: 1799800 | T27: 340000 | V27: 317000 | X27: 999870
B28: รวมรายจ่าย | C28: =SUM(C5:C27) -> 24000000 | D28: =SUM(D5:D27) -> 12592232.78 | E28: =SUM(F28:Y28) -> 32116594.42 | F28: =SUM(F6:F27) -> 6967946.78 | G28: 312998 | H28: 1522107.05 | I28: 130217.5 | J28: 207728 | K28: 3270638 | L28: 184900 | M28: 95333.45 | N28: 230407 | O28: 40800 | P28: 903890 | Q28: 2463244.91 | R28: 468960 | S28: 297865 | T28: 796735 | U28: 240690 | V28: 643959.73 | W28: 26110 | X28: 999870 | Y28: 12312194

Sheet รวม
A1: องค์การบริหารส่วนตำบลหัวไทร
A2: รายงานรายจ่ายในการดำเนินงานที่จ่ายจากเงินรายรับตามแผนงานรวม
A3: ตั้งแต่วันที่ 1 ตุลาคม 2555 ถึง วันที่ 30 กันยายน 2556
A4: รายการ | C4: ประมาณการ | D4: เงินอุดหนุนระบุวัตถุประสงค์ | E4: รวม | F4: บริหารงานทั่วไป | G4: การรักษาความสงบ | H4: การศึกษา | I4: สาธารณสุข | J4: สังคมสงเตราะห์ | K4: เคหะและชุมชน | L4: สร้างความเข้มแข็งของชุมชน | M4: การศาสนาวัฒนธรรมและนันทนาการ | N4: การเกษตร | O4: การพาณิชย์ | P4: งบกลาง
A5: รายจ่าย
B6: งบกลาง | C6: 1141150 | E6: =SUM(F6:P6) -> 1021954 | P6: 1021954 | Q6: =SUM(E6:P6) -> 2043908
B7: งบกลาง | D7: =11290240+180 -> 11290420 | E7: =SUM(F7:P7) -> 11290240 | P7: 11290240
B8: เงินเดือน(ฝ่ายการเมือง) | C8: 2787500 | E8: 2713636 | F8: 2713636 | M8: ( | Q8: 2905894
B9: เงินเดือน(ฝ่ายประจำ) | C9: 3110975 | E9: 2905894 | F9: 1906978 | H9: 180000 | J9: 180000 | K9: 638916 | Q9: 360000
B10: เงินเดือน(ฝ่ายประจำ) | D10: 360000 | E10: 360000 | H10: 360000 | Q10: 285300
B11: ค่าจ้างประจำ | C11: 140000 | E11: 137880 | F11: 137880 | Q11: 496533
B12: ค่าจ้างประจำ | D12: 147420 | E12: 147420 | N12: 147420
B13: ค่าจ้างชั่วคราว | C13: 688000 | E13: 496533 | F13: 342779 | H13: 5400 | K13: 148354
B14: ค่าจ้างชั่วคราว | D14: 216000 | E14: 216000 | H14: 216000
B15: ค่าตอบแทน | C15: 1709000 | E15: 1284451 | F15: 1175943 | G15: 43600 | J15: 20497 | K15: 44411
B16: ค่าตอบแทน | D16: 3288 | E16: 3288 | N16: 3288
B17: ค่าใช้สอย | C17: 5241745 | E17: 4052193.41 | F17: 1443889.5 | G17: 59090 | H17: 670156 | I17: 1800 | J17: 53760 | K17: 934492.91 | L17: 160865 | M17: 682425 | N17: 45715 | Q17: 7537
B18: ค่าใช้สอย | D18: 137000 | E18: 137000 | L18: 137000
B19: ค่าวัสดุ | C19: 2397650 | E19: 1705560.2 | F19: 442953.25 | G19: 27527.5 | H19: 994975 | I19: 23533.45 | K19: 216571
B20: ค่าวัสดุ | D20: 102355 | E20: 102355 | H20: 102355
B21: ค่าสาธารณูปโภค | C21: 270000 | E21: 215700.03 | F21: 186803.08 | N21: 28896.95
B22: ค่าสาธารณูปโภค | D22: 127749.78 | E22: 127749.78 | N22: 127749.78
B23: เงินอุดหนุน | C23: 1250480 | E23: 1200480 | F23: 10000 | H23: 1105480 | I23: 70000 | M23: 15000
B24: รายจ่ายอื่น | C24: 50000 | E24: 50000 | F24: 50000
B25: ค่าครุภัณฑ์ | C25: 413200 | E25: 258090 | F25: 180690 | H25: 6900 | J25: 16950 | K25: 53550
B26: ค่าครุภัณฑ์ | D26: 52000 | E26: 52000 | H26: 52000
B27: ค่าที่ดินและสิ่งก่อสร้าง | C27: 4800300 | E27: 4564170 | F27: 1107500 | K27: 1799800 | M27: 340000 | N27: 317000 | O27: 999870
B28: รวมรายจ่าย | C28: =SUM(C5:C27) -> 24000000 | D28: =SUM(D5:D27) -> 12436232.78 | E28: 33042594.42 | F28: =SUM(F6:F27) -> 9699051.83 | G28: 130217.5 | H28: 3693266 | I28: 95333.45 | J28: 271207 | K28: 3836094.91 | L28: 297865 | M28: 1037425 | N28: 670069.73 | O28: 999870 | P28: 12312194
A30: (นางข้อหนัน เจะดุหมัน) | G30: (นายเสน่ห์ อ่อนเกตุพล) | L30: (นายสมบูรณ์ ขลุกเอียด)
A31: ผู้อำนวยการกองคลัง | G31: ปลัดองค์การบริหารส่วนตำบล | L31: นายกองค์การบริหารส่วนตำบลหัวไทร

Sheet ตามแผนงาน 1
A1: องค์การบริหารส่วนตำบลหัวไทร
A2: รายงานรายจ่ายในการดำเนินงานที่จ่ายจากเงินรายรับตามแผนงาน งานบริหารทั่วไป
A3: ตั้งแต่วันที่ 1 ตุลาคม 2555 ถึง 30 กันยายน 2556
A5: หมวด | C5: ประมาณการ | D5: รวม | E5: งานบริหารทั่วไป | F5: งานวางแผนสถิติ | G5: งานบริหารงานคลัง
F6: และวิชาการ
A7: รายจ่าย
B8: เงินเดือน (ฝ่ายการเมือง) | C8: =2917500-130000 -> 2787500 | D8: =SUM(E8:G8) -> 2713636 | E8: 2713636 | I8: 964021
B9: เงินเดือน (ฝ่ายประจำ) | C9: =818000+60000+42000+35000+10000+47975+37000+188000+3000-3000+653000+120000+50000+20000 -> 2080975 | D9: =SUM(E9:G9) -> 1906978 | E9: 964021 | F9: 180000 | G9: =943736-180779 -> 762957
B10: เงินเดือน (ฝ่ายประจำ) | D10: 0 | I10: 137880
B11: ค่าจ้างประจำ | C11: 140000 | D11: 137880 | E11: 137880 | I11: 162000
B12: ค่าจ้างชั่วคราว | C12: =150000+60000-30000+160000+60000-20000 -> 380000 | D12: 342779 | E12: 162000 | G12: 180779 | I12: =SUM(I8:I11) -> 1263901
B13: ค่าตอบแทน | C13: =560000-20000+680000+60000+155000-10000-10000+30000 -> 1445000 | D13: 1175943 | E13: =138727+896000 -> 1034727 | F13: 26845 | G13: 114371
B14: ค่าใช้สอย | C14: =1384000+20000+20000-10000+222000+490000-20000-30000 -> 2076000 | D14: 1443889.5 | E14: 1098908.5 | F14: 88223 | G14: 256758 | I14: =2917500-130000 -> 2787500
B15: ค่าวัสดุ | C15: =317000+25000+5000+10000+16000-5000+15000+20000+85000+10000+10000 -> 508000 | D15: 442953.25 | E15: 336521.2 | F15: 17930 | G15: 88502.05 | I15: =818000+60000+35000+10000+47975+37000+188000+3000-3000+653000+120000+50000+20000 -> 2038975
B16: ค่าสาธารณูปโภค | C16: =215000+20000+5000 -> 240000 | D16: 186803.08 | E16: 186803.08 | I16: =SUM(I14:I15) -> 4826475
B17: เงินอุดหนุน | C17: =10000 -> 10000 | D17: 10000 | E17: 10000
B18: รายจ่ายอื่น | C18: =30000+20000 -> 50000 | D18: 50000 | E18: 50000
B19: งบกลาง | D19: 0
B20: ค่าครุภัณฑ์ | C20: =118400+170400 -> 288800 | D20: 180690 | E20: 61950 | G20: 118740
B21: ค่าที่ดินและสิ่งก่อสร้าง | C21: =968700+275800 -> 1244500 | D21: 1107500 | E21: 1107500
B22: รวม | C22: =SUM(C8:C21) -> 11250775 | D22: 9699051.83 | E22: =SUM(E8:E21) -> 7863946.78 | F22: =SUM(F8:F21) -> 312998 | G22: =SUM(G8:G21) -> 1522107.05
B25: (นางข้อหนัน เจะดุหมัน) | D25: (นายเสน่ห์ อ่อนเกตพล) | F25: (นายสมบูรณ์ ขลุกเอียด)
B26: ผู้อำนวยการกองคลัง | D26: ปลัดองค์การบริหารส่วนตำบล | F26: นายกองค์การบริหารส่วนตำบลหัวไทร

Sheet ตามแผนงาน2
A1: องค์การบริหารส่วนตำบลหัวไทร
A2: รายงานรายจ่ายในการดำเนินงานที่จ่ายจากเงินรายรับตามแผนงาน การรักษาความสงบภายใน
A3: ตั้งแต่วันที่ 1 ตุลาคม 2555 ถึง 30 กันยายน 2556
A5: หมวด | C5: ประมาณการ | D5: รวม | E5: งานบริหารทั่วไปเกี่ยวกับ | F5: งานป้องกันภัยฝ่าย
E6: การรักษาความสงบภายใน | F6: พลเรือนและระงับอัคคีภัย
A7: รายจ่าย
B8: เงินเดือน (ฝ่ายการเมือง)
B9: เงินเดือน (ฝ่ายประจำ)
B10: ค่าจ้างประจำ
B11: ค่าจ้างชั่วคราว
B12: ค่าตอบแทน | C12: 60000 | D12: =SUM(F12:F12) -> 43600 | F12: 43600
B13: ค่าใช้สอย | C13: =360000-40000-37000 -> 283000 | D13: =SUM(F13:F13) -> 59090 | F13: 59090
B14: ค่าวัสดุ | C14: 105000 | D14: 27527.5 | F14: 27527.5
B15: ค่าสาธารณูปโภค | D15: 0
B16: เงินอุดหนุน | D16: 0
B17: รายจ่ายอื่น | D17: 0
B18: งบกลาง | D18: 0
B19: ค่าครุภัณฑ์ | D19: 0
B20: ค่าที่ดินและสิ่งก่อสร้าง | D20: 0
B21: รวม | C21: =SUM(C8:C20) -> 448000 | D21: 130217.5 | E21: =SUM(E8:E20) -> 0 | F21: =SUM(F8:F20) -> 130217.5
B24: (นางข้อหนัน จะดุหมัน) | C24: (นายเสน่ห์ อ่อนเกตุพล) | E24: (นายสมบูรณ์ ขลุกเอียด)
B25: ผู้อำนวยการกองคลัง | C25: ปลัดองค์การบริหารส่วนตำบลหัวไทร | E25: นายกองค์การบริหารส่วนตำบลหัวไทร

Sheet ตามแผนงาน3
A1: องค์การบริหารส่วนตำบลหัวไทร
A2: รายงานรายจ่ายในการดำเนินงานที่จ่ายจากเงินรายรับตามแผนงาน การศึกษา
A3: ตั้งแต่วันที่ 1 ตุลาคม 2555 ถึง 30 กันยายน 2556
B5: หมวด | C5: ประมาณการ | D5: เงินอุดหนุนทั่วไป | E5: รวม | F5: งานบริหารทั่วไปเกี่ยวกับ | G5: งานระดับก่อนวัยเรียน | H5: งานศึกษา
D6: ที่ระบุวัตถุประสงค์ | F6: การศึกษา | G6: และประถมศึกษา | H6: ไม่กำหนดระดับ
A7: รายจ่าย
B8: เงินเดือน (ฝ่ายประจำ) | C8: 186000 | E8: =SUM(F8:H8) -> 180000 | F8: 180000
B9: เงินเดือน (ฝ่ายประจำ) | D9: =330000+30000 -> 360000 | E9: =SUM(F9:H9) -> 360000 | G9: =330000+30000 -> 360000
B10: ค่าจ้างประจำ | E10: 0
B11: ค่าจ้างชั่วคราว | C11: =45000 -> 45000 | E11: 5400 | G11: 5400
B12: ค่าจ้างชั่วคราว | D12: 216000 | E12: 216000 | G12: 216000
B13: ค่าตอบแทน | C13: =25000+5000 -> 30000 | E13: 0
B14: ค่าใช้สอย | C14: =35000+689520-15000 -> 709520 | E14: 670156 | F14: 19688 | G14: 650468
B15: ค่าวัสดุ | C15: =10000+889650+250000 -> 1149650 | E15: 994975 | F15: 8040 | G15: 802035 | H15: 184900
B16: ค่าวัสดุ | D16: 102355 | E16: 102355 | G16: 102355
B17: ค่าสาธารณูปโภค | E17: 0
B18: เงินอุดหนุน | C18: 1105480 | E18: 1105480 | G18: 1105480
B19: รายจ่ายอื่น | E19: 0
B20: งบกลาง | E20: 0
B21: ค่าครุภัณฑ์ | C21: 40800 | E21: 6900 | G21: 6900
B22: ค่าครุภัณฑ์ | D22: 52000 | E22: 52000 | G22: 52000
B23: ค่าที่ดินและสิ่งก่อสร้าง | E23: 0
B24: รวม | C24: =SUM(C8:C23) -> 3266450 | D24: =SUM(D8:D23) -> 730355 | E24: 3693266 | F24: =SUM(F8:F23) -> 207728 | G24: =SUM(G8:G23) -> 3300638 | H24: =SUM(H8:H23) -> 184900
C27: (นางข้อหนัน เจะดุหมัน) | E27: (นายเสน่ห์ อ่อนเกตพล) | G27: (นายสมบูรณ์ ขลุกเอียด)
C28: ผู้อำนวยการกองคลัง | E28: ปลัดองค์การบริหารส่วนตำบล | G28: นายกองค์การบริหารส่วนตำบลหัวไทร

Sheet ตามแผนงาน4
A1: องค์การบริหารส่วนตำบลหัวไทร
A2: รายงานรายจ่ายในการดำเนินงานที่จ่ายจากเงินรายรับตามแผนงาน สาธารณสุข
A3: ตั้งแต่วันที่ 1 ตุลาคม 2555 ถึง 30 กันยายน 2556
B5: หมวด | C5: ประมาณการ | D5: รวม | E5: งานบริหารทั่วไปเกี่ยวกับ | F5: งานโรงพยาบาล | G5: งานบริการสาธารณสุข
E6: การสาธารณสุข | G6: และงานสาธารณสุขอื่น
A7: รายจ่าย
B8: เงินเดือน (ฝ่ายการเมือง)
B9: เงินเดือน (ฝ่ายประจำ)
B10: ค่าจ้างประจำ
B11: ค่าจ้างชั่วคราว
B12: ค่าตอบแทน | C12: =10000 -> 10000 | D12: =E12+F12+G12 -> 0 | G12: 0
B13: ค่าใช้สอย | C13: 10000 | D13: 1800 | G13: 1800
B14: ค่าวัสดุ | C14: 50000 | D14: 23533.45 | G14: 23533.45
B15: ค่าสาธารณูปโภค
B16: เงินอุดหนุน | C16: 120000 | D16: 70000 | G16: 70000
B17: รายจ่ายอื่น | D17: 0
B18: งบกลาง | D18: 0
B19: ค่าครุภัณฑ์ | D19: 0
B20: ค่าที่ดินและสิ่งก่อสร้าง | D20: 0
B21: รวม | C21: =SUM(C8:C20) -> 190000 | D21: =E21+F21+G21 -> 95333.45 | G21: =SUM(G8:G20) -> 95333.45
B24: (นางข้อหนัน เจะดุหมัน) | D24: (นายเสน่ห์ อ่อนเกตพล) | F24: (นายสมบูรณ์ ขลุกเอียด)
B25: ผู้อำนวยการกองคลัง | D25: ปลัดองค์การบริหารส่วนตำบล | F25: นายกองค์การบริหารส่วนตำบลหัวไทร

Sheet ตามแผนงาน5
A1: องค์การบริหารส่วนตำบลหัวไทร
A2: รายงานรายจ่ายในการดำเนินงานที่จ่ายจากเงินรายรับตามแผนงาน สังคมสงเคราะห์
A3: ตั้งแต่วันที่ 1 ตุลาคม 2555 ถึง 30 กันยายน 2556
B5: หมวด | C5: ประมาณการ | D5: เงินอุดหนุนทั่วไป | E5: รวม | F5: งานบริหารทั่วไปเกี่ยวกับ | G5: งานสวัสดิการสังคมและ
D6: ที่ระบุวัตถุประสงค์ | F6: สังคมสงเคราะห์ | G6: สังคมสงเคราะห์
A7: รายจ่าย
B8: เงินเดือน (ฝ่ายการเมือง)
B9: เงินเดือน (ฝ่ายประจำ) | C9: =188000 -> 188000 | E9: =SUM(F9:G9) -> 180000 | F9: 180000
B10: ค่าจ้างประจำ | E10: =SUM(F10:G10) -> 0
B11: ค่าจ้างชั่วคราว | E11: 0
B12: ค่าตอบแทน | C12: =20000+24000+10000 -> 54000 | E12: 20497 | F12: 20497
B13: ค่าใช้สอย | C13: =25000+60000 -> 85000 | E13: 53760 | F13: 12960 | G13: 40800
B14: ค่าวัสดุ | E14: 0
B15: ค่าสาธารณูปโภค | E15: 0
B16: เงินอุดหนุน | E16: 0
B17: รายจ่ายอื่น | E17: 0
B18: งบกลาง | E18: 0
B19: ค่าครุภัณฑ์ | C19: =20400 -> 20400 | E19: 16950 | F19: 16950
B20: ค่าที่ดินและสิ่งก่อสร้าง | E20: 0
B21: รวม | C21: =SUM(C7:C20) -> 347400 | D21: =SUM(D9:D20) -> 0 | E21: 271207 | F21: =SUM(F8:F20) -> 230407 | G21: =SUM(G8:G20) -> 40800
B24: (นางข้อหนัน เจะดุหมัน) | D24: (นายเสน่ห์ อ่อนเกตพล) | F24: (นายสมบูรณ์ ขลุกเอียด)
B25: ผู้อำนวยการกองคลัง | D25: ปลัดองค์การบริหารส่วนตำบล | F25: นายกองค์การบริหารส่วนตำบลหัวไทร

Sheet ตามแผนงาน6
A1: องค์การบริหารส่วนตำบลหัวไทร
A2: รายงานรายจ่ายในการดำเนินงานที่จ่ายจากเงินรายรับตามแผนงาน เคหะและชุมชน
A3: ตั้งแต่วันที่ 1 ตุลาคม 2555 ถึง 30 กันยายน 2556
A5: รายการ | B5: หมวด | C5: ประมาณการ | D5: รวม | E5: งานบริหารทั่วไป | F5: งานไฟฟ้าและถนน | G5: งานสวนสาธารณะ | H5: งานกำจัดขยะมูลฝอย
H6: และสิ่งปฏิกูล
A7: รายจ่าย
B8: เงินเดือน (ฝ่ายประจำ) | C8: =659000+10000+20000 -> 689000 | D8: =SUM(E8:H8) -> 638916 | E8: 638916
B9: ค่าจ้างประจำ | D9: =SUM(E9:H9) -> 0
B10: ค่าจ้างชั่วคราว | C10: =120000-20000+113000 -> 213000 | D10: 148354 | F10: 54000 | H10: 94354
B11: ค่าตอบแทน | C11: =100000-10000+10000 -> 100000 | D11: 44411 | E11: 44411
B12: ค่าใช้สอย | C12: =135000+250000+218200+50000+335000 -> 988200 | D12: 934492.91 | E12: 110262 | F12: 505224.91 | H12: 319006
B13: ค่าวัสดุ | C13: =130000+280000-50000+140000 -> 500000 | D13: 216571 | E13: 83251 | F13: 77720 | H13: 55600
B14: ค่าสาธารณูปโภค | D14: 0
B15: เงินอุดหนุน | D15: 0
B16: รายจ่ายอื่น | D16: 0
B17: งบกลาง | D17: 0
B18: ค่าครุภัณฑ์ | C18: =27000+36200 -> 63200 | D18: 53550 | E18: 27050 | F18: 26500
B19: ค่าที่ดินและสิ่งก่อสร้าง | C19: =1862400 -> 1862400 | D19: 1799800 | F19: 1799800
B20: รวม | C20: =SUM(C8:C19) -> 4415800 | D20: =E20+F20+H20 -> 3836094.91 | E20: =SUM(E8:E19) -> 903890 | F20: =SUM(F8:F19) -> 2463244.91 | H20: =SUM(H8:H19) -> 468960
C24: (นางข้อหนัน เจะดุหมัน) | E24: (นายเสน่ห์ อ่อนเกตพล) | G24: (นายสมบูรณ์ ขลุกเอียด)
C25: ผู้อำนวยการกองคลัง | E25: ปลัดองค์การบริหารส่วนตำบล | G25: นายกองค์การบริหารส่วนตำบลหัวไทร

Sheet ตามแผนงาน7
A1: องค์การบริหารส่วนตำบลหัวไทร
A2: รายงานรายจ่ายในการดำเนินงานที่จ่ายจากเงินรายรับตามแผนงาน สร้างความเข้มแข็งของชุมชน
A3: ตั้งแต่วันที่ 1 ตุลาคม 2555 ถึง 30 กันยายน 2556
A5: รายการ | C5: ประมาณการ | D5: เงินอุดหนุนทั่วไป | E5: รวม | F5: งานบริหารทั่วไป | G5: งานส่งเสริมและสนับสนุน
D6: ที่ระบุวัตถุประสงค์ | G6: ความเข้มแข็งชุมชน
A7: รายจ่าย
B8: เงินเดือน (ฝ่ายการเมือง) | E8: =F8+G8 -> 0
B9: เงินเดือน (ฝ่ายประจำ) | E9: =F9+G9 -> 0
B10: ค่าจ้างประจำ | E10: =F10+G10 -> 0
B11: ค่าจ้างชั่วคราว | E11: =F11+G11 -> 0
B12: ค่าตอบแทน
B13: ค่าใช้สอย | C13: =260000+15000 -> 275000 | E13: =F13+G13 -> 160865 | G13: 160865
B14: ค่าใช้สอย | D14: 137000 | E14: 137000 | G14: 137000
B15: ค่าวัสดุ | E15: 0
B16: ค่าสาธารณูปโภค | E16: 0
B17: เงินอุดหนุน | E17: 0
B18: รายจ่ายอื่น | E18: 0
B19: งบกลาง | E19: 0
B20: ค่าครุภัณฑ์ | E20: 0
B21: ค่าที่ดินและสิ่งก่อสร้าง | E21: 0
B22: รวม | C22: =SUM(C8:C21) -> 275000 | D22: =SUM(D8:D21) -> 137000 | E22: 297865 | G22: =SUM(G8:G21) -> 297865
B26: (นางข้อหนัน เจะดุหมัน) | D26: (นายเสน่ห์ อ่อนเกตพล) | F26: (นายสมบูรณ์ ขลุกเอียด)
B27: ผู้อำนวยการกองคลัง | D27: ปลัดองค์การบริหารส่วนตำบล | F27: นายกองค์การบริหารส่วนตำบลหัวไทร

Sheet ตามแผนงาน8
A1: องค์การบริหารส่วนตำบลหัวไทร
A2: รายงานรายจ่ายในการดำเนินงานที่จ่ายจากเงินรายรับตามแผนงาน การศาสนาวัฒนธรรมและนันทนาการ
A3: ตั้งแต่วันที่ 1 ตุลาคม 2555 ถึง 30 กันยายน 2556
A5: รายการ | C5: ประมาณการ | D5: รวม | E5: งานกีฬาและนันทนาการ | F5: งานศาสนาวัฒนธรรม | G5: งานวิชาการวางแผนและ
F6: ท้องถิ่น | G6: ส่งเสริมการท่องเที่ยว
A7: รายจ่าย
B8: เงินเดือน (ฝ่ายการเมือง)
B9: เงินเดือน (ฝ่ายประจำ)
B10: ค่าจ้างประจำ
B11: ค่าจ้างชั่วคราว
B12: ค่าตอบแทน
B13: ค่าใช้สอย | C13: =555000-47975+240000+20000 -> 767025 | D13: =E13+F13+G13 -> 682425 | E13: 456735 | F13: 225690
B14: ค่าวัสดุ | D14: =E14+F14+G14 -> 0
B15: ค่าสาธารณูปโภค | D15: 0
B16: เงินอุดหนุน | C16: 15000 | D16: 15000 | F16: 15000
B17: รายจ่ายอื่น | D17: 0
B18: งบกลาง | D18: 0
B19: ค่าครุภัณฑ์ | D19: 0
B20: ค่าที่ดินและสิ่งก่อสร้าง | C20: 342000 | D20: 340000 | E20: 340000
B21: รวม | C21: =SUM(C9:C20) -> 1124025 | D21: 1037425 | E21: =SUM(E13:E20) -> 796735 | F21: =SUM(F13:F20) -> 240690 | G21: =SUM(G16:G20) -> 0
B24: (นางข้อหนัน เจะดุหมัน) | D24: (นายเสน่ห์ อ่อนเกตพล) | F24: (นายสมบูรณ์ ขลุกเอียด)
B25: ผู้อำนวยการกองคลัง | D25: ปลัดองค์การบริหารส่วนตำบล | F25: นายกองค์การบริหารส่วนตำบลหัวไทร

Sheet ตามแผนงาน9
A1: องค์การบริหารส่วนตำบลหัวไทร
A2: รายงานรายจ่ายในการดำเนินงานที่จ่ายจากเงินรายรับตามแผนงาน การเกษตร
A3: ตั้งแต่วันที่ 1 ตุลาคม 2555 ถึง 30 กันยายน 2556
A5: รายการ | C5: ประมาณการ | D5: เงินอุดหนุนทั่วไป | E5: รวม | F5: งานส่งเสริมการเกษตร | G5: งานอนุรักษ์แหล่งน้ำ | H5: งานวิชาการวางแผนและ
D6: ที่ระบุวัตถุประสงค์ | G6: และป่าไม้ | H6: ส่งเสริมการท่องเที่ยว
A7: รายจ่าย
B8: ค่าจ้างประจำ | D8: 147420 | E8: =F8+G8+H8 -> 147420 | F8: 147420
B9: ค่าจ้างชั่วคราว | E9: 0
B10: ค่าตอบแทน | E10: 0
B11: ค่าตอบแทน | D11: 3288 | E11: 3288 | F11: 3288
B12: ค่าใช้สอย | C12: =120000-35000+50000 -> 135000 | E12: =F12+G12+H12 -> 45715 | F12: 19605 | G12: 26110
B13: ค่าวัสดุ | C13: 25000 | E13: =F13+G13+H13 -> 0
B14: ค่าสาธารณูปโภค | C14: 30000 | E14: 28896.95 | F14: 28896.95
B15: ค่าสาธารณูปโภค | D15: 127749.78 | E15: 127749.78 | F15: 127749.78
B16: เงินอุดหนุน | E16: 0
B17: งบกลาง | E17: 0
B18: ค่าครุภัณฑ์ | E18: 0
B19: ค่าที่ดินและสิ่งก่อสร้าง | C19: 318900 | E19: 317000 | F19: 317000
B20: รวม | C20: =SUM(C8:C19) -> 508900 | D20: =SUM(D8:D19) -> 278457.78 | E20: 670069.73 | F20: =SUM(F8:F19) -> 643959.73 | G20: =SUM(G12:G19) -> 26110 | H20: =SUM(H16:H19) -> 0
B23: (นางข้อหนัน เจะดุหมัน) | D23: (นายเสน่ห์ อ่อนเกตพล) | G23: (นายสมบูรณ์ ขลุกเอียด)
B24: ผู้อำนวยการกองคลัง | D24: ปลัดองค์การบริหารส่วนตำบล | G24: นายกองค์การบริหารส่วนตำบลหัวไทร

Sheet ตามแผนงาน10
A1: องค์การบริหารส่วนตำบลหัวไทร
A2: รายงานรายจ่ายในการดำเนินงานที่จ่ายจากเงินรายรับตามแผนงาน การพาณิชย์
A3: ตั้งแต่วันที่ 1 ตุลาคม 2555 ถึง 30 กันยายน 2556
A5: หมวด | C5: ประมาณการ | D5: รวม | E5: งานกิจการประปา
A7: รายจ่าย
B8: เงินเดือน (ฝ่ายการเมือง)
B9: เงินเดือน (ฝ่ายประจำ)
B10: ค่าจ้างประจำ
B11: ค่าจ้างชั่วคราว
B12: ค่าตอบแทน
B13: ค่าใช้สอย
B14: ค่าวัสดุ
B15: ค่าสาธารณูปโภค
B16: เงินอุดหนุน
B17: รายจ่ายอื่น
B18: งบกลาง
B19: ค่าครุภัณฑ์
B20: ค่าที่ดินและสิ่งก่อสร้าง | C20: =1326500+130000-424000 -> 1032500 | D20: =SUM(E20:F20) -> 999870 | E20: 999870
B21: รวม | C21: =SUM(C9:C20) -> 1032500 | D21: =SUM(E21:F21) -> 999870 | E21: =SUM(E20) -> 999870
A24: (นางข้อหนัน เจะดุหมัน) | C24: (นายเสน่ห์ อ่อนเกตพล) | E24: (นายสมบูรณ์ ขลุกเอียด)
A25: ผู้อำนวยการกองคลัง | C25: ปลัดองค์การบริหารส่วนตำบล | E25: นายกองค์การบริหารส่วนตำบลหัวไทร

Sheet ตามแผนงาน 11
A1: องค์การบริหารส่วนตำบลหัวไทร
A2: รายงานรายจ่ายในการดำเนินงานที่จ่ายจากเงินรายรับตามแผนงาน งบกลาง
A3: ตั้งแต่วันที่ 1 ตุลาคม 2555 ถึง 30 กันยายน 2556
B5: หมวด | C5: ประมาณการ | D5: เงินอุดหนุนทั่วไป | E5: รวม | F5: งบกลาง
D6: ที่ระบุวัตถุประสงค์
A7: รายจ่าย
B8: เงินเดือน (ฝ่ายการเมือง)
B9: เงินเดือน (ฝ่ายประจำ)
B10: ค่าจ้างประจำ
B11: ค่าจ้างชั่วคราว
B12: ค่าตอบแทน
B13: ค่าใช้สอย
B14: ค่าวัสดุ
B15: ค่าสาธารณูปโภค
B16: เงินอุดหนุน
B17: รายจ่ายอื่น
B18: งบกลาง | C18: =1771150-630000 -> 1141150 | E18: =867954+154000 -> 1021954 | F18: =867954+154000 -> 1021954
B19: งบกลาง | D19: 11290240 | E19: 11290240 | F19: =11290240 -> 11290240
B20: ค่าครุภัณฑ์
B21: ค่าที่ดินและสิ่งก่อสร้าง
B22: รวม | C22: =SUM(C9:C21) -> 1141150 | D22: =SUM(D8:D21) -> 11290240 | E22: =SUM(E8:E21) -> 12312194 | F22: =SUM(F8:F21) -> 12312194
B26: (นางข้อหนัน เจะดุหมัน) | D26: (นายเสน่ห์ อ่อนเกตพล) | F26: (นายสมบูรณ์ ขลุกเอียด)
B27: ผู้อำนวยการกองคลัง | D27: ปลัดองค์การบริหารส่วนตำบล | F27: นายกองค์การบริหารส่วนตำบลหัวไทร

Sheet ค่าที่ดิน
A1: หมายเหตุ ประกอบงบแสดงผลการดำเนินงาน
A3: องค์การบริหารส่วนตำบลหัวไทร อำเภอหัวไทร จังหวัดนครศรีธรรมราช
B5: หมายเหตุ 1 ค่าที่ดินและสิ่งก่อสร้าง จ่าย จากเงินอุดหนุนเฉพาะกิจ
C6: โครงการ…
H7: รวม | I7: =SUM(I6:I6) -> 0
C9: ค่าที่ดินและสิ่งก่อสร้าง จ่าย จากเงินรายรับ
C10: โครงการ | D10: ก่อสร้างซุ้มประชาสัมพันธ์ที่ทำการอบต.หัวไทร | I10: 243000
C11: โครงการ | D11: ปรับปรุงที่จอดรถองค์การบริหารส่วนตำบลหัวไทร | I11: 99000
C12: โครงการ | D12: ก่อสร้างถนนคอนกรีตเสริมเหล็ก(ซอยอยู่เย็น) หมู่ที่ 1 | I12: 282800
C13: โครงการ | D13: ปรับปรุงถนนซอยเหมืองดาดคอนกรีต หมู่ที่ 3 | I13: 329000
C14: โครงการ | D14: ก่อสร้างลานกีฬาคอนกรีตเสริมเหล็กชุมชนประจำหมู่บ้าน หมู่ที่ 8 | I14: 340000
C15: โครงการ | D15: ปรับปรุงถนนซอยแสนสุข(ซอยบ้านอ.กระจ่าง) หมู่ที่ 10 | I15: 200000
C16: โครงการ | D16: ก่อสร้างถนนทางเชื่อมคอนกรีตเสริมเหล็กเข้า-ออก หน้า อบต.หัวไทร | I16: 89000
C17: โครงการ | D17: ปรับปรุง/ขยายเขตระบบประปาบ้านอิมอญ ม.12 ต.หัวไทร | I17: 97500
C18: โครงการ | D18: ปรับปรุงภูมิทัศน์ที่ทำการอบต.หัวไทร(ถมดิน) | I18: 257000
C19: โครงการ | D19: ก่อสร้างหอถังประปา หมู่ที่ 2 | I19: 379500
C20: โครงการ | D20: ขุดเหมืองส่งน้ำจากสายหัวเหมืองเก่า-ซอยนางนวล หมู่ที่ 6,11 | I20: 317000
C21: โครงการ | D21: ก่อสร้างถนนคอนกรีตเสริมเหล็กซอยเทพรักษ์ (ซอย 1,2,3) หมู่ที่ 4 | I21: 988000 | J21: รายจ่ายค้างจ่าย
C22: โครงการ | D22: ปรับปรุงอาคารสำนักงาน อบต.หัวไทร | I22: 419500 | J22: รายจ่ายค้างจ่าย
C23: โครงการ | D23: ขุดเจาะบ่อบาดาล หมู่ที่ 7 | I23: 423000 | J23: รายจ่ายค้างจ่าย
C24: โครงการ | D24: ปรับปรุง/ขยายเขตประปาบ้านหนองนกไข่ หมู่ที่ 5 | I24: 99870 | J24: รายจ่ายค้างจ่าย
H26: รวม | I26: =SUM(I10:I25) -> 4564170
B27: หมายเหตุ 2
C28: รับเงินอุดหนุนเฉพาะกิจจาก
C29: กรมส่งเสริมการปกครองท้องถิ่น
C30: ...................................................................
H31: รวม | I31: =SUM(I29:I30) -> 0
B34: (นางข้อหนัน เจะดุหมัน) | E34: (นายเสน่ห์ อ่อนเกตุพล) | H34: (นายสมบูรณ์ ขลุกเอียด)
B35: ผู้อำนวยการกองคลัง | E35: ปลัดองค์การบริหารส่วนตำบล | H35: นายกองค์การบริหารส่วนตำบลหัวไทร

Sheet ผลการดำเนินงาน
A1: องค์การบริหารส่วนตำบลหัวไทร
A2: งบแสดงผลการดำเนินงานจ่ายจากเงินรายรับและเงินสะสม
A3: ตั้งแต่วันที่ 1 ตุลาคม 2555 ถึงวันที่ 30 กันยายน 2556
A4: รายการ | C4: ประมาณการ | D4: เงินอุดหนุนระบุวัตถุประสงค์ | E4: รวม | F4: บริหารงานทั่วไป | G4: การรักษาความสงบ | H4: การศึกษา | I4: สาธารณสุข | J4: สังคมสงเตราะห์ | K4: เคหะและชุมชน | L4: สร้างความเข้มแข็งของชุมชน | M4: การศาสนาวัฒนธรรมและนันทนาการ | N4: การเกษตร | O4: การพาณิชย์ | P4: งบกลาง
A5: รายจ่าย
B6: งบกลาง | C6: 1141150 | E6: =SUM(F6:P6) -> 1021954 | P6: 1021954
B7: งบกลาง | D7: =11290420 -> 11290420 | E7: =SUM(F7:P7) -> 11290240 | P7: 11290240
B8: เงินเดือน(ฝ่ายการเมือง) | C8: 2787500 | E8: 2713636 | F8: 2713636 | M8: (
B9: เงินเดือน(ฝ่ายประจำ) | C9: 3110975 | E9: 2905894 | F9: 1906978 | H9: 180000 | J9: 180000 | K9: 638916
B10: เงินเดือน(ฝ่ายประจำ) | D10: 360000 | E10: 360000 | H10: 360000
B11: ค่าจ้างประจำ | C11: 140000 | E11: 137880 | F11: 137880
B12: ค่าจ้างประจำ | D12: 147420 | E12: 147420 | N12: 147420
B13: ค่าจ้างชั่วคราว | C13: 688000 | E13: 496533 | F13: 342779 | H13: 5400 | K13: 148354
B14: ค่าจ้างชั่วคราว | D14: 216000 | E14: 216000 | H14: 216000
B15: ค่าตอบแทน | C15: 1709000 | E15: 1284451 | F15: 1175943 | G15: 43600 | J15: 20497 | K15: 44411
B16: ค่าตอบแทน | D16: 3288 | E16: 3288 | N16: 3288
B17: ค่าใช้สอย | C17: 5241745 | E17: 4052193.41 | F17: 1443889.5 | G17: 59090 | H17: 670156 | I17: 1800 | J17: 53760 | K17: 934492.91 | L17: 160865 | M17: 682425 | N17: 45715
B18: ค่าใช้สอย | D18: 137000 | E18: 137000 | L18: 137000
B19: ค่าวัสดุ | C19: 2397650 | E19: 1705560.2 | F19: 442953.25 | G19: 27527.5 | H19: 994975 | I19: 23533.45 | K19: 216571
B20: ค่าวัสดุ | D20: 102355 | E20: 102355 | H20: 102355
B21: ค่าสาธารณูปโภค | C21: 270000 | E21: 215700.03 | F21: 186803.08 | N21: 28896.95
B22: ค่าสาธารณูปโภค | D22: 127749.78 | E22: 127749.78 | N22: 127749.78
B23: เงินอุดหนุน | C23: 1250480 | E23: 1200480 | F23: 10000 | H23: 1105480 | I23: 70000 | M23: 15000
B24: รายจ่ายอื่น | C24: 50000 | E24: 50000 | F24: 50000
B25: ค่าครุภัณฑ์ | C25: 413200 | E25: 258090 | F25: 180690 | H25: 6900 | J25: 16950 | K25: 53550
B26: ค่าครุภัณฑ์ | D26: 52000 | E26: 52000 | H26: 52000
B27: ค่าที่ดินและสิ่งก่อสร้าง | C27: 4800300 | E27: 4564170 | F27: 1107500 | K27: 1799800 | M27: 340000 | N27: 317000 | O27: 999870
B28: รวมรายจ่าย | C28: =SUM(C5:C27) -> 24000000 | D28: =SUM(D5:D27) -> 12436232.78 | E28: 33042594.42 | F28: =SUM(F6:F27) -> 9699051.83 | G28: 130217.5 | H28: 3693266 | I28: 95333.45 | J28: 271207 | K28: 3836094.91 | L28: 297865 | M28: 1037425 | N28: 670069.73 | O28: 999870 | P28: 12312194
A31: รายรับ | E31: ประมาณการ
B32: ภาษีอากร | E32: 480000 | G32: =631999.52+10573.2 -> 642572.72
B33: ค่าธรรมเนียมค่าปรับและใบอนุญาต | E33: 131500 | G33: 205014
B34: รายได้จากทรัพย์สิน | E34: 150000 | G34: 254953.12
B35: รายได้จากสาธารณูปโภค | E35: 5000 | G35: 147144
B36: รายได้เบ็ดเตล็ด | E36: 12500 | G36: 129590
B37: รายได้จากทุน
B38: รายได้ที่รัฐบาลจัดสรรให้ | E38: 14621000 | G38: 18482739.11
B39: เงินอุดหนุนทั่วไป | E39: 8600000 | G39: 8316666.23
B40: เงินอุดหนุนทั่วไปที่ระบุวัตถุประสงค์ | G40: 12436232.78
A41: รวม | E41: =SUM(E32:E40) -> 24000000 | G41: =SUM(G32:G40) -> 40614911.96
A42: รายรับสูง(ต่ำ)กว่ารายจ่าย | G42: =G41-E28 -> 7572317.54
C49: (นางข้อหนัน เจะดุหมัน) | G49: (นายเสน่ห์ อ่อนเกตุพล) | K49: (นายสมบูรณ์ ขลุกเอียด)
C50: ผู้อำนวยการกองคลัง | G50: ปลัดองค์การบริหารส่วนตำบล | K50: นายกองค์การบริหารส่วนตำบลหัวไทร

Sheet จ่ายจากเงินสะสม
A1: องค์การบริหารส่วนตำบลหัวไทร
A2: รายงานรายจ่ายในการดำเนินงานที่จ่ายจากเงินสะสม
A3: ตั้งแต่วันที่ 1 ตุลาคม 2555 ถึง 30 กันยายน 2556
A5: หมวด | B5: รวม | C5: แผนงานบริหารงานทั่วไป | D5: แผนงานเคหะและชุมชน | E5: แผนงานเคหะและชุมชน
C6: งานบริหารทั่วไป | D6: งานไฟฟ้าและถนน | E6: งานส่งเสริมการเกษตร
A7: รายจ่าย
A8: เงินเดือน(ฝ่ายการเมือง)
A9: เงินเดือน(ฝ่ายประจำ)
A10: ค่าจ้างประจำ
A11: ค่าจ้างชั่วคราว
A12: ค่าตอบแทน
A13: ค่าใช้สอย
A14: ค่าวัสดุ
A15: ค่าสาธารณูปโภค
A16: เงินอุดหนุน
A17: รายจ่ายอื่น
A18: งบกลาง
A19: ค่าครุภัณฑ์
A20: ค่าที่ดินและสิ่งก่อสร้าง
A21: รวม
A22: หมายเหตุ 1.จ่ายขาดเงินสะสม บาท
A23: 2.ก่อหนี้ผูกพัน บาท
A25: (นางข้อหนัน เจะดุหมัน) | C25: (นายเสน่ห์ อ่อนเกตุพล) | D25: (นายสมบูรณ์ ขลุกเอียด)
A26: ผู้อำนวยการกองคลัง | C26: ปลัดองค์การบริหารส่วนตำบล | D26: นายกองค์การบริหารส่วนตำบลหัวไทร
A30: องค์การบริหารส่วนตำบลหัวไทร
A31: รายงานรายจ่ายในการดำเนินงานที่จ่ายจากเงินสะสม
A32: ตั้งแต่วันที่ 1 ตุลาคม 2555 ถึง 30 กันยายน 2555
A34: หมวด | B34: รวม | C34: แผนงานบริหารงานทั่วไป | D34: แผนงานเคหะและชุมชน | E34: แผนงานเคหะและชุมชน
C35: งานบริหารทั่วไป | D35: งานไฟฟ้าและถนน | E35: งานส่งเสริมการเกษตร
A36: รายจ่าย
A37: เงินเดือน(ฝ่ายการเมือง) | B37: =C37+D37+E37 -> 236040 | C37: 236040
A38: เงินเดือน(ฝ่ายประจำ) | B38: 326 | C38: 326
A39: ค่าจ้างประจำ | B39: 0
A40: ค่าจ้างชั่วคราว | B40: 0
A41: ค่าตอบแทน | B41: 0
A42: ค่าใช้สอย | B42: 200000 | E42: 200000
A43: ค่าวัสดุ | B43: 0
A44: ค่าสาธารณูปโภค | B44: 0
A45: เงินอุดหนุน | B45: 0
A46: รายจ่ายอื่น | B46: 0
A47: งบกลาง | B47: 0
A48: ค่าครุภัณฑ์ | B48: 2545000 | D48: 2545000
A49: ค่าที่ดินและสิ่งก่อสร้าง | B49: 3049000 | D49: 3009500 | E49: 39500
A50: รวม | B50: =C50+D50+E50 -> 6030366 | C50: =SUM(C37:C49) -> 236366 | D50: =SUM(D38:D49) -> 5554500 | E50: =SUM(E37:E49) -> 239500
A51: หมายเหตุ 1.จ่ายขาดเงินสะสม 6,030,366.- บาท
A52: 2.ก่อหนี้ผูกพัน 2,661,000.- บาท
A54: (นางข้อหนัน เจะดุหมัน) | C54: (นายเสน่ห์ อ่อนเกตุพล) | D54: (นายเสน่ห์ อ่อนเกตุพล)
A55: หัวหน้าส่วนการคลัง | C55: ปลัดองค์การบริหารส่วนตำบล | D55: ปลัดองค์การบริหารส่วนตำบลปฎิบัติหน้าที่
D56: นายกองค์การบริหารส่วนตำบลหัวไทร

Sheet ทะเบียนทรัพย์สิน
A1: งานทะเบียน
A2: องค์การบริหารส่วนตำบลหัวไทร อำเภอหัวไทร จังหวัดนครศรีธรรมราช
A3: สิ้นงวดปีงบประมาณ พ.ศ. 2551
A5: ประเภท | B5: เลขที่ | C5: ยี่ห้อ ชนิด แบบ ขนาด | D5: วัน/เดือน/ปี | E5: เลขหมาย | F5: ราคาต่อ | G5: ราคารวม | H5: วิธีการ | I5: เลขที่เอกสาร | J5: ใช้ประจำที่ | K5: รายการ | L5: เลขที่ | M5: หมายเหตุ
B6: หรือ | C6: และ | D6: ที่ได้ | E6: และ | F6: หน่วย | G6: (บาท) | H6: ได้มาซึ่ง | L6: เอกสาร
B7: รหัส | C7: ลักษณะ | D7: กรรมสิทธิ์ | E7: ทะเบียน | F7: (บาท) | H7: กรรมสิทธิ์
A8: พ.ศ.2538 (รายได้)
A9: 1) โต๊ะทำงานพร้อมเก้าอี้ | B9: 400 38 0001-2 | C9: โต๊ะทำงานระดับ 3-6 | D9: 8 กันยายน 2538 | F9: 2900 | G9: =F9*2 -> 5800 | H9: ตกลงราคา | I9: ฎีกาที่ 8/2538 | J9: สำนักงาน
C10: มี 4 ลิ้นชัก สีเทา พร้อม
C11: เก้าอี้ มีพนักพิงหมุนได้มีล้อ
A13: 2) โต๊ะประชุม | B13: 400 38 0003-7 | C13: โต๊ะไม้ธรรมดา | D13: 8 กันยายน 2538 | F13: 845 | G13: =F13*5 -> 4225 | H13: ตกลงราคา | I13: ฎีกาที่ 7/2538 | J13: สำนักงาน
C14: ขนาด 58” x 35”
A16: 3) เก้าอี้ | B16: 401 38 0001-22 | C16: ชนิดหมุนได้ มีล้อ | D16: 8 กันยายน 2538 | F16: 900 | G16: =F16*22 -> 19800 | H16: ตกลงราคา | I16: ฎีกาที่ 7/2538 | J16: สำนักงาน
A18: 4) โต๊ะพิมพ์ดีด | B18: 400 38 0008 | C18: โต๊ะไม้ มี 2 ลิ้นชัก | D18: 8 กันยายน 2538 | F18: 1600 | G18: =F18*1 -> 1600 | H18: ตกลงราคา | I18: ฎีกาที่ 6/2538 | J18: สำนักงาน
C19: ขนาด 30” x 20”
A21: 5) ตู้เหล็กเก็บเอกสาร | B21: 406 38 0001 | C21: ตู้เหล็ก ชนิด 2 บาน | D21: 8 กันยายน 2538 | F21: 3300 | G21: =F21*1 -> 3300 | H21: ตกลงราคา | I21: ฎีกาที่ 5/2538 | J21: สำนักงาน
C22: ยี่ห้อ “Futnimax”
A24: 6) โอ่งน้ำ | B24: 1-65 | C24: ขนาดบรรจุ 25 ปี๊บ | D24: 29 กันยายน 2538 | F24: 300 | G24: =F24*65 -> 19500 | H24: ตกลงราคา | I24: ฎีกาที่ 9/2538 | J24: หมู่ที่ 1-9
G26: =SUM(G8:G24) -> 54225
A27: พ.ศ.2539 (รายได้)
A28: 1) โทรทัศน์สี | B28: 400 40 0010 | C28: ขนาด 20 นิ้ว ยี่ห้อ | D28: 30 สิงหาคม 2539 | E28: 300346 | F28: 11000 | G28: =F28*1 -> 11000 | H28: ตกลงราคา | I28: ฎีกาที่ 26/2539 | J28: สำนักงาน
C29: “PHILIPS”
A31: 2) วีดีโอ | B31: 455 39 0001 | C31: แบบเล่นเทป รุ่น RHI | D31: 30 สิงหาคม 2539 | E31: 940855 | F31: 6500 | G31: =F31*1 -> 6500 | H31: ตกลงราคา | I31: ฎีกาที่ 27/2539 | J31: สำนักงาน
C32: ยี่ห้อ “PANASONIC”
A34: 3) เครื่องทำน้ำเย็น | B34: 439 39 0001 | C34: เครื่องทำน้ำเย็นแบบใช้ขวด | D34: 5 กันยายน 2539 | F34: 3300 | G34: =F34*1 -> 3300 | H34: ตกลงราคา | I34: ฎีกาที่ 21/2539 | J34: สำนักงาน
C35: ยี่ห้อ “STANDARD”
A37: 4) ตู้เก็บเอกสาร | B37: 406 39 0002 | C37: ตู้เก็บเอกสาร 15 ลิ้นชัก | D37: 5 กันยายน 2539 | F37: 2300 | G37: =F37*1 -> 2300 | H37: ตกลงราคา | I37: ฎีกาที่ 22/2539 | J37: สำนักงาน
C38: ยี่ห้อ “KANSAI”
A40: พ.ศ.2539 (ได้รับบริจาค)
A41: 1) โต๊ะประชุม | B41: 400 39 0009 | C41: โต๊ะไม้ธรรมดา | D41: 2 กันยายน 2539 | F41: 845 | G41: =F41*1 -> 845 | H41: ได้รับบริจาค | I41: - | J41: สำนักงาน
C42: ขนาด 58” x 35”
A44: 2) พัดลม | B44: 432 39 0001-2 | C44: ชนิดยืน ยี่ห้อ “เนชั่นแนล” | D44: 5 กันยายน 2539 | F44: 1600 | G44: =F44*2 -> 3200 | H44: ได้รับบริจาค | I44: - | J44: สำนักงาน
G46: =SUM(G28:G45) -> 27145
A49: พ.ศ.2540 (รายได้)
A50: 1) โต๊ะทำงาน | B50: 400 40 0010-11 | C50: โต๊ะทำงานระดับ 1-2 | D50: 3 มีนาคม 2540 | F50: 1500 | G50: 3000 | H50: ตกลงราคา | I50: ฎีกาที่ 56/2540 | J50: สำนักงาน
A53: 2) เครื่องอัดสำเนา | B53: 418 40 0001 | C53: ชนิดเติมหมึก | D53: 3 มีนาคม 2540 | E53: RE-450 | F53: 26000 | G53: =F53*1 -> 26000 | H53: ตกลงราคา | I53: ฎีกาที่ 57/2540 | J53: สำนักงาน
C54: “แอคโทรแฟ็กซ์”
A56: 3) เครื่องพิมพ์ดีด | B56: 413 40 0001-2 | C56: ขนาดแคร่ 18 นิ้ว | D56: 3 มีนาคม 2540 | E56: LINEA 98 | F56: 8600 | G56: =F56*2 -> 17200 | H56: ตกลงราคา | I56: ฎีกาที่ 58/2540 | J56: สำนักงาน
C57: ยี่ห้อ “OLIVETTI”
A59: 4) เครื่องคำนวณเลข | B59: 415 40 0001 | C59: ยี่ห้อ “MORGAN” | D59: 3 มีนาคม 2540 | E59: 395003404 | F59: 2500 | G59: =F59*1 -> 2500 | H59: ตกลงราคา | I59: ฎีกาที่ 60/2540 | J59: สำนักงาน
A61: 5) โต๊ะพิมพ์ดีดพร้อมเก้าอี้ | B61: 400 40 0012-13 | C61: โต๊ะไม้ธรรมดามี 2 ลิ้นชัก | D61: 16 กรกฎาคม 2540 | F61: 1500 | G61: =F61*2 -> 3000 | H61: ตกลงราคา | I61: ฎีกาที่ 105/2540 | J61: สำนักงาน
C62: พร้อมเก้าอี้ ขนาด 47” x 23”
A64: 6) ตู้เก็บแบบฟอร์มเอกสาร | B64: 406 40 0005 | C64: สีเทา ขนาด 15 ลิ้นชัก | D64: 16 กรกฎาคม 2540 | F64: 2300 | G64: =F64*1 -> 2300 | H64: ตกลงราคา | I64: ฎีกาที่ 106/2540 | J64: สำนักงาน
A66: 7) ตู้เหล็กเก็บเอกสาร | B66: 406 40 0003-04 | C66: ตู้เหล็กชนิด 2 บาน สีเทา | D66: 16 กรกฎาคม 2540 | F66: 2300 | G66: 4600 | H66: ตกลงราคา | I66: ฎีกาที่ 107/2540 | J66: สำนักงาน
C67: ยี่ห้อ “KINGKONG”
A69: 8) ตู้นิรภัย | B69: 612 40 0001 | C69: ตู้นิรภัย มอก.2529 | D69: 16 กรกฎาคม 2540 | E69: 97750066 | F69: 11000 | G69: =F69*1 -> 11000 | H69: ตกลงราคา | I69: ฎีกาที่ 108/2540 | J69: สำนักงาน
C70: ยี่ห้อ “KINGKONG”
A72: 10) เครื่องโทรศัพท์ | B72: 423 40 0001 | C72: ยี่ห้อ “RICH” | D72: 1 กันยายน 2540 | E72: AT 802 D | F72: 1200 | G72: =F72*1 -> 1200 | H72: ตกลงราคา | I72: ฎีกาที่ 128/2540 | J72: สำนักงาน
G73: =SUM(G50:G72) -> 70800
A74: พ.ศ.2541 (รายได้)
A75: 1) เครื่องถ่ายเอกสาร | B75: 417 41 0001 | C75: รุ่น 2732 ขนาด 32 แผ่น/นาที | D75: 29 กันยายน 2541 | E75: 910845 | F75: 94000 | G75: =F75*1 -> 94000 | H75: สอบราคา | I75: ฎีกาที่ 176/2541 | J75: สำนักงาน
C76: สีเทา ยี่ห้อ “เก็ตเตอร์เนอร์”
G77: =SUM(G75:G76) -> 94000
A78: พ.ศ.2542 (รายได้)
A79: 1) ตู้เหล็กเก็บเอกสาร | B79: 406 42 0006 | C79: ตู้เหล็กมี 2 บาน สีเทา | D79: 18 มกราคม 2542 | F79: 3600 | G79: =F79*1 -> 3600 | H79: ตกลงราคา | I79: ฎีกาที่ 27/2542 | J79: สำนักงาน
C80: มอก.353-2532 ยี่ห้อ
C81: “KINGKONG”
A83: 2) รถจักรยานยนต์ | B83: 009 42 0001 | C83: NF 110 (WAVE) ขนาด | D83: 24 เมษายน 2542 | E83: 0004901, | F83: 39000 | G83: =F83*1 -> 39000 | H83: ตกลงราคา | I83: ฎีกาที่ 79/2542 | J83: สำนักงาน
C84: 1 สูบ 100 CC สีแดง | E84: ขกท 757
C85: ยี่ห้อ “HONDA”
A87: 3) เครื่องขยายเสียง | B87: 462 42 0001 | C87: เครื่องขยายเสียง 1 ชุด | D87: 13 กันยายน 2542 | F87: 18600 | G87: =F87*1 -> 18600 | H87: ตกลงราคา | I87: ฎีกาที่ 120/2542 | J87: ตลาดเกษตร
A89: 4) รถไถนา | B89: 602 42 0001-2 | C89: รถไถนาชนิดเดินตาม ขนาด | D89: 13 กันยายน 2542 | E89: 375771, | F89: 47000 | G89: =F89*2 -> 94000 | H89: สอบราคา | I89: ฎีกาที่ 124/2542 | J89: หมู่ที่ 2
C90: 8 แรงม้า มีอุปกรณ์ครบชุด | E90: 375774
C91: ยี่ห้อ “คูโบต้า” รุ่น ET 80
G92: =SUM(G79:G91) -> 155200
A93: พ.ศ.2543 (รายได้)
A94: 1) โต๊ะทำงาน | B94: 400 43 0014-15 | C94: โต๊ะทำงานระดับ 3-6 | D94: 6 มกราคม 2543 | F94: 2700 | G94: =F94*2 -> 5400 | H94: ตกลงราคา | I94: ฎีกาที่ 25/2543 | J94: สำนักปลัด
C95: พร้อมเก้าอี้มีพนักพิง | J95: ส่วนโยธา
A97: 2) ตู้เหล็กเก็บเอกสาร | B97: 406 43 0007 | C97: ตู้เหล็กมี 2 บาน สีเทา | D97: 6 มกราคม 2543 | F97: 3300 | G97: =F97*1 -> 3300 | H97: ตกลงราคา | I97: ฎีกาที่ 26/2543 | J97: สำนักงาน
C98: มอก.353-2532 ยี่ห้อ
C99: “TAIYO”
A100: 3) เครื่องคอมพิวเตอร์ | B100: 416 43 0001 | C100: PENTIUM III 600 MHg | D100: 19 พฤษภาคม 2543 | F100: 71500 | G100: =F100*1 -> 71500 | H100: สอบราคา | I100: ฎีกาที่ 27/2543 | J100: สำนักงาน
B101: 401 43 0023 | C101: Monitor 15” RAM 64 MB
B102: 400 43 0016-17 | C102: HDD 8.4 GB พร้อมอุปกรณ์
C103: ต่อพ่วง, โต๊ะวางพร้อมเก้าอี้
A104: 4) หอกระจายข่าว | B104: 283-43-0001 | C104: หอกระจายข่าวตามแบบ | D104: 29 เมษายน 2543 | F104: 42900 | G104: =F104*1 -> 42900 | H104: ตกลงราคา | I104: ฎีกาที่ 94/2543 | J104: หมู่ที่ 11
C105: มาตรฐาน โดยมีเสาหอ
C106: กระจายข่าว สูง 12 เมตร
C107: พร้อมติดตั้งอุปกรณ์ครบชุด
A108: 5) ศาลาเอนกประสงค์ | B108: 007-43-0001 | C108: ศาลาเอนกประสงค์ประจำ | D108: 14 มิถุนายน 2543 | F108: 171700 | G108: =F108*1 -> 171700 | H108: สอบราคา | I108: ฎีกาที่ 27/2543 | J108: หมู่ที่ 6
C109: หมู่บ้าน ขนาดกว้าง 6 เมตร
C110: ยาว 12 เมตร
G111: =SUM(G94:G110) -> 294800
A112: พ.ศ.2544 (รายได้)
A113: 1) หอกระจายข่าว | B113: 283-44-0002 | C113: หอกระจายข่าวตามแบบ | D113: 12 ตุลาคม 2543 | F113: 42000 | G113: =F113*1 -> 42000 | H113: ตกลงราคา | I113: ฎีกาที่ 168/2543 | J113: หมู่ที่ 12 | M113: เบิกตัดปี
C114: มาตรฐาน โดยมีเสาหอ
C115: กระจายข่าว สูง 12 เมตร
C116: พร้อมติดตั้งอุปกรณ์ครบชุด
A117: 2) โต๊ะทำงาน | B117: 400 44 0018-19 | C117: โต๊ะทำงานระดับ 3-6 พร้อม | D117: 28 มกราคม 2544 | F117: 2900 | G117: =F117*2 -> 5800 | H117: ตกลงราคา | I117: ฎีกาที่ 36/059 | J117: สนง.ปลัด
C118: เก้าอี้มีพนักพิง | I118: ฎีกาที่ 14/060 | J118: ส่วนการคลัง
A119: 3) ตู้เหล็กเก็บเอกสาร | B119: 406 44 0008 | C119: ตู้เหล็กมี 2 บาน สีเทา | D119: 28 มกราคม 2544 | F119: 3200 | G119: =F119*1 -> 3200 | H119: ตกลงราคา | I119: ฎีกาที่ 36/059 | J119: สนง.ปลัด
C120: มอก.353-2532 ยี่ห้อ
C121: “TAIYO”
A122: 4) ตู้เหล็กเก็บเอกสาร | B122: 406 44 0009 | C122: ตู้เหล็กมี 2 บาน สีเทา | D122: 25 มิถุนายน 2544 | F122: 2600 | G122: =F122*1 -> 2600 | H122: ตกลงราคา | I122: ฎีกาที่ 29/159 | J122: ส่วนโยธา
C123: มอก.353-2532 ยี่ห้อ
C124: "PESIDENT”
A125: 5) ตู้เก็บแบบฟอร์ม | B125: 406 44 0010-13 | C125: ตู้เก็บเอกสาร 15 ลิ้นชัก | D125: 25 มิถุนายน 2544 | F125: 2200 | G125: =F125*4 -> 8800 | H125: ตกลงราคา | I125: ฎีกาที่ 104/160 | J125: สนง.ปลัด
C126: ขนาด 18x14x52” สีเทา | I126: ฎีกาที่ 29/159 | J126: ส่วนโยธา
C127: ยี่ห้อ ”PESIDENT” และ
C128: “KING’S STAR”
A130: 6) ล้อวัดระยะทาง | B130: 086 44 0001 | C130: ล้อวัดระยะทาง วงล้อขนาด | D130: 10 พฤษภาคม 2544 | F130: 7500 | G130: =F130*1 -> 7500 | H130: ตกลงราคา | I130: ฎีกาที่ 20/115 | J130: ส่วนโยธา
C131: เส้าผ่าศูนย์กลาง 30 ซม.
C132: มีด้ามจับแบบล็อคเก็บได้
A134: 7) หอกระจายข่าว | B134: 283-44-0003 | C134: หอกระจายข่าวตามแบบ | D134: 31 กรกฎาคม 2544 | F134: 30616 | G134: =F134*1 -> 30616 | H134: ตกลงราคา | I134: ฎีกาที่ 133/201 | J134: หมู่ที่ 6
C135: มาตรฐาน โดยมีเสาหอ
C136: กระจายข่าว สูง 12 เมตร
C137: พร้อมติดตั้งอุปกรณ์ครบชุด
A139: 8) ศาลาเอนกประสงค์ | B139: 007-44-0002 | C139: ศาลาเอนกประสงค์ประจำ | D139: 20 สิงหาคม 2544 | F139: 122750 | G139: =F139*1 -> 122750 | H139: สอบราคา | I139: ฎีกาที่ 140/209 | J139: หมู่ที่ 8
C140: หมู่บ้าน ขนาดกว้าง 6 เมตร
C141: ยาว 12 เมตร
A143: 9) กล้องถ่ายวีดีโอ | B143: 454 44 0001 | C143: กล้องถ่ายวีดีโอ SONY รุ่น | D143: 14 กันยายน 2544 | E143: 1053269 | F143: 34500 | G143: =F143*1 -> 34500 | H143: ตกลงราคา | I143: ฎีกาที่ 151/229 | J143: สำนักงาน
C144: DCR-TRV330E ระบบ
C145: ดิจิตอล 8 ความชัด 500 เส้น
C146: จอ LCD 2.5” ซูมภาพได้
C147: 700 เท่า Super Night Shot
C148: 0 ลักซ์ บันทึกภาพได้ใน
C149: ที่มืดสนิท
A151: 10) รถไถนา | B151: 602 42 0003-04 | C151: รถไถนาชนิดเดินตาม ขนาด | D151: 24 กันยายน 2544 | E151: 396919, | F151: 45903 | G151: =F151*2 -> 91806 | H151: สอบราคา | I151: ฎีกาที่ 159/237 | J151: หมู่ที่ 9
C152: 8 แรงม้า มีอุปกรณ์ครบชุด | E152: 430610
C153: ยี่ห้อ “คูโบต้า” รุ่น ET 80
G154: =SUM(G113:G153) -> 349572
A155: พ.ศ.2545 (รายได้)
A156: 1) กล้องถ่ายรูปอัตโนมัติ | B156: 452 45 0002 | C156: กล้องถ่ายรูปอัตโนมัติ เลนส์ | D156: 12 มิถุนายน 2545 | E156: 6324116 | F156: 8000 | G156: =F156*1 -> 8000 | H156: ตกลงราคา | I156: ฎีกาที่ 27/191 | J156: ส่วนโยธา
C157: ขนาด 38-70 มม.หรือดีกว่า
C158: ใช้ฟิล์มขนาด 35 มม.
C159: มีไฟแวบในตัวกล้อง
A161: 2) โต๊ะประชุม 12 ที่นั่ง | B161: 400 45 0020 | C161: โต๊ะประชุมขนาด 12 คน | D161: 12 มิถุนายน 2545 | F161: 16000 | G161: =F161*2 -> 32000 | H161: ตกลงราคา | I161: ฎีกาที่ 131/192 | J161: สนง.ปลัด
B162: 401 45 0024 | C162: ประกอบด้วยโต๊ะยาว 6 ตัว
C163: หน้าโต๊ะสำหรับประธานต่อ
C164: มุม 2 ตัว และเก้าอี้ 12 ตัว
A166: 3) เครื่องคอมพิวเตอร์ | B166: 416 45 0002 | C166: PENTIUM IV 2.0 GHz | D166: 17 กรกฎาคม 2545 | F166: 48950 | G166: =F166*1 -> 48950 | H166: ตกลงราคา | I166: ฎีกาที่ 40/216 | J166: ส่วนการคลัง
C167: Monitor 17” RAM 256 MB
C168: HDD 40 GB พร้อมอุปกรณ์
C169: ต่อพ่วง, โต๊ะวางพร้อมเก้าอี้
A170: 4) ตู้เหล็กเก็บเอกสาร | B170: 406 45 0014-16 | C170: ตู้เหล็กมี 2 บาน สีเทา | D170: 11 กันยายน 2545 | F170: 3200 | G170: =F170*3 -> 9600 | H170: ตกลงราคา | I170: ฎีกาที่ 182/274 | J170: สนง.ปลัด
C171: มอก.353-2532 ยี่ห้อ | I171: ฎีกาที่ 50/275 | J171: ส่วนการคลัง
C172: “TAIYO”
A174: พ.ศ.2545 (เงินสะสม)
A175: 5) ที่ดิน | B175: 001 45 0001 | C175: ที่ดิน จำนวน 9 ไร่ 1 งาน | D175: 24 กันยายน 2545 | F175: 1539049 | G175: =F175*1 -> 1539049 | H175: พิเศษ | I175: ฎีกาที่ 86/86 | J175: หมู่ที่ 10
C176: 4.90 ตารางวา
C177: (สำหรับก่อสร้างที่ทำการ อบต.)
A179: 6) เครื่องพ่นหมอกควัน | B179: 054 45 0001 | C179: เครื่องพ่นหมอกควันกำจัด | D179: 26 กันยายน 2545 | F179: 50000 | G179: =F179*1 -> 50000 | H179: ตกลงราคา | I179: ฎีกาที่ 84/84 | J179: หมู่ที่ 1-12
C180: ยุงลาย ยี่ห้อไอจีบ้า
C181: รุ่น TF-35
G182: =SUM(G156:G181) -> 1687599
A183: พ.ศ.2546 (รายได้)
A184: 1) ศาลาอเนกประสงค์ | B184: 007-46-0003 | C184: ศาลาอเนกประสงค์ ขนาด | D184: 19 พฤศจิกายน 2545 | F184: 199000 | G184: =F184*1 -> 199000 | H184: สอบราคา | I184: ฎีกาที่ 04/04 | J184: หมู่ที่ 5
C185: กว้าง 6 เมตร ยาว 12 เมตร
C186: มีพื้นที่ใช้สอย 72 ตร.ม.
A188: 2) โต๊ะเขียนแบบ | B188: 400 46 0021 | C188: โต๊ะเขียนแบบ ปรับระดับได้ | D188: 3 มกราคม 2546 | F188: 4100 | G188: =F188*1 -> 4100 | H188: ตกลงราคา | I188: ฎีกาที่ 15/63 | J188: ส่วนโยธา
B189: 401 46 0025 | C189: ขนาด 80x120 ซม.
C190: พร้อมเก้าอี้
A192: 3) ไม้สต๊าฟและกล้องระดับ | B192: 051-46-0001 | C192: ไม้สต๊าฟอลูมิเนียม แบบพับ | D192: 21 กุมภาพันธ์ 2546 | F192: 27000 | G192: =F192*1 -> 27000 | H192: ตกลงราคา | I192: ฎีกาที่ 19/97 | J192: ส่วนโยธา
B193: 078-46-0001 | C193: ขนาด 3 เมตร พร้อมด้วย
C194: กล้องระดับ Topcon 24 เท่า
C195: รุ่น AT-G6
A196: 4) หอกระจายข่าว | B196: 283-46-0004-05 | C196: หอกระจายข่าวแบบเสาสูง | D196: 8 กรกฎาคม 2546 | F196: 38500 | G196: =F196*2 -> 77000 | H196: ตกลงราคา | I196: ฎีกาที่ 158/231 | J196: หมู่ที่ 5
C197: 12 เมตร มีลำโพงฮอนด์ | I197: ฎีกาที่ 159/232 | J197: หมู่ที่ 7
C198: 4 ด้าน และอุปกรณ์ต่อพ่วง
A200: 5) ศาลาอเนกประสงค์ | B200: 007-46-0004 | C200: ศาลาอเนกประสงค์ ขนาด | D200: 18 สิงหาคม 2546 | F200: 233500 | G200: =F200*1 -> 233500 | H200: สอบราคา | I200: ฎีกาที่ 186/271 | J200: หมู่ที่ 7
C201: กว้าง 6 เมตร ยาว 12 เมตร
C202: มีพื้นที่ใช้สอย 72 ตร.ม.
A204: 6) ศาลาอเนกประสงค์ | B204: 007-46-0005 | C204: ศาลาอเนกประสงค์ ขนาด | D204: 5 กันยายน 2546 | F204: 238000 | G204: =F204*1 -> 238000 | H204: สอบราคา | I204: ฎีกาที่ 191/279 | J204: หมู่ที่ 12
C205: กว้าง 6 เมตร ยาว 12 เมตร
C206: มีพื้นที่ใช้สอย 72 ตร.ม.
A207: 7) รถจักรยานยนต์ | B207: 009 46 0002 | C207: ยี่ห้อซูซูกิ สแมช จูเนียร์ | D207: 22 กันยายน 2546 | F207: 33380 | G207: =F207*1 -> 33380 | H207: ตกลงราคา | I207: ฎีกาที่ 39/289 | J207: สำนักงาน
C208: รุ่น FD110XCSU-B
C209: สีเหลือง-ดำ แบบ 4 จังหวะ
C210: ปริมาตรกระบอกสูบ 110 ซีซี
C211: ระบบสตาร์ทเท้า
A213: 8) เครื่องคอมพิวเตอร์ | B213: 416 46 0004 | C213: เครื่องไมโครคอมพิวเตอร์ | D213: 22 กันยายน 2546 | E213: E424-TH 310253 | F213: 80500 | G213: =F213*1 -> 80500 | H213: ตกลงราคา | I213: ฎีกาที่ 40/290 | J213: สำนักงาน
C214: ยี่ห้อ Mac พร้อมอุปกรณ์ดังนี้ | E214: 310253
C215: -Mouse
C216: -Keyboard
C217: -จอภาพ Powell 17 นิ้ว
C218: -เครื่องสำรองไฟฟ้า
C219: -เครื่องพิมพ์แบบ Laser
C220: -โต๊ะวางพร้อมเก้าอี้
A221: พ.ศ.2546 (เงินสะสม)
A222: 9) ถมดิน | C222: ถมดินลูกรัง กว้าง 30 เมตร | D222: 30 มิถุนายน 2546 | F222: 283500 | G222: =F222*1 -> 283500 | H222: สอบราคา | I222: ฎีกาที่ 78/78 | J222: หมู่ที่ 10
C223: ยาว 50 เมตร และถนนทางเข้า
C224: กว้าง 5 เมตร ระยะทางข้างละ
C225: 75 เมตร รวม 150 เมตร
C226: สูงหนาเฉลี่ย 1.05 (คิวหลวม)
C227: ปริมาณ 2,366 ลบ.ม. พร้อม
C228: วางท่อระบายน้ำ คสล.มอก.
C229: ชั้น 3 ขนาด 0.80x1.00 เมตร
A230: พ.ศ.2546 (เงินอุดหนุน)
A231: 10) เครื่องคอมพิวเตอร์ | B231: 416 46 0003 | C231: เครื่องไมโครคอมพิวเตอร์ | D231: 18 ตุลาคม 2545 | E231: 450930-360204-1 | F231: 79500 | G231: =F231*1 -> 79500 | H231: - | I231: - | J231: สนง.ปลัด | M231: กรมการ
C232: ยี่ห้อ Powell รุ่น Achilles | M232: ปกครอง
C233: P4160D พร้อมอุปกรณ์ดังนี้
C234: -Mouse | E234: 000000348952-9
C235: -Keyboard | E235: 000000311492-6
C236: -จอภาพ Powell 15 นิ้ว | E236: 000000342989-1
C237: -Modem 56 Kbps | E237: 000000354725-0
C238: -เครื่องพิมพ์แบบ Laser | E238: 000000304031-7
C239: -เครื่องสำรองไฟฟ้า | E239: 000000339872-2
C240: -เครื่องสแกนเนอร์,ลำโพง | E240: 000000340709-7
A241: 11) อาคารศูนย์พัฒนา | B241: 009-46-0001 | C241: อาคาร ขนาดกว้าง 6.50 เมตร | D241: 16 เมษายน 2546 | F241: 356000 | G241: =F241*1 -> 356000 | H241: สอบราคา | I241: ฎีกาที่ 55/55 | J241: หมู่ที่ 1
A242: เด็กเล็ก | C242: ยาว 16 เมตร โดยมีพื้นที่ | I242: ฎีกาที่ 56/56
... 209 more rows

Sheet รายงานความเข้ากันได้
B1: รายงานความเข้ากันได้สำหรับ ปิดงบ 55.xls
B2: ทำงานบน 8/27/2013 11:58
B4: คุณลักษณะต่อไปนี้ในสมุดงานนี้ไม่ได้รับการสนับสนุนโดย Excel รุ่นก่อนหน้า คุณลักษณะเหล่านี้อาจสูญหายหรือลดความสามารถลงเมื่อคุณบันทึกสมุดงานนี้ในรูปแบบแฟ้มรุ่นก่อนหน้านี้
B6: ความไม่เข้ากันที่ไม่ร้ายแรง | E6: จำนวนที่เกิดขึ้น
B8: มีบางเซลล์หรือลักษณะในสมุดงานนี้มีการจัดรูปแบบที่ไม่ได้รับการสนับสนุนโดยรูปแบบแฟ้มที่เลือก รูปแบบเหล่านี้จะถูกแปลงเป็นรูปแบบที่ใกล้เคียงที่สุดที่มีอยู่ | E8: 290

Sheet Sheet1
